Directorate,Department,Expenditure Type,Ref.Doc.1,Vendor Name,Expenditure Amount (exc VAT),Payment Date
Delivery Units,Adults and Health,Voluntary Associations - Third,50027984,BARNET MENCAP,"11,142.65",24/02/2021
Delivery Units,Adults and Health,Other Services,1006203101,RECRUITMENT TEAM NINE LIMITED,270,24/02/2021
Delivery Units,Adults and Health,Equipment and Materials Purcha,1006749201,MILLBROOK HEALTHCARE GROUP,"220,538.81",02/02/2021
Delivery Units,Adults and Health,Equipment and Materials Purcha,1006749301,MILLBROOK HEALTHCARE GROUP,"36,991.12",02/02/2021
Delivery Units,Adults and Health,Equipment and Materials Purcha,1006778801,MILLBROOK HEALTHCARE GROUP,"36,991.12",03/02/2021
Delivery Units,Adults and Health,Equipment and Materials Purcha,1006779901,MILLBROOK HEALTHCARE GROUP,"216,163.19",03/02/2021
Delivery Units,Adults and Health,Other Transfer Payments to Soc,1006744602,AGE UK BARNET,"37,500.00",02/02/2021
Delivery Units,Adults and Health,Health authorities - Third Par,1006816001,THE BARNETGROUP LIMITED,"33,333.34",04/02/2021
Delivery Units,Adults and Health,Health authorities - Third Par,1006816101,THE BARNETGROUP LIMITED,"28,333.34",04/02/2021
Delivery Units,Adults and Health,Other Services,1006777602,BARNET MENCAP,"28,583.33",04/02/2021
Delivery Units,Adults and Health,Voluntary Associations - Third,1006820402,MIDDLESEX ASSOCIATION  FOR THE BLIN,"2,268.25",04/02/2021
Delivery Units,Adults and Health,Other Transfer Payments to Soc,1006822202,INCLUSION BARNET,"10,123.23",09/02/2021
Delivery Units,Adults and Health,Other Transfer Payments to Soc,1006921602,AGE UK BARNET,"37,500.00",11/02/2021
Delivery Units,Adults and Health,Other Services,1006927602,POHWER,"4,303.00",17/02/2021
Delivery Units,Adults and Health,Other Transfer Payments to Soc,1007110102,PRT BARNET CARERS CENTRE,"28,090.92",17/02/2021
Delivery Units,Adults and Health,Other Transfer Payments to Soc,1007285002,BARNET CITIZENS ADVICE BUREAU,"119,205.25",24/02/2021
Delivery Units,Adults and Health,Other Establishments - Third P,1004424401,HERTFORDSHIRE PARTNERSHIP,"11,466.22",15/02/2021
Delivery Units,Adults and Health,Other Establishments - Third P,1004425602,HERTFORDSHIRE PARTNERSHIP,"14,205.52",18/02/2021
Delivery Units,Adults and Health,Translation Exp / Interpret,1006823401,D.A. LANGUAGES LTD,34.84,04/02/2021
Delivery Units,Adults and Health,Training,1007314001,D B COACHING & CONSULTANCY LIMITED,"15,444.00",25/02/2021
Delivery Units,Adults and Health,Other Services,1005411702,D.A. LANGUAGES LTD,38.29,18/02/2021
Delivery Units,Adults and Health,Other Services,1006181602,D.A. LANGUAGES LTD,42.64,18/02/2021
Delivery Units,Adults and Health,Other Services,1006182102,D.A. LANGUAGES LTD,53.04,18/02/2021
Delivery Units,Adults and Health,Other Services,1006182202,D.A. LANGUAGES LTD,7.28,18/02/2021
Delivery Units,Adults and Health,Other Services,1006183302,D.A. LANGUAGES LTD,10.4,18/02/2021
Delivery Units,Adults and Health,Stationery,1005727702,STAPLES UK LTD,65.5,09/02/2021
Delivery Units,Adults and Health,Stationery,1006033102,STAPLES UK LTD,358,09/02/2021
Delivery Units,Adults and Health,Transport Hire Charges,60134954,BRENT COURIERS LIMITED,200,23/02/2021
Delivery Units,Adults and Health,Translation Exp / Interpret,1006823901,D.A. LANGUAGES LTD,5.2,04/02/2021
Delivery Units,Adults and Health,Cleaning and domestic material,1007014301,NORSE COMMERCIAL SERVICES LTD,635.76,11/02/2021
Delivery Units,Adults and Health,Training,1006853701,ME LEARNING LTD,"1,083.00",05/02/2021
Delivery Units,Adults and Health,Training,1007312701,ME LEARNING LTD,541.65,25/02/2021
Delivery Units,Adults and Health,Other Services,1006852801,HAS TECHNOLOGY LTD,"1,389.75",05/02/2021
Delivery Units,Adults and Health,Translation Exp / Interpret,1006860001,D.A. LANGUAGES LTD,98,05/02/2021
Delivery Units,Adults and Health,Translation Exp / Interpret,1007070602,D.A. LANGUAGES LTD,18,15/02/2021
Delivery Units,Adults and Health,Translation Exp / Interpret,1007144401,D.A. LANGUAGES LTD,98,17/02/2021
Delivery Units,Adults and Health,Translation Exp / Interpret,1007144601,D.A. LANGUAGES LTD,18,17/02/2021
Delivery Units,Adults and Health,Translation Exp / Interpret,1007145901,D.A. LANGUAGES LTD,49.2,17/02/2021
Delivery Units,Adults and Health,Translation Exp / Interpret,1006822602,D.A. LANGUAGES LTD,52,18/02/2021
Delivery Units,Adults and Health,Translation Exp / Interpret,1006824202,D.A. LANGUAGES LTD,252.2,18/02/2021
Delivery Units,Adults and Health,Translation Exp / Interpret,1006824402,D.A. LANGUAGES LTD,41.08,18/02/2021
Delivery Units,Adults and Health,Transport Hire Charges,1005881602,BARNET EDUCATION AND LEARNING,120,26/02/2021
Delivery Units,Adults and Health,Transport Hire Charges,1005881702,BARNET EDUCATION AND LEARNING,88.7,26/02/2021
Delivery Units,Adults and Health,Transport Hire Charges,1005881902,BARNET EDUCATION AND LEARNING,105,26/02/2021
Delivery Units,Adults and Health,Transport Hire Charges,1005882302,BARNET EDUCATION AND LEARNING,225,26/02/2021
Delivery Units,Adults and Health,Other Transfer Payments to Soc,1006784401,ACTION FIRST ASSESSMENT LTD,"1,340.00",03/02/2021
Delivery Units,Adults and Health,Other Services,1007143402,ELOGES SOCIAL WORK LTD,750,17/02/2021
Delivery Units,Adults and Health,Other Services,1007180202,AMBROSIAL SERVICES LIMITED,"1,650.00",19/02/2021
Delivery Units,Adults and Health,Other Transfer Payments to Soc,1007347201,KEVIN SCHEURING LTD,"1,500.00",26/02/2021
Delivery Units,Adults and Health,Other Agencies - Third Party P,50025858,THE BARNETGROUP LIMITED,"24,204.76",03/02/2021
Delivery Units,Adults and Health,Other Agencies - Third Party P,50025862,PRECIOUS HOMES LTD (BURGHLEY ROAD),"1,771.08",03/02/2021
Delivery Units,Adults and Health,Other Agencies - Third Party P,50025867,CARLTON COURT (TLC GROUP),"25,090.30",03/02/2021
Delivery Units,Adults and Health,Other Agencies - Third Party P,50025868,CATHERINE LODGE,"11,512.02",03/02/2021
Delivery Units,Adults and Health,Other Agencies - Third Party P,50025872,THE BARNETGROUP LIMITED,"11,807.20",03/02/2021
Delivery Units,Adults and Health,Other Agencies - Third Party P,50025876,DR FRENCH MEMORIAL HOME LTD,"7,969.86",03/02/2021
Delivery Units,Adults and Health,Other Agencies - Third Party P,50025886,DE BOHUN CARE LTD,"1,771.08",03/02/2021
Delivery Units,Adults and Health,Other Agencies - Third Party P,50025903,OPTIMUM SUPPORT LTD,"1,180.72",03/02/2021
Delivery Units,Adults and Health,Other Agencies - Third Party P,50025904,THE BARNETGROUP LIMITED,"20,072.24",03/02/2021
Delivery Units,Adults and Health,Other Agencies - Third Party P,50025913,ROSEACRES CARE HOME LIMITED,"10,331.30",03/02/2021
Delivery Units,Adults and Health,Other Agencies - Third Party P,50025915,SENSE CAS FINANCE TEAM,"5,018.06",03/02/2021
Delivery Units,Adults and Health,Other Agencies - Third Party P,50025918,PLATINUM HEALTH RESOURCES LTD,"1,771.08",03/02/2021
Delivery Units,Adults and Health,Other Agencies - Third Party P,50025920,SYDMAR LODGE,"16,825.26",03/02/2021
Delivery Units,Adults and Health,Other Agencies - Third Party P,50025928,THE BARNETGROUP LIMITED,"1,771.08",03/02/2021
Delivery Units,Adults and Health,Other Agencies - Third Party P,50025907,NORWOOD RAVENSWOOD SCHOOLS LTD,"2,361.44",03/02/2021
Delivery Units,Adults and Health,Other Agencies - Third Party P,50025908,NORWOOD RAVENSWOOD SCHOOLS LTD,"1,771.08",03/02/2021
Delivery Units,Adults and Health,Other Agencies - Third Party P,50025923,THE GRANGE,"8,265.04",03/02/2021
Delivery Units,Adults and Health,Other Agencies - Third Party P,50025873,DIMENSIONS UK,"1,771.08",03/02/2021
Delivery Units,Adults and Health,Other Agencies - Third Party P,50025874,DIMENSIONS UK,"2,361.44",03/02/2021
Delivery Units,Adults and Health,Other Agencies - Third Party P,50025875,DIMENSIONS UK,"1,771.08",03/02/2021
Delivery Units,Adults and Health,Other Agencies - Third Party P,50025884,THE RICHMOND FELLOWSHIP,"1,771.08",03/02/2021
Delivery Units,Adults and Health,Other Agencies - Third Party P,50025900,LIVABILITY,"7,084.32",03/02/2021
Delivery Units,Adults and Health,Other Agencies - Third Party P,50025905,THE RICHMOND FELLOWSHIP,"3,542.16",03/02/2021
Delivery Units,Adults and Health,Other Agencies - Third Party P,50025929,WALSINGHAM,"1,771.08",03/02/2021
Delivery Units,Adults and Health,Other Agencies - Third Party P,50025930,WOODFIELD HOUSE,"1,771.08",03/02/2021
Delivery Units,Adults and Health,Other Agencies - Third Party P,50025919,SUNRIDGE HOUSING ASSOCIATION LTD,"12,692.74",03/02/2021
Delivery Units,Adults and Health,Other Agencies - Third Party P,50025927,TWO RIVERS,"2,361.44",03/02/2021
Delivery Units,Adults and Health,Other Agencies - Third Party P,50025854,AARANDALE MANOR CARE HOME,"19,186.70",03/02/2021
Delivery Units,Adults and Health,Other Agencies - Third Party P,50025855,ABBEY RAVENSCROFT PARK NURSING HOME,"19,777.06",03/02/2021
Delivery Units,Adults and Health,Other Agencies - Third Party P,50025856,TORRINGTON HOMES,"9,445.76",03/02/2021
Delivery Units,Adults and Health,Other Agencies - Third Party P,50025857,APPLE TREE COURT CARE HOME,"22,728.86",03/02/2021
Delivery Units,Adults and Health,Other Agencies - Third Party P,50025859,ASHFIELDS RESIDENTIAL CARE HOME,"5,903.60",03/02/2021
Delivery Units,Adults and Health,Other Agencies - Third Party P,50025860,ASHTON LODGE CARE CENTRE,"27,451.74",03/02/2021
Delivery Units,Adults and Health,Other Agencies - Third Party P,50025861,VENTRY RESIDENTIAL CARE LTD,"6,198.78",03/02/2021
Delivery Units,Adults and Health,Other Agencies - Third Party P,50025863,THE WOODSIDE HOME,"16,825.26",03/02/2021
Delivery Units,Adults and Health,Other Agencies - Third Party P,50025864,BAYTREE COMMUNITY CARE (LONDON) LTD,"3,542.16",03/02/2021
Delivery Units,Adults and Health,Other Agencies - Third Party P,50025865,CARETECH COMMUNITY SERVICES LTD,"1,771.08",03/02/2021
Delivery Units,Adults and Health,Other Agencies - Third Party P,50025866,CARETECH COMMUNITY SERVICES LTD,"1,475.90",03/02/2021
Delivery Units,Adults and Health,Other Agencies - Third Party P,50025869,CARETECH COMMUNITY SERVICES LTD,"3,542.16",03/02/2021
Delivery Units,Adults and Health,Other Agencies - Third Party P,50025870,CLOVELLY HOUSE RESID. HOME LTD,"14,168.64",03/02/2021
Delivery Units,Adults and Health,Other Agencies - Third Party P,50025871,DANA CARE LIMITED,885.54,03/02/2021
Delivery Units,Adults and Health,Other Agencies - Third Party P,50025877,EASTSIDE HOUSE CARE HOME,"4,722.88",03/02/2021
Delivery Units,Adults and Health,Other Agencies - Third Party P,50025878,ELEANOR PALMER TRUST NO 2 A/C.,"9,740.94",03/02/2021
Delivery Units,Adults and Health,Other Agencies - Third Party P,50025879,ELM PARK LODGE,"7,969.86",03/02/2021
Delivery Units,Adults and Health,Other Agencies - Third Party P,50025880,ELMHURST RESIDENTIAL HOME,"8,855.40",03/02/2021
Delivery Units,Adults and Health,Other Agencies - Third Party P,50025881,CARE UK COMMUNITY PARTNERSHIPS,"14,759.00",03/02/2021
Delivery Units,Adults and Health,Other Agencies - Third Party P,50025882,BROOKDALE HEALTHCARE,"2,361.44",03/02/2021
Delivery Units,Adults and Health,Other Agencies - Third Party P,50025883,FERNBANK NURSING HOME.,"8,855.40",03/02/2021
Delivery Units,Adults and Health,Other Agencies - Third Party P,50025885,FRIERN RESIDENTIAL CARE HOME,"5,313.24",03/02/2021
Delivery Units,Adults and Health,Other Agencies - Third Party P,50025887,GLENHOLME,"5,313.24",03/02/2021
Delivery Units,Adults and Health,Other Agencies - Third Party P,50025888,THE CHRISTIAN CARE TRUST,"2,951.80",03/02/2021
Delivery Units,Adults and Health,Other Agencies - Third Party P,50025889,BUPA CARE HOMES,"12,987.92",03/02/2021
Delivery Units,Adults and Health,Other Agencies - Third Party P,50025890,BUPA CARE HOMES,"9,740.94",03/02/2021
Delivery Units,Adults and Health,Other Agencies - Third Party P,50025891,HENRY NIHILL HOUSE,"8,855.40",03/02/2021
Delivery Units,Adults and Health,Other Agencies - Third Party P,50025892,HILTON LODGE LTD.,"3,837.34",03/02/2021
Delivery Units,Adults and Health,Other Agencies - Third Party P,50025893,JEWISH CARE,"4,427.70",03/02/2021
Delivery Units,Adults and Health,Other Agencies - Third Party P,50025894,KEMBLE HOUSE,"4,427.70",03/02/2021
Delivery Units,Adults and Health,Other Agencies - Third Party P,50025895,NEW CENTURY CARE (FINCHLEY),"9,445.76",03/02/2021
Delivery Units,Adults and Health,Other Agencies - Third Party P,50025896,JEWISH CARE,"14,168.64",03/02/2021
Delivery Units,Adults and Health,Other Agencies - Third Party P,50025897,JEWISH CARE,"35,421.60",03/02/2021
Delivery Units,Adults and Health,Other Agencies - Third Party P,50025898,FOUR SEASONS HEALTH CARE,"27,156.56",03/02/2021
Delivery Units,Adults and Health,Other Agencies - Third Party P,50025899,THE LIMES RESIDENTIAL HOME,"7,674.68",03/02/2021
Delivery Units,Adults and Health,Other Agencies - Third Party P,50025901,CARETECH COMMUNITY SERVICES LTD,"7,379.50",03/02/2021
Delivery Units,Adults and Health,Other Agencies - Third Party P,50025902,MAGNOLIA COURT,"15,939.72",03/02/2021
Delivery Units,Adults and Health,Other Agencies - Third Party P,50025906,NAZARETH HOUSE,"24,795.12",03/02/2021
Delivery Units,Adults and Health,Other Agencies - Third Party P,50025909,WOODFIELD HOMES,"1,475.90",03/02/2021
Delivery Units,Adults and Health,Other Agencies - Third Party P,50025910,NORMANSHIRE CARE SERVICES LTD,"16,530.08",03/02/2021
Delivery Units,Adults and Health,Other Agencies - Third Party P,50025911,JEWISH CARE,"15,939.72",03/02/2021
Delivery Units,Adults and Health,Other Agencies - Third Party P,50025912,ROLAND RESIDENTIAL CARE HOMES LTD,"2,066.26",03/02/2021
Delivery Units,Adults and Health,Other Agencies - Third Party P,50025914,JEWISH CARE,"15,644.54",03/02/2021
Delivery Units,Adults and Health,Other Agencies - Third Party P,50025916,SAGE NURSING HOME,"17,710.80",03/02/2021
Delivery Units,Adults and Health,Other Agencies - Third Party P,50025917,SONESTA NURSING HOME LTD.,"9,445.76",03/02/2021
Delivery Units,Adults and Health,Other Agencies - Third Party P,50025921,BUPA NURSING HOMES LTD - ARKLEY,"15,939.72",03/02/2021
Delivery Units,Adults and Health,Other Agencies - Third Party P,50025922,CEDARS NURSING HOME,"13,283.10",03/02/2021
Delivery Units,Adults and Health,Other Agencies - Third Party P,50025924,CARETECH COMMUNITY SERVICES LTD,"2,066.26",03/02/2021
Delivery Units,Adults and Health,Other Agencies - Third Party P,50025925,QUALITY HOUSING & SOCIAL CARE LTD,"1,475.90",03/02/2021
Delivery Units,Adults and Health,Other Agencies - Third Party P,50025926,QUALITY HOUSING & SOCIAL CARE LTD,"1,475.90",03/02/2021
Delivery Units,Adults and Health,Other Agencies - Third Party P,50025931,DANA CARE LIMITED,"1,475.90",03/02/2021
Delivery Units,Adults and Health,Other Agencies - Third Party P,90328512,ST ANNS HOME-LITTLE SISTERS OF THE POOR,"2,390.40",03/02/2021
Delivery Units,Adults and Health,Other Agencies - Third Party P,90328513,ST ANNS HOME-LITTLE SISTERS OF THE POOR,"2,470.08",03/02/2021
Delivery Units,Adults and Health,Other Agencies - Third Party P,90328731,ST ANNS HOME-LITTLE SISTERS OF THE POOR,334.46,03/02/2021
Delivery Units,Adults and Health,Other Agencies - Third Party P,90328521,WESTMINSTER HEALTH CARE LTD,"5,023.95",03/02/2021
Delivery Units,Adults and Health,Other Agencies - Third Party P,90328522,WESTMINSTER HEALTH CARE LTD,"2,878.57",03/02/2021
Delivery Units,Adults and Health,Other Agencies - Third Party P,90328523,WESTMINSTER HEALTH CARE LTD,"5,022.00",03/02/2021
Delivery Units,Adults and Health,Other Agencies - Third Party P,90328524,WESTMINSTER HEALTH CARE LTD,"5,401.48",03/02/2021
Delivery Units,Adults and Health,Other Agencies - Third Party P,90328525,WESTMINSTER HEALTH CARE LTD,"2,785.71",03/02/2021
Delivery Units,Adults and Health,Other Agencies - Third Party P,90328526,WESTMINSTER HEALTH CARE LTD,"2,878.57",03/02/2021
Delivery Units,Adults and Health,Other Agencies - Third Party P,90328952,SUNRISE SENIOR LIVING,"6,382.28",05/02/2021
Delivery Units,Adults and Health,Other Agencies - Third Party P,90328941,AGUDAS ISRAEL HOUSING ASSCTN LTD,"2,736.86",05/02/2021
Delivery Units,Adults and Health,Other Agencies - Third Party P,90329375,CARLTON COURT (TLC GROUP),"3,400.00",08/02/2021
Delivery Units,Adults and Health,Other Agencies - Third Party P,90329583,CARLTON COURT (TLC GROUP),"6,600.00",08/02/2021
Delivery Units,Adults and Health,Other Agencies - Third Party P,90329590,CARLTON COURT (TLC GROUP),"5,400.00",08/02/2021
Delivery Units,Adults and Health,Other Agencies - Third Party P,90329332,NEW CENTURY CARE (FINCHLEY),135.43,08/02/2021
Delivery Units,Adults and Health,Other Agencies - Third Party P,90329333,NEW CENTURY CARE (FINCHLEY),116.2,08/02/2021
Delivery Units,Adults and Health,Other Agencies - Third Party P,90329340,NEW CENTURY CARE (FINCHLEY),"3,494.12",08/02/2021
Delivery Units,Adults and Health,Other Agencies - Third Party P,90329342,LIFESTYLE CARE PLC,"2,716.88",08/02/2021
Delivery Units,Adults and Health,Other Agencies - Third Party P,90329344,ASHTON LODGE CARE CENTRE,"3,236.72",08/02/2021
Delivery Units,Adults and Health,Other Agencies - Third Party P,90329348,FOUR SEASONS HEALTH CARE,"2,636.80",08/02/2021
Delivery Units,Adults and Health,Other Agencies - Third Party P,90329351,ASHTON LODGE CARE CENTRE,"3,481.88",08/02/2021
Delivery Units,Adults and Health,Other Agencies - Third Party P,90329353,SAGE NURSING HOME,"2,358.24",08/02/2021
Delivery Units,Adults and Health,Other Agencies - Third Party P,90329356,SONESTA NURSING HOME LTD.,"2,611.20",08/02/2021
Delivery Units,Adults and Health,Other Agencies - Third Party P,90329358,BUPA CARE HOMES,"2,958.00",08/02/2021
Delivery Units,Adults and Health,Other Agencies - Third Party P,90329360,SAGE NURSING HOME,"3,800.00",08/02/2021
Delivery Units,Adults and Health,Other Agencies - Third Party P,90329361,ASHTON LODGE CARE CENTRE,"3,881.16",08/02/2021
Delivery Units,Adults and Health,Other Agencies - Third Party P,90329369,ASHTON LODGE CARE CENTRE,"2,693.84",08/02/2021
Delivery Units,Adults and Health,Other Agencies - Third Party P,90329374,JEWISH CARE,"8,750.24",08/02/2021
Delivery Units,Adults and Health,Other Agencies - Third Party P,90329379,ASHTON LODGE CARE CENTRE,"3,404.52",08/02/2021
Delivery Units,Adults and Health,Other Agencies - Third Party P,90329382,JEWISH CARE,"2,478.24",08/02/2021
Delivery Units,Adults and Health,Other Agencies - Third Party P,90329383,BUPA CARE HOMES,"2,542.96",08/02/2021
Delivery Units,Adults and Health,Other Agencies - Third Party P,90329387,LIFESTYLE CARE PLC,"2,716.88",08/02/2021
Delivery Units,Adults and Health,Other Agencies - Third Party P,90329388,LIFESTYLE CARE PLC,"2,716.88",08/02/2021
Delivery Units,Adults and Health,Other Agencies - Third Party P,90329389,APPLE TREE COURT CARE HOME,0.04,08/02/2021
Delivery Units,Adults and Health,Other Agencies - Third Party P,90329390,APPLE TREE COURT CARE HOME,"22,566.78",08/02/2021
Delivery Units,Adults and Health,Other Agencies - Third Party P,90329391,FOUR SEASONS HEALTH CARE,"8,147.17",08/02/2021
Delivery Units,Adults and Health,Other Agencies - Third Party P,90329392,FOUR SEASONS HEALTH CARE,"2,636.80",08/02/2021
Delivery Units,Adults and Health,Other Agencies - Third Party P,90329413,NEW CENTURY CARE (FINCHLEY),"3,232.00",08/02/2021
Delivery Units,Adults and Health,Other Agencies - Third Party P,90329420,JEWISH CARE,"2,727.16",08/02/2021
Delivery Units,Adults and Health,Other Agencies - Third Party P,90329421,ASHTON LODGE CARE CENTRE,"3,124.72",08/02/2021
Delivery Units,Adults and Health,Other Agencies - Third Party P,90329422,JEWISH CARE,"2,478.24",08/02/2021
Delivery Units,Adults and Health,Other Agencies - Third Party P,90329432,FOUR SEASONS HEALTH CARE,"3,153.40",08/02/2021
Delivery Units,Adults and Health,Other Agencies - Third Party P,90329433,ASHTON LODGE CARE CENTRE,"2,915.00",08/02/2021
Delivery Units,Adults and Health,Other Agencies - Third Party P,90329436,ASHTON LODGE CARE CENTRE,"4,016.52",08/02/2021
Delivery Units,Adults and Health,Other Agencies - Third Party P,90329442,JEWISH CARE,"2,478.24",08/02/2021
Delivery Units,Adults and Health,Other Agencies - Third Party P,90329444,APPLE TREE COURT CARE HOME,"3,800.00",08/02/2021
Delivery Units,Adults and Health,Other Agencies - Third Party P,90329447,BUPA CARE HOMES,"-1,164.43",08/02/2021
Delivery Units,Adults and Health,Other Agencies - Third Party P,90329448,LIFESTYLE CARE PLC,"4,498.70",08/02/2021
Delivery Units,Adults and Health,Other Agencies - Third Party P,90329449,FOUR SEASONS HEALTH CARE,"2,636.80",08/02/2021
Delivery Units,Adults and Health,Other Agencies - Third Party P,90329450,FOUR SEASONS HEALTH CARE,"2,636.80",08/02/2021
Delivery Units,Adults and Health,Other Agencies - Third Party P,90329452,FOUR SEASONS HEALTH CARE,"2,636.80",08/02/2021
Delivery Units,Adults and Health,Other Agencies - Third Party P,90329453,FOUR SEASONS HEALTH CARE,"-1,412.57",08/02/2021
Delivery Units,Adults and Health,Other Agencies - Third Party P,90329454,APPLE TREE COURT CARE HOME,"3,190.68",08/02/2021
Delivery Units,Adults and Health,Other Agencies - Third Party P,90329455,JEWISH CARE,"2,727.16",08/02/2021
Delivery Units,Adults and Health,Other Agencies - Third Party P,90329456,BUPA CARE HOMES,"2,660.00",08/02/2021
Delivery Units,Adults and Health,Other Agencies - Third Party P,90329458,APPLE TREE COURT CARE HOME,"3,643.88",08/02/2021
Delivery Units,Adults and Health,Other Agencies - Third Party P,90329459,JEWISH CARE,"2,727.16",08/02/2021
Delivery Units,Adults and Health,Other Agencies - Third Party P,90329460,HENRY NIHILL HOUSE,"5,400.00",08/02/2021
Delivery Units,Adults and Health,Other Agencies - Third Party P,90329461,SONESTA NURSING HOME LTD.,"2,611.20",08/02/2021
Delivery Units,Adults and Health,Other Agencies - Third Party P,90329463,SONESTA NURSING HOME LTD.,"2,400.00",08/02/2021
Delivery Units,Adults and Health,Other Agencies - Third Party P,90329464,LIFESTYLE CARE PLC,"2,716.88",08/02/2021
Delivery Units,Adults and Health,Other Agencies - Third Party P,90329465,AARANDALE MANOR CARE HOME,"32,680.00",08/02/2021
Delivery Units,Adults and Health,Other Agencies - Third Party P,90329467,AARANDALE MANOR CARE HOME,"3,560.00",08/02/2021
Delivery Units,Adults and Health,Other Agencies - Third Party P,90329475,APPLE TREE COURT CARE HOME,"3,190.68",08/02/2021
Delivery Units,Adults and Health,Other Agencies - Third Party P,90329476,APPLE TREE COURT CARE HOME,"3,190.68",08/02/2021
Delivery Units,Adults and Health,Other Agencies - Third Party P,90329479,NEW CENTURY CARE (FINCHLEY),"4,264.32",08/02/2021
Delivery Units,Adults and Health,Other Agencies - Third Party P,90329481,SONESTA NURSING HOME LTD.,"2,331.43",08/02/2021
Delivery Units,Adults and Health,Other Agencies - Third Party P,90329482,JEWISH CARE,"2,479.44",08/02/2021
Delivery Units,Adults and Health,Other Agencies - Third Party P,90329484,LIFESTYLE CARE PLC,"2,716.88",08/02/2021
Delivery Units,Adults and Health,Other Agencies - Third Party P,90329485,ELEANOR PALMER TRUST NO 2 A/C.,"2,678.57",08/02/2021
Delivery Units,Adults and Health,Other Agencies - Third Party P,90329490,APPLE TREE COURT CARE HOME,"3,190.68",08/02/2021
Delivery Units,Adults and Health,Other Agencies - Third Party P,90329492,AARANDALE MANOR CARE HOME,"3,560.00",08/02/2021
Delivery Units,Adults and Health,Other Agencies - Third Party P,90329495,APPLE TREE COURT CARE HOME,"6,897.34",08/02/2021
Delivery Units,Adults and Health,Other Agencies - Third Party P,90329498,NEW CENTURY CARE (FINCHLEY),"12,839.79",08/02/2021
Delivery Units,Adults and Health,Other Agencies - Third Party P,90329504,ASHTON LODGE CARE CENTRE,"2,909.96",08/02/2021
Delivery Units,Adults and Health,Other Agencies - Third Party P,90329509,JEWISH CARE,"3,489.64",08/02/2021
Delivery Units,Adults and Health,Other Agencies - Third Party P,90329512,JEWISH CARE,"2,478.24",08/02/2021
Delivery Units,Adults and Health,Other Agencies - Third Party P,90329514,ASHTON LODGE CARE CENTRE,"4,087.20",08/02/2021
Delivery Units,Adults and Health,Other Agencies - Third Party P,90329526,JEWISH CARE,"2,478.24",08/02/2021
Delivery Units,Adults and Health,Other Agencies - Third Party P,90329528,JEWISH CARE,"2,478.24",08/02/2021
Delivery Units,Adults and Health,Other Agencies - Third Party P,90329531,BUPA CARE HOMES,"2,660.00",08/02/2021
Delivery Units,Adults and Health,Other Agencies - Third Party P,90329546,BUPA CARE HOMES,"2,660.00",08/02/2021
Delivery Units,Adults and Health,Other Agencies - Third Party P,90329548,SONESTA NURSING HOME LTD.,-97.83,08/02/2021
Delivery Units,Adults and Health,Other Agencies - Third Party P,90329550,FOUR SEASONS HEALTH CARE,"2,636.80",08/02/2021
Delivery Units,Adults and Health,Other Agencies - Third Party P,90329551,FOUR SEASONS HEALTH CARE,-376.69,08/02/2021
Delivery Units,Adults and Health,Other Agencies - Third Party P,90329554,JEWISH CARE,"2,478.24",08/02/2021
Delivery Units,Adults and Health,Other Agencies - Third Party P,90329556,SONESTA NURSING HOME LTD.,"2,611.20",08/02/2021
Delivery Units,Adults and Health,Other Agencies - Third Party P,90329557,FOUR SEASONS HEALTH CARE,"-1,600.91",08/02/2021
Delivery Units,Adults and Health,Other Agencies - Third Party P,90329559,SONESTA NURSING HOME LTD.,"2,611.20",08/02/2021
Delivery Units,Adults and Health,Other Agencies - Third Party P,90329560,SONESTA NURSING HOME LTD.,"2,611.20",08/02/2021
Delivery Units,Adults and Health,Other Agencies - Third Party P,90329563,JEWISH CARE,"2,727.16",08/02/2021
Delivery Units,Adults and Health,Other Agencies - Third Party P,90329568,LIFESTYLE CARE PLC,"2,716.88",08/02/2021
Delivery Units,Adults and Health,Other Agencies - Third Party P,90329574,SONESTA NURSING HOME LTD.,"2,560.00",08/02/2021
Delivery Units,Adults and Health,Other Agencies - Third Party P,90329575,JEWISH CARE,-681.79,08/02/2021
Delivery Units,Adults and Health,Other Agencies - Third Party P,90329577,JEWISH CARE,"2,478.24",08/02/2021
Delivery Units,Adults and Health,Other Agencies - Third Party P,90329578,JEWISH CARE,"2,727.16",08/02/2021
Delivery Units,Adults and Health,Other Agencies - Third Party P,90329582,APPLE TREE COURT CARE HOME,"3,643.88",08/02/2021
Delivery Units,Adults and Health,Other Agencies - Third Party P,90329586,LIFESTYLE CARE PLC,"9,719.46",08/02/2021
Delivery Units,Adults and Health,Other Agencies - Third Party P,90329588,SONESTA NURSING HOME LTD.,"2,611.20",08/02/2021
Delivery Units,Adults and Health,Other Agencies - Third Party P,90329594,LIFESTYLE CARE PLC,"2,716.88",08/02/2021
Delivery Units,Adults and Health,Other Agencies - Third Party P,90329595,AARANDALE MANOR CARE HOME,"3,560.00",08/02/2021
Delivery Units,Adults and Health,Other Agencies - Third Party P,90329596,AARANDALE MANOR CARE HOME,"3,560.00",08/02/2021
Delivery Units,Adults and Health,Other Agencies - Third Party P,90329597,APPLE TREE COURT CARE HOME,"3,190.68",08/02/2021
Delivery Units,Adults and Health,Other Agencies - Third Party P,90329602,APPLE TREE COURT CARE HOME,"3,190.68",08/02/2021
Delivery Units,Adults and Health,Other Agencies - Third Party P,90329607,FOUR SEASONS HEALTH CARE,"2,636.80",08/02/2021
Delivery Units,Adults and Health,Other Agencies - Third Party P,90329612,LIFESTYLE CARE PLC,"2,716.88",08/02/2021
Delivery Units,Adults and Health,Other Agencies - Third Party P,90329615,APPLE TREE COURT CARE HOME,"4,800.00",08/02/2021
Delivery Units,Adults and Health,Other Agencies - Third Party P,90329618,JEWISH CARE,"2,240.17",08/02/2021
Delivery Units,Adults and Health,Other Agencies - Third Party P,90329629,HENRY NIHILL HOUSE,"1,431.79",08/02/2021
Delivery Units,Adults and Health,Other Agencies - Third Party P,90329631,JEWISH CARE,"2,478.24",08/02/2021
Delivery Units,Adults and Health,Other Agencies - Third Party P,90329636,FOUR SEASONS HEALTH CARE,"2,636.80",08/02/2021
Delivery Units,Adults and Health,Other Agencies - Third Party P,90329637,BUPA CARE HOMES,"3,364.52",08/02/2021
Delivery Units,Adults and Health,Other Agencies - Third Party P,90329638,APPLE TREE COURT CARE HOME,"2,493.08",08/02/2021
Delivery Units,Adults and Health,Other Agencies - Third Party P,90329640,AARANDALE MANOR CARE HOME,"2,595.28",08/02/2021
Delivery Units,Adults and Health,Other Agencies - Third Party P,90329646,ASHTON LODGE CARE CENTRE,"3,544.16",08/02/2021
Delivery Units,Adults and Health,Other Agencies - Third Party P,90329649,HENRY NIHILL HOUSE,"2,265.36",08/02/2021
Delivery Units,Adults and Health,Other Agencies - Third Party P,90329653,JEWISH CARE,"2,478.24",08/02/2021
Delivery Units,Adults and Health,Other Agencies - Third Party P,90329654,ASHTON LODGE CARE CENTRE,"3,355.64",08/02/2021
Delivery Units,Adults and Health,Other Agencies - Third Party P,90329661,NEW CENTURY CARE (FINCHLEY),"4,028.48",08/02/2021
Delivery Units,Adults and Health,Other Agencies - Third Party P,90329664,JEWISH CARE,"2,380.92",08/02/2021
Delivery Units,Adults and Health,Other Agencies - Third Party P,90329666,FOUR SEASONS HEALTH CARE,"2,636.80",08/02/2021
Delivery Units,Adults and Health,Other Agencies - Third Party P,90329673,ASHTON LODGE CARE CENTRE,"4,832.52",08/02/2021
Delivery Units,Adults and Health,Other Agencies - Third Party P,90329674,APPLE TREE COURT CARE HOME,"3,764.00",08/02/2021
Delivery Units,Adults and Health,Other Agencies - Third Party P,90329680,APPLE TREE COURT CARE HOME,"3,190.68",08/02/2021
Delivery Units,Adults and Health,Other Agencies - Third Party P,90329681,APPLE TREE COURT CARE HOME,"3,190.68",08/02/2021
Delivery Units,Adults and Health,Other Agencies - Third Party P,90329682,APPLE TREE COURT CARE HOME,"3,190.68",08/02/2021
Delivery Units,Adults and Health,Other Agencies - Third Party P,90329685,JEWISH CARE,"2,733.53",08/02/2021
Delivery Units,Adults and Health,Other Agencies - Third Party P,90329690,JEWISH CARE,"2,727.16",08/02/2021
Delivery Units,Adults and Health,Other Agencies - Third Party P,90329694,AARANDALE MANOR CARE HOME,"3,560.00",08/02/2021
Delivery Units,Adults and Health,Other Agencies - Third Party P,90329695,AARANDALE MANOR CARE HOME,"3,560.00",08/02/2021
Delivery Units,Adults and Health,Other Agencies - Third Party P,90329698,LIFESTYLE CARE PLC,"4,800.00",08/02/2021
Delivery Units,Adults and Health,Other Agencies - Third Party P,90329700,FOUR SEASONS HEALTH CARE,"2,636.80",08/02/2021
Delivery Units,Adults and Health,Other Agencies - Third Party P,90329705,JEWISH CARE,"2,479.44",08/02/2021
Delivery Units,Adults and Health,Other Agencies - Third Party P,90329706,LIFESTYLE CARE PLC,"2,716.88",08/02/2021
Delivery Units,Adults and Health,Other Agencies - Third Party P,90329711,FOUR SEASONS HEALTH CARE,"2,636.80",08/02/2021
Delivery Units,Adults and Health,Other Agencies - Third Party P,90329715,JEWISH CARE,"1,163.06",08/02/2021
Delivery Units,Adults and Health,Other Agencies - Third Party P,90329720,BUPA CARE HOMES,"5,795.00",08/02/2021
Delivery Units,Adults and Health,Other Agencies - Third Party P,90329724,ASHTON LODGE CARE CENTRE,-233.07,08/02/2021
Delivery Units,Adults and Health,Other Agencies - Third Party P,90330804,BUPA CARE HOMES,"2,660.00",12/02/2021
Delivery Units,Adults and Health,Other Agencies - Third Party P,90330806,BUPA CARE HOMES,"2,660.00",12/02/2021
Delivery Units,Adults and Health,Other Agencies - Third Party P,90330807,BUPA CARE HOMES,"1,995.00",12/02/2021
Delivery Units,Adults and Health,Other Agencies - Third Party P,90330808,BUPA CARE HOMES,"2,660.00",12/02/2021
Delivery Units,Adults and Health,Other Agencies - Third Party P,90330809,BUPA CARE HOMES,"2,660.00",12/02/2021
Delivery Units,Adults and Health,Other Agencies - Third Party P,90330810,BUPA CARE HOMES,"2,660.00",12/02/2021
Delivery Units,Adults and Health,Other Agencies - Third Party P,90330811,BUPA CARE HOMES,"2,660.00",12/02/2021
Delivery Units,Adults and Health,Other Agencies - Third Party P,90330812,BUPA CARE HOMES,"5,985.00",12/02/2021
Delivery Units,Adults and Health,Other Agencies - Third Party P,90330813,BUPA CARE HOMES,183.92,12/02/2021
Delivery Units,Adults and Health,Other Agencies - Third Party P,90331137,BUPA NURSING HOMES LTD - ARKLEY,"3,800.00",12/02/2021
Delivery Units,Adults and Health,Other Agencies - Third Party P,90331138,BUPA NURSING HOMES LTD - ARKLEY,"4,400.00",12/02/2021
Delivery Units,Adults and Health,Other Agencies - Third Party P,90331139,BUPA NURSING HOMES LTD - ARKLEY,"3,337.76",12/02/2021
Delivery Units,Adults and Health,Other Agencies - Third Party P,90331140,BUPA NURSING HOMES LTD - ARKLEY,"4,387.00",12/02/2021
Delivery Units,Adults and Health,Other Agencies - Third Party P,90331149,HC ONE BEAMISH LTD,"2,370.24",12/02/2021
Delivery Units,Adults and Health,Other Agencies - Third Party P,90332688,WESTGATE HOUSE CARE CENTRE,"3,365.20",17/02/2021
Delivery Units,Adults and Health,Other Agencies - Third Party P,90332716,FERNBANK NURSING HOME.,"3,199.84",17/02/2021
Delivery Units,Adults and Health,Other Agencies - Third Party P,90332718,M D HOMES,"2,858.80",17/02/2021
Delivery Units,Adults and Health,Other Agencies - Third Party P,90332813,MEERA NURSING HOME LIMITED,"3,167.36",17/02/2021
Delivery Units,Adults and Health,Other Agencies - Third Party P,90332814,MEERA NURSING HOME LIMITED,"2,209.00",17/02/2021
Delivery Units,Adults and Health,Other Agencies - Third Party P,90332818,SANCTUARY CARE LTD,"2,295.16",17/02/2021
Delivery Units,Adults and Health,Other Agencies - Third Party P,90332824,GCH NORTH LONDON LTD,"3,000.00",17/02/2021
Delivery Units,Adults and Health,Other Agencies - Third Party P,90332827,BIRCHWOOD GRANGE CARE HOME,"3,000.00",17/02/2021
Delivery Units,Adults and Health,Other Agencies - Third Party P,90332829,ADARA HEALTHCARE LTD,"3,400.00",17/02/2021
Delivery Units,Adults and Health,Other Agencies - Third Party P,90332837,NIGHTINGALE HOUSE,"2,666.64",18/02/2021
Delivery Units,Adults and Health,Other Agencies - Third Party P,90332853,BUPA NURSING HOMES LTD - ARKLEY,"4,387.00",18/02/2021
Delivery Units,Adults and Health,Other Agencies - Third Party P,90332854,BUPA NURSING HOMES LTD - ARKLEY,"3,337.76",18/02/2021
Delivery Units,Adults and Health,Other Agencies - Third Party P,90332855,BUPA NURSING HOMES LTD - ARKLEY,"4,400.00",18/02/2021
Delivery Units,Adults and Health,Other Agencies - Third Party P,90332856,BUPA NURSING HOMES LTD - ARKLEY,-963.85,18/02/2021
Delivery Units,Adults and Health,Other Agencies - Third Party P,90332857,BUPA NURSING HOMES LTD - ARKLEY,-658.24,18/02/2021
Delivery Units,Adults and Health,Other Agencies - Third Party P,90332858,BUPA NURSING HOMES LTD - ARKLEY,-658.24,18/02/2021
Delivery Units,Adults and Health,Other Agencies - Third Party P,90332859,BUPA NURSING HOMES LTD - ARKLEY,-658.24,18/02/2021
Delivery Units,Adults and Health,Other Agencies - Third Party P,90332860,BUPA NURSING HOMES LTD - ARKLEY,-658.24,18/02/2021
Delivery Units,Adults and Health,Other Agencies - Third Party P,90332861,BUPA NURSING HOMES LTD - ARKLEY,-658.24,18/02/2021
Delivery Units,Adults and Health,Other Agencies - Third Party P,90332862,BUPA NURSING HOMES LTD - ARKLEY,-658.24,18/02/2021
Delivery Units,Adults and Health,Other Agencies - Third Party P,90332863,BUPA NURSING HOMES LTD - ARKLEY,-658.24,18/02/2021
Delivery Units,Adults and Health,Other Agencies - Third Party P,90332864,BUPA NURSING HOMES LTD - ARKLEY,-658.24,18/02/2021
Delivery Units,Adults and Health,Other Agencies - Third Party P,90332865,BUPA NURSING HOMES LTD - ARKLEY,-658.24,18/02/2021
Delivery Units,Adults and Health,Other Agencies - Third Party P,90332868,WESTMINSTER HEALTH CARE LTD,"5,023.95",18/02/2021
Delivery Units,Adults and Health,Other Agencies - Third Party P,90332869,WESTMINSTER HEALTH CARE LTD,"2,878.57",18/02/2021
Delivery Units,Adults and Health,Other Agencies - Third Party P,90332870,WESTMINSTER HEALTH CARE LTD,"5,022.00",18/02/2021
Delivery Units,Adults and Health,Other Agencies - Third Party P,90332871,WESTMINSTER HEALTH CARE LTD,"5,401.48",18/02/2021
Delivery Units,Adults and Health,Other Agencies - Third Party P,90333419,VICTORIA CARE CENTRE,"2,958.95",19/02/2021
Delivery Units,Adults and Health,Other Agencies - Third Party P,90333420,VICTORIA CARE CENTRE,"2,958.95",19/02/2021
Delivery Units,Adults and Health,Other Agencies - Third Party P,90333439,ABBEY RAVENSCROFT PARK NURSING HOME,"11,891.45",19/02/2021
Delivery Units,Adults and Health,Other Agencies - Third Party P,90333440,CONTEMPLATION HOMES,"3,409.78",19/02/2021
Delivery Units,Adults and Health,Other Agencies - Third Party P,90333441,CONTEMPLATION HOMES,"3,079.80",19/02/2021
Delivery Units,Adults and Health,Other Agencies - Third Party P,90333447,BARCHESTER HEALTHCARE HOMES LTD (BROOK,"3,800.00",19/02/2021
Delivery Units,Adults and Health,Other Agencies - Third Party P,90333450,WILSMERE HOUSE CARE CENTRE,"4,497.48",19/02/2021
Delivery Units,Adults and Health,Other Agencies - Third Party P,90333477,AUTUMN GARDENS,"4,800.00",22/02/2021
Delivery Units,Adults and Health,Other Agencies - Third Party P,90333569,BUPA NURSING HOMES LTD - ARKLEY,"3,800.00",23/02/2021
Delivery Units,Adults and Health,Other Agencies - Third Party P,90334038,AUTUMN GARDENS,"3,440.00",25/02/2021
Delivery Units,Adults and Health,Other Agencies - Third Party P,90333998,KARUNA MANOR,"3,800.00",25/02/2021
Delivery Units,Adults and Health,Other Agencies - Third Party P,90333999,KARUNA MANOR,"2,144.00",25/02/2021
Delivery Units,Adults and Health,Other Agencies - Third Party P,90334031,KARUNA MANOR,"5,800.00",25/02/2021
Delivery Units,Adults and Health,Other Agencies - Third Party P,90334032,KARUNA MANOR,"5,800.00",25/02/2021
Delivery Units,Adults and Health,Other Agencies - Third Party P,90334033,KARUNA MANOR,"-4,557.14",25/02/2021
Delivery Units,Adults and Health,Other Agencies - Third Party P,90327442,RNID,"3,030.04",01/02/2021
Delivery Units,Adults and Health,Other Agencies - Third Party P,90327424,THE CHRISTIAN CARE TRUST,"2,458.20",01/02/2021
Delivery Units,Adults and Health,Other Agencies - Third Party P,90328333,TBG MOSAIC,"2,144.00",02/02/2021
Delivery Units,Adults and Health,Other Agencies - Third Party P,90328334,TBG MOSAIC,"2,144.00",02/02/2021
Delivery Units,Adults and Health,Other Agencies - Third Party P,90328335,TBG MOSAIC,"2,144.00",02/02/2021
Delivery Units,Adults and Health,Other Agencies - Third Party P,90328336,TBG MOSAIC,"2,144.00",02/02/2021
Delivery Units,Adults and Health,Other Agencies - Third Party P,90328337,TBG MOSAIC,"2,144.00",02/02/2021
Delivery Units,Adults and Health,Other Agencies - Third Party P,90328339,TBG MOSAIC,"4,080.00",02/02/2021
Delivery Units,Adults and Health,Other Agencies - Third Party P,90328340,TBG MOSAIC,"4,579.17",02/02/2021
Delivery Units,Adults and Health,Other Agencies - Third Party P,90328341,TBG MOSAIC,"9,164.00",02/02/2021
Delivery Units,Adults and Health,Other Agencies - Third Party P,90328342,TBG MOSAIC,"2,304.00",02/02/2021
Delivery Units,Adults and Health,Other Agencies - Third Party P,90328343,TBG MOSAIC,"2,304.00",02/02/2021
Delivery Units,Adults and Health,Other Agencies - Third Party P,90328344,TBG MOSAIC,"2,144.00",02/02/2021
Delivery Units,Adults and Health,Other Agencies - Third Party P,90328345,TBG MOSAIC,"2,144.00",02/02/2021
Delivery Units,Adults and Health,Other Agencies - Third Party P,90328346,TBG MOSAIC,"2,144.00",02/02/2021
Delivery Units,Adults and Health,Other Agencies - Third Party P,90328348,TBG MOSAIC,"2,144.00",02/02/2021
Delivery Units,Adults and Health,Other Agencies - Third Party P,90328350,TBG MOSAIC,"2,304.00",02/02/2021
Delivery Units,Adults and Health,Other Agencies - Third Party P,90328351,TBG MOSAIC,"2,304.00",02/02/2021
Delivery Units,Adults and Health,Other Agencies - Third Party P,90328352,TBG MOSAIC,"2,144.00",02/02/2021
Delivery Units,Adults and Health,Other Agencies - Third Party P,90328353,TBG MOSAIC,"2,144.00",02/02/2021
Delivery Units,Adults and Health,Other Agencies - Third Party P,90328354,TBG MOSAIC,"2,144.00",02/02/2021
Delivery Units,Adults and Health,Other Agencies - Third Party P,90328355,TBG MOSAIC,"2,304.00",02/02/2021
Delivery Units,Adults and Health,Other Agencies - Third Party P,90328356,TBG MOSAIC,"2,144.00",02/02/2021
Delivery Units,Adults and Health,Other Agencies - Third Party P,90328357,TBG MOSAIC,"2,304.00",02/02/2021
Delivery Units,Adults and Health,Other Agencies - Third Party P,90328359,TBG MOSAIC,"4,062.40",02/02/2021
Delivery Units,Adults and Health,Other Agencies - Third Party P,90328360,TBG MOSAIC,"2,144.00",02/02/2021
Delivery Units,Adults and Health,Other Agencies - Third Party P,90328361,TBG MOSAIC,"2,304.00",02/02/2021
Delivery Units,Adults and Health,Other Agencies - Third Party P,90328362,TBG MOSAIC,"2,144.00",02/02/2021
Delivery Units,Adults and Health,Other Agencies - Third Party P,90328365,TBG MOSAIC,"2,144.00",02/02/2021
Delivery Units,Adults and Health,Other Agencies - Third Party P,90328366,TBG MOSAIC,"2,304.00",02/02/2021
Delivery Units,Adults and Health,Other Agencies - Third Party P,90328367,TBG MOSAIC,"2,144.00",02/02/2021
Delivery Units,Adults and Health,Other Agencies - Third Party P,90328368,TBG MOSAIC,"2,304.00",02/02/2021
Delivery Units,Adults and Health,Other Agencies - Third Party P,90328369,TBG MOSAIC,"2,304.00",02/02/2021
Delivery Units,Adults and Health,Other Agencies - Third Party P,90328371,TBG MOSAIC,"2,304.00",02/02/2021
Delivery Units,Adults and Health,Other Agencies - Third Party P,90328372,TBG MOSAIC,"2,304.00",02/02/2021
Delivery Units,Adults and Health,Other Agencies - Third Party P,90328373,TBG MOSAIC,"2,144.00",02/02/2021
Delivery Units,Adults and Health,Other Agencies - Third Party P,90328374,TBG MOSAIC,"2,144.00",02/02/2021
Delivery Units,Adults and Health,Other Agencies - Third Party P,90328375,TBG MOSAIC,"2,304.00",02/02/2021
Delivery Units,Adults and Health,Other Agencies - Third Party P,90328376,TBG MOSAIC,"2,144.00",02/02/2021
Delivery Units,Adults and Health,Other Agencies - Third Party P,90328377,TBG MOSAIC,"2,694.00",02/02/2021
Delivery Units,Adults and Health,Other Agencies - Third Party P,90328378,TBG MOSAIC,"85,472.00",02/02/2021
Delivery Units,Adults and Health,Other Agencies - Third Party P,90328379,TBG MOSAIC,76.57,02/02/2021
Delivery Units,Adults and Health,Other Agencies - Third Party P,90328380,TBG MOSAIC,"2,144.00",02/02/2021
Delivery Units,Adults and Health,Other Agencies - Third Party P,90328381,TBG MOSAIC,"2,304.00",02/02/2021
Delivery Units,Adults and Health,Other Agencies - Third Party P,90328382,TBG MOSAIC,"2,304.00",02/02/2021
Delivery Units,Adults and Health,Other Agencies - Third Party P,90328383,TBG MOSAIC,"2,144.00",02/02/2021
Delivery Units,Adults and Health,Other Agencies - Third Party P,90328384,TBG MOSAIC,"2,304.00",02/02/2021
Delivery Units,Adults and Health,Other Agencies - Third Party P,90328387,TBG MOSAIC,"2,144.00",02/02/2021
Delivery Units,Adults and Health,Other Agencies - Third Party P,90328388,TBG MOSAIC,"2,144.00",02/02/2021
Delivery Units,Adults and Health,Other Agencies - Third Party P,90328389,TBG MOSAIC,"2,304.00",02/02/2021
Delivery Units,Adults and Health,Other Agencies - Third Party P,90328390,TBG MOSAIC,"2,144.00",02/02/2021
Delivery Units,Adults and Health,Other Agencies - Third Party P,90328391,TBG MOSAIC,"2,304.00",02/02/2021
Delivery Units,Adults and Health,Other Agencies - Third Party P,90328392,TBG MOSAIC,"2,304.00",02/02/2021
Delivery Units,Adults and Health,Other Agencies - Third Party P,90328393,TBG MOSAIC,"2,144.00",02/02/2021
Delivery Units,Adults and Health,Other Agencies - Third Party P,90328394,TBG MOSAIC,"2,144.00",02/02/2021
Delivery Units,Adults and Health,Other Agencies - Third Party P,90328395,TBG MOSAIC,"2,144.00",02/02/2021
Delivery Units,Adults and Health,Other Agencies - Third Party P,90328396,TBG MOSAIC,"2,144.00",02/02/2021
Delivery Units,Adults and Health,Other Agencies - Third Party P,90328398,TBG MOSAIC,"2,304.00",02/02/2021
Delivery Units,Adults and Health,Other Agencies - Third Party P,90328399,TBG MOSAIC,"-7,086.06",02/02/2021
Delivery Units,Adults and Health,Other Agencies - Third Party P,90328400,TBG MOSAIC,"2,304.00",02/02/2021
Delivery Units,Adults and Health,Other Agencies - Third Party P,90328401,TBG MOSAIC,"2,304.00",02/02/2021
Delivery Units,Adults and Health,Other Agencies - Third Party P,90328402,TBG MOSAIC,"2,304.00",02/02/2021
Delivery Units,Adults and Health,Other Agencies - Third Party P,90328403,TBG MOSAIC,"2,144.00",02/02/2021
Delivery Units,Adults and Health,Other Agencies - Third Party P,90328404,TBG MOSAIC,"2,144.00",02/02/2021
Delivery Units,Adults and Health,Other Agencies - Third Party P,90328406,TBG MOSAIC,"2,304.00",02/02/2021
Delivery Units,Adults and Health,Other Agencies - Third Party P,90328421,TBG MOSAIC,"2,144.00",02/02/2021
Delivery Units,Adults and Health,Other Agencies - Third Party P,90328422,TBG MOSAIC,"2,144.00",02/02/2021
Delivery Units,Adults and Health,Other Agencies - Third Party P,90328423,TBG MOSAIC,"2,144.00",02/02/2021
Delivery Units,Adults and Health,Other Agencies - Third Party P,90328424,TBG MOSAIC,"2,144.00",02/02/2021
Delivery Units,Adults and Health,Other Agencies - Third Party P,90328425,TBG MOSAIC,"2,144.00",02/02/2021
Delivery Units,Adults and Health,Other Agencies - Third Party P,90328427,TBG MOSAIC,"4,080.00",02/02/2021
Delivery Units,Adults and Health,Other Agencies - Third Party P,90328428,TBG MOSAIC,-0.04,02/02/2021
Delivery Units,Adults and Health,Other Agencies - Third Party P,90328429,TBG MOSAIC,"9,164.00",02/02/2021
Delivery Units,Adults and Health,Other Agencies - Third Party P,90328430,TBG MOSAIC,"2,304.00",02/02/2021
Delivery Units,Adults and Health,Other Agencies - Third Party P,90328431,TBG MOSAIC,"2,304.00",02/02/2021
Delivery Units,Adults and Health,Other Agencies - Third Party P,90328432,TBG MOSAIC,"2,144.00",02/02/2021
Delivery Units,Adults and Health,Other Agencies - Third Party P,90328433,TBG MOSAIC,"2,144.00",02/02/2021
Delivery Units,Adults and Health,Other Agencies - Third Party P,90328434,TBG MOSAIC,"-10,566.86",02/02/2021
Delivery Units,Adults and Health,Other Agencies - Third Party P,90328435,TBG MOSAIC,"10,643.43",02/02/2021
Delivery Units,Adults and Health,Other Agencies - Third Party P,90328436,TBG MOSAIC,"2,304.00",02/02/2021
Delivery Units,Adults and Health,Other Agencies - Third Party P,90328437,TBG MOSAIC,"2,304.00",02/02/2021
Delivery Units,Adults and Health,Other Agencies - Third Party P,90328439,TBG MOSAIC,"2,304.00",02/02/2021
Delivery Units,Adults and Health,Other Agencies - Third Party P,90328440,TBG MOSAIC,"2,304.00",02/02/2021
Delivery Units,Adults and Health,Other Agencies - Third Party P,90328441,TBG MOSAIC,-987.43,02/02/2021
Delivery Units,Adults and Health,Other Agencies - Third Party P,90328442,TBG MOSAIC,"2,144.00",02/02/2021
Delivery Units,Adults and Health,Other Agencies - Third Party P,90328443,TBG MOSAIC,"2,144.00",02/02/2021
Delivery Units,Adults and Health,Other Agencies - Third Party P,90328444,TBG MOSAIC,"2,304.00",02/02/2021
Delivery Units,Adults and Health,Other Agencies - Third Party P,90328445,TBG MOSAIC,"2,144.00",02/02/2021
Delivery Units,Adults and Health,Other Agencies - Third Party P,90328446,TBG MOSAIC,"2,694.00",02/02/2021
Delivery Units,Adults and Health,Other Agencies - Third Party P,90328447,TBG MOSAIC,"86,459.43",02/02/2021
Delivery Units,Adults and Health,Other Agencies - Third Party P,90328448,TBG MOSAIC,"2,144.00",02/02/2021
Delivery Units,Adults and Health,Other Agencies - Third Party P,90328449,TBG MOSAIC,"2,144.00",02/02/2021
Delivery Units,Adults and Health,Other Agencies - Third Party P,90328450,TBG MOSAIC,"2,304.00",02/02/2021
Delivery Units,Adults and Health,Other Agencies - Third Party P,90328451,TBG MOSAIC,"2,304.00",02/02/2021
Delivery Units,Adults and Health,Other Agencies - Third Party P,90328452,TBG MOSAIC,"2,144.00",02/02/2021
Delivery Units,Adults and Health,Other Agencies - Third Party P,90328453,TBG MOSAIC,"2,304.00",02/02/2021
Delivery Units,Adults and Health,Other Agencies - Third Party P,90328456,TBG MOSAIC,"2,144.00",02/02/2021
Delivery Units,Adults and Health,Other Agencies - Third Party P,90328457,TBG MOSAIC,"2,144.00",02/02/2021
Delivery Units,Adults and Health,Other Agencies - Third Party P,90328458,TBG MOSAIC,"2,304.00",02/02/2021
Delivery Units,Adults and Health,Other Agencies - Third Party P,90328459,TBG MOSAIC,"2,144.00",02/02/2021
Delivery Units,Adults and Health,Other Agencies - Third Party P,90328460,TBG MOSAIC,"2,304.00",02/02/2021
Delivery Units,Adults and Health,Other Agencies - Third Party P,90328461,TBG MOSAIC,"2,304.00",02/02/2021
Delivery Units,Adults and Health,Other Agencies - Third Party P,90328462,TBG MOSAIC,"2,144.00",02/02/2021
Delivery Units,Adults and Health,Other Agencies - Third Party P,90328463,TBG MOSAIC,"2,144.00",02/02/2021
Delivery Units,Adults and Health,Other Agencies - Third Party P,90328464,TBG MOSAIC,"2,144.00",02/02/2021
Delivery Units,Adults and Health,Other Agencies - Third Party P,90328465,TBG MOSAIC,"2,144.00",02/02/2021
Delivery Units,Adults and Health,Other Agencies - Third Party P,90328467,TBG MOSAIC,"2,304.00",02/02/2021
Delivery Units,Adults and Health,Other Agencies - Third Party P,90328468,TBG MOSAIC,"1,496.29",02/02/2021
Delivery Units,Adults and Health,Other Agencies - Third Party P,90328469,TBG MOSAIC,"2,304.00",02/02/2021
Delivery Units,Adults and Health,Other Agencies - Third Party P,90328470,TBG MOSAIC,"2,304.00",02/02/2021
Delivery Units,Adults and Health,Other Agencies - Third Party P,90328471,TBG MOSAIC,"2,304.00",02/02/2021
Delivery Units,Adults and Health,Other Agencies - Third Party P,90328472,TBG MOSAIC,"2,144.00",02/02/2021
Delivery Units,Adults and Health,Other Agencies - Third Party P,90328473,TBG MOSAIC,"2,144.00",02/02/2021
Delivery Units,Adults and Health,Other Agencies - Third Party P,90328474,TBG MOSAIC,689.14,02/02/2021
Delivery Units,Adults and Health,Other Agencies - Third Party P,90328476,TBG MOSAIC,"4,104.00",02/02/2021
Delivery Units,Adults and Health,Other Agencies - Third Party P,90328479,TBG MOSAIC,"2,144.00",02/02/2021
Delivery Units,Adults and Health,Other Agencies - Third Party P,90328481,TBG MOSAIC,"2,304.00",02/02/2021
Delivery Units,Adults and Health,Other Agencies - Third Party P,90328482,TBG MOSAIC,"2,304.00",02/02/2021
Delivery Units,Adults and Health,Other Agencies - Third Party P,90328483,TBG MOSAIC,"2,144.00",02/02/2021
Delivery Units,Adults and Health,Other Agencies - Third Party P,90328484,TBG MOSAIC,"2,144.00",02/02/2021
Delivery Units,Adults and Health,Other Agencies - Third Party P,90328485,TBG MOSAIC,"2,144.00",02/02/2021
Delivery Units,Adults and Health,Other Agencies - Third Party P,90328486,TBG MOSAIC,"2,304.00",02/02/2021
Delivery Units,Adults and Health,Other Agencies - Third Party P,90328487,TBG MOSAIC,"2,144.00",02/02/2021
Delivery Units,Adults and Health,Other Agencies - Third Party P,90328488,TBG MOSAIC,"2,304.00",02/02/2021
Delivery Units,Adults and Health,Other Agencies - Third Party P,90328489,TBG MOSAIC,"4,062.40",02/02/2021
Delivery Units,Adults and Health,Other Agencies - Third Party P,90328490,TBG MOSAIC,"2,144.00",02/02/2021
Delivery Units,Adults and Health,Other Agencies - Third Party P,90328491,TBG MOSAIC,"2,304.00",02/02/2021
Delivery Units,Adults and Health,Other Agencies - Third Party P,90328492,TBG MOSAIC,"2,144.00",02/02/2021
Delivery Units,Adults and Health,Other Agencies - Third Party P,90328494,TBG MOSAIC,"2,144.00",02/02/2021
Delivery Units,Adults and Health,Other Agencies - Third Party P,90328744,RMBI,"2,339.44",03/02/2021
Delivery Units,Adults and Health,Other Agencies - Third Party P,90328745,RMBI,"2,263.97",03/02/2021
Delivery Units,Adults and Health,Other Agencies - Third Party P,90328746,RMBI,"2,339.44",03/02/2021
Delivery Units,Adults and Health,Other Agencies - Third Party P,90328747,RMBI,"2,339.44",03/02/2021
Delivery Units,Adults and Health,Other Agencies - Third Party P,90328496,ELM PARK LODGE,"3,938.73",03/02/2021
Delivery Units,Adults and Health,Other Agencies - Third Party P,90328511,ELM PARK LODGE,"3,242.51",03/02/2021
Delivery Units,Adults and Health,Other Agencies - Third Party P,90328937,GCH (NORTH LONDON) T/A THE TUDORS,"2,300.00",05/02/2021
Delivery Units,Adults and Health,Other Agencies - Third Party P,90328991,SYDMAR LODGE,"5,624.29",05/02/2021
Delivery Units,Adults and Health,Other Agencies - Third Party P,90328926,THE WOODSIDE HOME,"2,285.28",05/02/2021
Delivery Units,Adults and Health,Other Agencies - Third Party P,90328927,THE WOODSIDE HOME,"2,458.20",05/02/2021
Delivery Units,Adults and Health,Other Agencies - Third Party P,90328928,THE WOODSIDE HOME,"2,285.28",05/02/2021
Delivery Units,Adults and Health,Other Agencies - Third Party P,90328929,THE WOODSIDE HOME,"2,285.28",05/02/2021
Delivery Units,Adults and Health,Other Agencies - Third Party P,90328930,THE WOODSIDE HOME,"2,285.28",05/02/2021
Delivery Units,Adults and Health,Other Agencies - Third Party P,90328939,ELIZABETH FINN HOMES LTD,"3,985.71",05/02/2021
Delivery Units,Adults and Health,Other Agencies - Third Party P,90328943,METHODIST HOMES FOR THE AGED,"2,631.76",05/02/2021
Delivery Units,Adults and Health,Other Agencies - Third Party P,90328953,QUANTUM CARE LIMITED,"3,428.57",05/02/2021
Delivery Units,Adults and Health,Other Agencies - Third Party P,90328954,QUANTUM CARE LIMITED,"3,542.86",05/02/2021
Delivery Units,Adults and Health,Other Agencies - Third Party P,90328957,CLOVELLY HOUSE RESID. HOME LTD,"1,316.89",05/02/2021
Delivery Units,Adults and Health,Other Agencies - Third Party P,90328958,CLOVELLY HOUSE RESID. HOME LTD,"1,285.71",05/02/2021
Delivery Units,Adults and Health,Other Agencies - Third Party P,90328959,CLOVELLY HOUSE RESID. HOME LTD,"1,841.42",05/02/2021
Delivery Units,Adults and Health,Other Agencies - Third Party P,90328960,CLOVELLY HOUSE RESID. HOME LTD,"1,392.86",05/02/2021
Delivery Units,Adults and Health,Other Agencies - Third Party P,90328961,CLOVELLY HOUSE RESID. HOME LTD,"2,324.99",05/02/2021
Delivery Units,Adults and Health,Other Agencies - Third Party P,90328962,CLOVELLY HOUSE RESID. HOME LTD,"1,392.86",05/02/2021
Delivery Units,Adults and Health,Other Agencies - Third Party P,90328963,CLOVELLY HOUSE RESID. HOME LTD,"1,178.57",05/02/2021
Delivery Units,Adults and Health,Other Agencies - Third Party P,90328964,CLOVELLY HOUSE RESID. HOME LTD,"1,285.71",05/02/2021
Delivery Units,Adults and Health,Other Agencies - Third Party P,90328965,CLOVELLY HOUSE RESID. HOME LTD,"1,928.57",05/02/2021
Delivery Units,Adults and Health,Other Agencies - Third Party P,90328967,CLOVELLY HOUSE RESID. HOME LTD,"3,000.00",05/02/2021
Delivery Units,Adults and Health,Other Agencies - Third Party P,90328974,CLOVELLY HOUSE RESID. HOME LTD,"3,000.00",05/02/2021
Delivery Units,Adults and Health,Other Agencies - Third Party P,90328975,CLOVELLY HOUSE RESID. HOME LTD,"3,000.00",05/02/2021
Delivery Units,Adults and Health,Other Agencies - Third Party P,90329416,ROSEACRES CARE HOME LIMITED,"2,458.20",08/02/2021
Delivery Units,Adults and Health,Other Agencies - Third Party P,90329419,ROSEACRES CARE HOME LIMITED,"3,000.00",08/02/2021
Delivery Units,Adults and Health,Other Agencies - Third Party P,90329430,ROSEACRES CARE HOME LIMITED,"2,699.32",08/02/2021
Delivery Units,Adults and Health,Other Agencies - Third Party P,90329435,CATHERINE LODGE,"3,400.00",08/02/2021
Delivery Units,Adults and Health,Other Agencies - Third Party P,90329446,CATHERINE LODGE,"3,400.00",08/02/2021
Delivery Units,Adults and Health,Other Agencies - Third Party P,90329500,ROSEACRES CARE HOME LIMITED,"2,304.00",08/02/2021
Delivery Units,Adults and Health,Other Agencies - Third Party P,90329506,ROSEACRES CARE HOME LIMITED,"3,000.00",08/02/2021
Delivery Units,Adults and Health,Other Agencies - Third Party P,90329523,CATHERINE LODGE,"2,458.20",08/02/2021
Delivery Units,Adults and Health,Other Agencies - Third Party P,90329524,CATHERINE LODGE,"3,000.00",08/02/2021
Delivery Units,Adults and Health,Other Agencies - Third Party P,90329527,ROSEACRES CARE HOME LIMITED,"2,458.20",08/02/2021
Delivery Units,Adults and Health,Other Agencies - Third Party P,90329530,CARLTON COURT (TLC GROUP),"2,031.76",08/02/2021
Delivery Units,Adults and Health,Other Agencies - Third Party P,90329537,ROSEACRES CARE HOME LIMITED,"3,000.00",08/02/2021
Delivery Units,Adults and Health,Other Agencies - Third Party P,90329567,CATHERINE LODGE,"3,580.00",08/02/2021
Delivery Units,Adults and Health,Other Agencies - Third Party P,90329569,CARLTON COURT (TLC GROUP),"5,800.00",08/02/2021
Delivery Units,Adults and Health,Other Agencies - Third Party P,90329581,CARLTON COURT (TLC GROUP),"5,400.00",08/02/2021
Delivery Units,Adults and Health,Other Agencies - Third Party P,90329584,ROSEACRES CARE HOME LIMITED,"3,400.00",08/02/2021
Delivery Units,Adults and Health,Other Agencies - Third Party P,90329630,ROSEACRES CARE HOME LIMITED,"2,458.20",08/02/2021
Delivery Units,Adults and Health,Other Agencies - Third Party P,90329655,CATHERINE LODGE,"2,458.20",08/02/2021
Delivery Units,Adults and Health,Other Agencies - Third Party P,90329663,ROSEACRES CARE HOME LIMITED,"2,458.20",08/02/2021
Delivery Units,Adults and Health,Other Agencies - Third Party P,90329678,ROSEACRES CARE HOME LIMITED,"3,400.00",08/02/2021
Delivery Units,Adults and Health,Other Agencies - Third Party P,90329725,CARLTON COURT (TLC GROUP),"24,000.00",08/02/2021
Delivery Units,Adults and Health,Other Agencies - Third Party P,90329345,THE GRANGE,"2,458.20",08/02/2021
Delivery Units,Adults and Health,Other Agencies - Third Party P,90329410,THE GRANGE,"2,600.00",08/02/2021
Delivery Units,Adults and Health,Other Agencies - Third Party P,90329562,THE GRANGE,"3,000.00",08/02/2021
Delivery Units,Adults and Health,Other Agencies - Third Party P,90329570,THE GRANGE,"3,000.00",08/02/2021
Delivery Units,Adults and Health,Other Agencies - Third Party P,90329592,THE GRANGE,"3,000.00",08/02/2021
Delivery Units,Adults and Health,Other Agencies - Third Party P,90329478,WOODFIELD HOUSE,"15,080.00",08/02/2021
Delivery Units,Adults and Health,Other Agencies - Third Party P,90329330,JEWISH CARE,"1,213.06",08/02/2021
Delivery Units,Adults and Health,Other Agencies - Third Party P,90329331,ELEANOR PALMER TRUST NO 2 A/C.,334.29,08/02/2021
Delivery Units,Adults and Health,Other Agencies - Third Party P,90329339,NAZARETH HOUSE,-757.26,08/02/2021
Delivery Units,Adults and Health,Other Agencies - Third Party P,90329354,NAZARETH HOUSE,"2,458.20",08/02/2021
Delivery Units,Adults and Health,Other Agencies - Third Party P,90329357,NAZARETH HOUSE,"2,285.28",08/02/2021
Delivery Units,Adults and Health,Other Agencies - Third Party P,90329359,THE LIMES RESIDENTIAL HOME,"2,458.20",08/02/2021
Delivery Units,Adults and Health,Other Agencies - Third Party P,90329362,JEWISH CARE,"2,484.56",08/02/2021
Delivery Units,Adults and Health,Other Agencies - Third Party P,90329365,ELEANOR PALMER TRUST NO 2 A/C.,"3,132.11",08/02/2021
Delivery Units,Adults and Health,Other Agencies - Third Party P,90329366,ELEANOR PALMER TRUST NO 2 A/C.,"2,458.20",08/02/2021
Delivery Units,Adults and Health,Other Agencies - Third Party P,90329370,ELEANOR PALMER TRUST NO 2 A/C.,"3,090.60",08/02/2021
Delivery Units,Adults and Health,Other Agencies - Third Party P,90329371,ELMHURST RESIDENTIAL HOME,"3,400.00",08/02/2021
Delivery Units,Adults and Health,Other Agencies - Third Party P,90329373,NAZARETH HOUSE,"2,285.28",08/02/2021
Delivery Units,Adults and Health,Other Agencies - Third Party P,90329377,ELMHURST RESIDENTIAL HOME,"3,400.00",08/02/2021
Delivery Units,Adults and Health,Other Agencies - Third Party P,90329380,NAZARETH HOUSE,"2,285.28",08/02/2021
Delivery Units,Adults and Health,Other Agencies - Third Party P,90329384,THE LIMES RESIDENTIAL HOME,"3,040.00",08/02/2021
Delivery Units,Adults and Health,Other Agencies - Third Party P,90329385,JEWISH CARE,"2,399.56",08/02/2021
Delivery Units,Adults and Health,Other Agencies - Third Party P,90329386,ELEANOR PALMER TRUST NO 2 A/C.,"3,060.00",08/02/2021
Delivery Units,Adults and Health,Other Agencies - Third Party P,90329398,THE LIMES RESIDENTIAL HOME,"2,304.00",08/02/2021
Delivery Units,Adults and Health,Other Agencies - Third Party P,90329399,BUPA CARE HOMES,"2,409.12",08/02/2021
Delivery Units,Adults and Health,Other Agencies - Third Party P,90329404,ELEANOR PALMER TRUST NO 2 A/C.,"3,160.44",08/02/2021
Delivery Units,Adults and Health,Other Agencies - Third Party P,90329405,NAZARETH HOUSE,"2,285.28",08/02/2021
Delivery Units,Adults and Health,Other Agencies - Third Party P,90329408,JEWISH CARE,"4,265.48",08/02/2021
Delivery Units,Adults and Health,Other Agencies - Third Party P,90329412,JEWISH CARE,"2,399.56",08/02/2021
Delivery Units,Adults and Health,Other Agencies - Third Party P,90329415,JEWISH CARE,"2,484.56",08/02/2021
Delivery Units,Adults and Health,Other Agencies - Third Party P,90329417,ELMHURST RESIDENTIAL HOME,"2,458.20",08/02/2021
Delivery Units,Adults and Health,Other Agencies - Third Party P,90329429,ELMHURST RESIDENTIAL HOME,"2,458.20",08/02/2021
Delivery Units,Adults and Health,Other Agencies - Third Party P,90329431,APPLE TREE COURT CARE HOME,"3,400.00",08/02/2021
Delivery Units,Adults and Health,Other Agencies - Third Party P,90329434,JEWISH CARE,"4,825.16",08/02/2021
Delivery Units,Adults and Health,Other Agencies - Third Party P,90329438,ASHTON LODGE CARE CENTRE,"4,016.52",08/02/2021
Delivery Units,Adults and Health,Other Agencies - Third Party P,90329439,NAZARETH HOUSE,"2,285.28",08/02/2021
Delivery Units,Adults and Health,Other Agencies - Third Party P,90329440,NAZARETH HOUSE,"2,458.20",08/02/2021
Delivery Units,Adults and Health,Other Agencies - Third Party P,90329441,ELEANOR PALMER TRUST NO 2 A/C.,"3,060.00",08/02/2021
Delivery Units,Adults and Health,Other Agencies - Third Party P,90329443,JEWISH CARE,"2,581.00",08/02/2021
Delivery Units,Adults and Health,Other Agencies - Third Party P,90329445,JEWISH CARE,"2,581.00",08/02/2021
Delivery Units,Adults and Health,Other Agencies - Third Party P,90329457,JEWISH CARE,"3,800.00",08/02/2021
Delivery Units,Adults and Health,Other Agencies - Third Party P,90329469,JEWISH CARE,"2,581.00",08/02/2021
Delivery Units,Adults and Health,Other Agencies - Third Party P,90329470,JEWISH CARE,"2,581.00",08/02/2021
Delivery Units,Adults and Health,Other Agencies - Third Party P,90329471,JEWISH CARE,"2,581.00",08/02/2021
Delivery Units,Adults and Health,Other Agencies - Third Party P,90329472,JEWISH CARE,"2,581.00",08/02/2021
Delivery Units,Adults and Health,Other Agencies - Third Party P,90329473,NAZARETH HOUSE,"2,285.28",08/02/2021
Delivery Units,Adults and Health,Other Agencies - Third Party P,90329474,NAZARETH HOUSE,"2,458.20",08/02/2021
Delivery Units,Adults and Health,Other Agencies - Third Party P,90329480,JEWISH CARE,"2,581.00",08/02/2021
Delivery Units,Adults and Health,Other Agencies - Third Party P,90329483,JEWISH CARE,"2,581.00",08/02/2021
Delivery Units,Adults and Health,Other Agencies - Third Party P,90329486,JEWISH CARE,"2,581.00",08/02/2021
Delivery Units,Adults and Health,Other Agencies - Third Party P,90329489,THE LIMES RESIDENTIAL HOME,"3,000.00",08/02/2021
Delivery Units,Adults and Health,Other Agencies - Third Party P,90329491,JEWISH CARE,"2,399.56",08/02/2021
Delivery Units,Adults and Health,Other Agencies - Third Party P,90329493,JEWISH CARE,"2,582.00",08/02/2021
Delivery Units,Adults and Health,Other Agencies - Third Party P,90329497,NAZARETH HOUSE,"5,882.12",08/02/2021
Delivery Units,Adults and Health,Other Agencies - Third Party P,90329505,NAZARETH HOUSE,"2,350.08",08/02/2021
Delivery Units,Adults and Health,Other Agencies - Third Party P,90329507,THE LIMES RESIDENTIAL HOME,"2,304.00",08/02/2021
Delivery Units,Adults and Health,Other Agencies - Third Party P,90329508,NAZARETH HOUSE,"2,285.28",08/02/2021
Delivery Units,Adults and Health,Other Agencies - Third Party P,90329511,ELEANOR PALMER TRUST NO 2 A/C.,"-1,632.34",08/02/2021
Delivery Units,Adults and Health,Other Agencies - Third Party P,90329513,SAGE NURSING HOME,"2,400.00",08/02/2021
Delivery Units,Adults and Health,Other Agencies - Third Party P,90329515,JEWISH CARE,"2,399.56",08/02/2021
Delivery Units,Adults and Health,Other Agencies - Third Party P,90329517,THE LIMES RESIDENTIAL HOME,"2,458.20",08/02/2021
Delivery Units,Adults and Health,Other Agencies - Third Party P,90329519,THE LIMES RESIDENTIAL HOME,"2,458.20",08/02/2021
Delivery Units,Adults and Health,Other Agencies - Third Party P,90329525,THE LIMES RESIDENTIAL HOME,"2,458.20",08/02/2021
Delivery Units,Adults and Health,Other Agencies - Third Party P,90329529,NAZARETH HOUSE,"2,285.28",08/02/2021
Delivery Units,Adults and Health,Other Agencies - Third Party P,90329532,NAZARETH HOUSE,"2,285.28",08/02/2021
Delivery Units,Adults and Health,Other Agencies - Third Party P,90329533,ELEANOR PALMER TRUST NO 2 A/C.,"2,538.71",08/02/2021
Delivery Units,Adults and Health,Other Agencies - Third Party P,90329534,THE LIMES RESIDENTIAL HOME,"2,458.20",08/02/2021
Delivery Units,Adults and Health,Other Agencies - Third Party P,90329535,JEWISH CARE,"2,581.00",08/02/2021
Delivery Units,Adults and Health,Other Agencies - Third Party P,90329536,ELMHURST RESIDENTIAL HOME,"3,400.00",08/02/2021
Delivery Units,Adults and Health,Other Agencies - Third Party P,90329538,NAZARETH HOUSE,"2,285.28",08/02/2021
Delivery Units,Adults and Health,Other Agencies - Third Party P,90329539,NAZARETH HOUSE,"2,285.28",08/02/2021
Delivery Units,Adults and Health,Other Agencies - Third Party P,90329540,NAZARETH HOUSE,"2,458.20",08/02/2021
Delivery Units,Adults and Health,Other Agencies - Third Party P,90329543,ELMHURST RESIDENTIAL HOME,"3,400.00",08/02/2021
Delivery Units,Adults and Health,Other Agencies - Third Party P,90329545,SAGE NURSING HOME,"2,800.00",08/02/2021
Delivery Units,Adults and Health,Other Agencies - Third Party P,90329547,JEWISH CARE,"2,581.00",08/02/2021
Delivery Units,Adults and Health,Other Agencies - Third Party P,90329552,ELEANOR PALMER TRUST NO 2 A/C.,"3,060.00",08/02/2021
Delivery Units,Adults and Health,Other Agencies - Third Party P,90329553,ELEANOR PALMER TRUST NO 2 A/C.,"3,060.00",08/02/2021
Delivery Units,Adults and Health,Other Agencies - Third Party P,90329566,JEWISH CARE,"2,581.00",08/02/2021
Delivery Units,Adults and Health,Other Agencies - Third Party P,90329571,JEWISH CARE,"2,581.00",08/02/2021
Delivery Units,Adults and Health,Other Agencies - Third Party P,90329572,JEWISH CARE,"2,581.00",08/02/2021
Delivery Units,Adults and Health,Other Agencies - Third Party P,90329573,NAZARETH HOUSE,"3,780.00",08/02/2021
Delivery Units,Adults and Health,Other Agencies - Third Party P,90329580,JEWISH CARE,"5,070.40",08/02/2021
Delivery Units,Adults and Health,Other Agencies - Third Party P,90329585,JEWISH CARE,"2,581.00",08/02/2021
Delivery Units,Adults and Health,Other Agencies - Third Party P,90329587,JEWISH CARE,"19,453.58",08/02/2021
Delivery Units,Adults and Health,Other Agencies - Third Party P,90329593,ELEANOR PALMER TRUST NO 2 A/C.,"3,060.00",08/02/2021
Delivery Units,Adults and Health,Other Agencies - Third Party P,90329598,JEWISH CARE,"2,544.13",08/02/2021
Delivery Units,Adults and Health,Other Agencies - Third Party P,90329599,NAZARETH HOUSE,"2,285.28",08/02/2021
Delivery Units,Adults and Health,Other Agencies - Third Party P,90329600,NAZARETH HOUSE,"2,458.20",08/02/2021
Delivery Units,Adults and Health,Other Agencies - Third Party P,90329603,NAZARETH HOUSE,"2,458.20",08/02/2021
Delivery Units,Adults and Health,Other Agencies - Third Party P,90329605,JEWISH CARE,"2,399.56",08/02/2021
Delivery Units,Adults and Health,Other Agencies - Third Party P,90329606,JEWISH CARE,"2,581.00",08/02/2021
Delivery Units,Adults and Health,Other Agencies - Third Party P,90329608,NAZARETH HOUSE,"2,285.28",08/02/2021
Delivery Units,Adults and Health,Other Agencies - Third Party P,90329609,NAZARETH HOUSE,"-3,511.71",08/02/2021
Delivery Units,Adults and Health,Other Agencies - Third Party P,90329610,NAZARETH HOUSE,"2,285.28",08/02/2021
Delivery Units,Adults and Health,Other Agencies - Third Party P,90329614,NAZARETH HOUSE,"-2,107.03",08/02/2021
Delivery Units,Adults and Health,Other Agencies - Third Party P,90329616,THE LIMES RESIDENTIAL HOME,"3,200.00",08/02/2021
Delivery Units,Adults and Health,Other Agencies - Third Party P,90329617,JEWISH CARE,"9,033.50",08/02/2021
Delivery Units,Adults and Health,Other Agencies - Third Party P,90329619,APPLE TREE COURT CARE HOME,"8,957.14",08/02/2021
Delivery Units,Adults and Health,Other Agencies - Third Party P,90329620,NAZARETH HOUSE,"2,285.28",08/02/2021
Delivery Units,Adults and Health,Other Agencies - Third Party P,90329626,NAZARETH HOUSE,"2,285.28",08/02/2021
Delivery Units,Adults and Health,Other Agencies - Third Party P,90329647,ELEANOR PALMER TRUST NO 2 A/C.,"3,160.44",08/02/2021
Delivery Units,Adults and Health,Other Agencies - Third Party P,90329650,ELEANOR PALMER TRUST NO 2 A/C.,979.41,08/02/2021
Delivery Units,Adults and Health,Other Agencies - Third Party P,90329656,ELMHURST RESIDENTIAL HOME,"2,600.00",08/02/2021
Delivery Units,Adults and Health,Other Agencies - Third Party P,90329658,ELMHURST RESIDENTIAL HOME,"2,600.00",08/02/2021
Delivery Units,Adults and Health,Other Agencies - Third Party P,90329659,ELEANOR PALMER TRUST NO 2 A/C.,"2,458.20",08/02/2021
Delivery Units,Adults and Health,Other Agencies - Third Party P,90329660,ELEANOR PALMER TRUST NO 2 A/C.,"3,090.60",08/02/2021
Delivery Units,Adults and Health,Other Agencies - Third Party P,90329665,ELMHURST RESIDENTIAL HOME,"2,458.20",08/02/2021
Delivery Units,Adults and Health,Other Agencies - Third Party P,90329667,JEWISH CARE,"2,581.00",08/02/2021
Delivery Units,Adults and Health,Other Agencies - Third Party P,90329668,JEWISH CARE,"2,399.56",08/02/2021
Delivery Units,Adults and Health,Other Agencies - Third Party P,90329670,ELEANOR PALMER TRUST NO 2 A/C.,"-4,152.86",08/02/2021
Delivery Units,Adults and Health,Other Agencies - Third Party P,90329671,JEWISH CARE,"2,399.56",08/02/2021
Delivery Units,Adults and Health,Other Agencies - Third Party P,90329672,NAZARETH HOUSE,"2,285.28",08/02/2021
Delivery Units,Adults and Health,Other Agencies - Third Party P,90329676,JEWISH CARE,"2,399.56",08/02/2021
Delivery Units,Adults and Health,Other Agencies - Third Party P,90329677,JEWISH CARE,"2,581.00",08/02/2021
Delivery Units,Adults and Health,Other Agencies - Third Party P,90329679,ELEANOR PALMER TRUST NO 2 A/C.,"3,060.00",08/02/2021
Delivery Units,Adults and Health,Other Agencies - Third Party P,90329683,THE LIMES RESIDENTIAL HOME,"3,000.00",08/02/2021
Delivery Units,Adults and Health,Other Agencies - Third Party P,90329684,NAZARETH HOUSE,"2,458.20",08/02/2021
Delivery Units,Adults and Health,Other Agencies - Third Party P,90329687,NAZARETH HOUSE,"2,458.20",08/02/2021
Delivery Units,Adults and Health,Other Agencies - Third Party P,90329688,NAZARETH HOUSE,"2,285.28",08/02/2021
Delivery Units,Adults and Health,Other Agencies - Third Party P,90329689,JEWISH CARE,"2,455.12",08/02/2021
Delivery Units,Adults and Health,Other Agencies - Third Party P,90329697,JEWISH CARE,"2,399.56",08/02/2021
Delivery Units,Adults and Health,Other Agencies - Third Party P,90329701,NAZARETH HOUSE,"3,800.00",08/02/2021
Delivery Units,Adults and Health,Other Agencies - Third Party P,90329702,JEWISH CARE,"2,581.00",08/02/2021
Delivery Units,Adults and Health,Other Agencies - Third Party P,90329703,NAZARETH HOUSE,"2,285.28",08/02/2021
Delivery Units,Adults and Health,Other Agencies - Third Party P,90329707,JEWISH CARE,"2,581.00",08/02/2021
Delivery Units,Adults and Health,Other Agencies - Third Party P,90329709,JEWISH CARE,"2,399.56",08/02/2021
Delivery Units,Adults and Health,Other Agencies - Third Party P,90329712,NAZARETH HOUSE,"2,285.28",08/02/2021
Delivery Units,Adults and Health,Other Agencies - Third Party P,90329713,NAZARETH HOUSE,"2,285.28",08/02/2021
Delivery Units,Adults and Health,Other Agencies - Third Party P,90329716,NAZARETH HOUSE,"2,285.28",08/02/2021
Delivery Units,Adults and Health,Other Agencies - Third Party P,90329717,THE LIMES RESIDENTIAL HOME,"3,000.00",08/02/2021
Delivery Units,Adults and Health,Other Agencies - Third Party P,90329718,JEWISH CARE,"4,240.21",08/02/2021
Delivery Units,Adults and Health,Other Agencies - Third Party P,90329719,ELEANOR PALMER TRUST NO 2 A/C.,"3,000.00",08/02/2021
Delivery Units,Adults and Health,Other Agencies - Third Party P,90329721,THE LIMES RESIDENTIAL HOME,996.43,08/02/2021
Delivery Units,Adults and Health,Other Agencies - Third Party P,90329722,NAZARETH HOUSE,"12,027.62",08/02/2021
Delivery Units,Adults and Health,Other Agencies - Third Party P,90329889,A.H.J. DAVID LTD T/A FLORENCE HOUSE,"3,200.00",10/02/2021
Delivery Units,Adults and Health,Other Agencies - Third Party P,90330558,SYDMAR LODGE,"1,050.00",12/02/2021
Delivery Units,Adults and Health,Other Agencies - Third Party P,90331141,FINBOND LIMITED,"3,000.00",12/02/2021
Delivery Units,Adults and Health,Other Agencies - Third Party P,90330551,CLOVELLY HOUSE RESID. HOME LTD,"3,000.00",12/02/2021
Delivery Units,Adults and Health,Other Agencies - Third Party P,90330552,CLOVELLY HOUSE RESID. HOME LTD,"3,000.00",12/02/2021
Delivery Units,Adults and Health,Other Agencies - Third Party P,90330553,CLOVELLY HOUSE RESID. HOME LTD,"3,000.00",12/02/2021
Delivery Units,Adults and Health,Other Agencies - Third Party P,90330555,CLOVELLY HOUSE RESID. HOME LTD,"2,507.14",12/02/2021
Delivery Units,Adults and Health,Other Agencies - Third Party P,90331135,BARCHESTER HEALTHCARE LTD,"14,457.14",12/02/2021
Delivery Units,Adults and Health,Other Agencies - Third Party P,90331151,WORDSWORTH HOUSE CARE HOME,"2,400.00",12/02/2021
Delivery Units,Adults and Health,Other Agencies - Third Party P,90331152,WILTON HOUSE LTD,"2,367.36",12/02/2021
Delivery Units,Adults and Health,Other Agencies - Third Party P,90331153,WILTON HOUSE LTD,"2,358.76",12/02/2021
Delivery Units,Adults and Health,Other Agencies - Third Party P,90332700,SYDMAR LODGE,"2,331.00",17/02/2021
Delivery Units,Adults and Health,Other Agencies - Third Party P,90332701,SYDMAR LODGE,"5,080.00",17/02/2021
Delivery Units,Adults and Health,Other Agencies - Third Party P,90332702,SPRINGDENE,"1,800.00",17/02/2021
Delivery Units,Adults and Health,Other Agencies - Third Party P,90332711,SPRINGDENE,"3,815.72",17/02/2021
Delivery Units,Adults and Health,Other Agencies - Third Party P,90332712,SPRINGDENE,"4,650.00",17/02/2021
Delivery Units,Adults and Health,Other Agencies - Third Party P,90332725,LIVABILITY,"3,458.24",17/02/2021
Delivery Units,Adults and Health,Other Agencies - Third Party P,90332728,LIVABILITY,"4,364.00",17/02/2021
Delivery Units,Adults and Health,Other Agencies - Third Party P,90332657,ASHFIELDS RESIDENTIAL CARE HOME,"2,878.57",17/02/2021
Delivery Units,Adults and Health,Other Agencies - Third Party P,90332659,ASHFIELDS RESIDENTIAL CARE HOME,"3,321.43",17/02/2021
Delivery Units,Adults and Health,Other Agencies - Third Party P,90332660,ASHFIELDS RESIDENTIAL CARE HOME,"3,321.43",17/02/2021
Delivery Units,Adults and Health,Other Agencies - Third Party P,90332661,VENTRY RESIDENTIAL CARE LTD,"3,321.43",17/02/2021
Delivery Units,Adults and Health,Other Agencies - Third Party P,90332663,VENTRY RESIDENTIAL CARE LTD,"3,100.00",17/02/2021
Delivery Units,Adults and Health,Other Agencies - Third Party P,90332664,GREEN TREES,"3,498.35",17/02/2021
Delivery Units,Adults and Health,Other Agencies - Third Party P,90332665,GREEN TREES,"3,498.35",17/02/2021
Delivery Units,Adults and Health,Other Agencies - Third Party P,90332666,VENTRY RESIDENTIAL CARE - ERNEST DENE,"3,321.43",17/02/2021
Delivery Units,Adults and Health,Other Agencies - Third Party P,90332667,VENTRY RESIDENTIAL CARE - ERNEST DENE,"3,321.43",17/02/2021
Delivery Units,Adults and Health,Other Agencies - Third Party P,90332669,VENTRY RESIDENTIAL CARE - ERNEST DENE,"3,321.43",17/02/2021
Delivery Units,Adults and Health,Other Agencies - Third Party P,90332670,VENTRY RESIDENTIAL CARE - ERNEST DENE,"3,321.43",17/02/2021
Delivery Units,Adults and Health,Other Agencies - Third Party P,90332671,ALEXANDRA HOUSE (RUNWOOD HOMES),"2,680.71",17/02/2021
Delivery Units,Adults and Health,Other Agencies - Third Party P,90332672,ALEXANDRA HOUSE (RUNWOOD HOMES),"2,680.71",17/02/2021
Delivery Units,Adults and Health,Other Agencies - Third Party P,90332673,ALEXANDRA HOUSE (RUNWOOD HOMES),"2,770.07",17/02/2021
Delivery Units,Adults and Health,Other Agencies - Third Party P,90332674,ALEXANDRA HOUSE (RUNWOOD HOMES),"2,770.07",17/02/2021
Delivery Units,Adults and Health,Other Agencies - Third Party P,90332685,SANCTUARY CARE LTD,"2,498.08",17/02/2021
Delivery Units,Adults and Health,Other Agencies - Third Party P,90332689,B & M CARE,"3,400.00",17/02/2021
Delivery Units,Adults and Health,Other Agencies - Third Party P,90332691,B & M CARE,"3,800.00",17/02/2021
Delivery Units,Adults and Health,Other Agencies - Third Party P,90332720,THE CHRISTIAN CARE TRUST,"2,458.20",17/02/2021
Delivery Units,Adults and Health,Other Agencies - Third Party P,90332820,DHYANI CARE LTD,"3,000.00",17/02/2021
Delivery Units,Adults and Health,Other Agencies - Third Party P,90332823,METHODIST HOMES FOR THE AGED,"2,631.76",17/02/2021
Delivery Units,Adults and Health,Other Agencies - Third Party P,90332828,GCH (HERTFORDSHIRE) LTD T/A,"2,414.68",17/02/2021
Delivery Units,Adults and Health,Other Agencies - Third Party P,90332834,EASTSIDE HOUSE CARE HOME,"3,580.00",17/02/2021
Delivery Units,Adults and Health,Other Agencies - Third Party P,90332835,NIGHTINGALE HOUSE,"2,774.72",18/02/2021
Delivery Units,Adults and Health,Other Agencies - Third Party P,90332838,TORRINGTON HOMES,"2,031.76",18/02/2021
Delivery Units,Adults and Health,Other Agencies - Third Party P,90332840,TORRINGTON HOMES,"3,400.00",18/02/2021
Delivery Units,Adults and Health,Other Agencies - Third Party P,90332841,TORRINGTON HOMES,"2,211.80",18/02/2021
Delivery Units,Adults and Health,Other Agencies - Third Party P,90332851,HILTON LODGE LTD.,"2,880.00",18/02/2021
Delivery Units,Adults and Health,Other Agencies - Third Party P,90332852,HILTON LODGE LTD.,"3,800.00",18/02/2021
Delivery Units,Adults and Health,Other Agencies - Third Party P,90332873,TORRINGTON HOMES,"3,571.43",18/02/2021
Delivery Units,Adults and Health,Other Agencies - Third Party P,90333480,AUTUMN GARDENS,"3,200.00",22/02/2021
Delivery Units,Adults and Health,Other Agencies - Third Party P,90333465,RNID,"3,030.04",22/02/2021
Delivery Units,Adults and Health,Other Agencies - Third Party P,90333491,LIVABILITY,"3,211.80",22/02/2021
Delivery Units,Adults and Health,Other Agencies - Third Party P,90333479,ANASTASIA LODGE,"3,800.00",22/02/2021
Delivery Units,Adults and Health,Other Agencies - Third Party P,90333560,WARREN HEATH RESIDENTIAL HOME LTD,"9,374.75",23/02/2021
Delivery Units,Adults and Health,Other Agencies - Third Party P,90333563,VENTRY RESIDENTIAL CARE - ERNEST DENE,642.86,23/02/2021
Delivery Units,Adults and Health,Other Agencies - Third Party P,90333568,BEAUMONT COURT CARE HOME,"3,400.00",23/02/2021
Delivery Units,Adults and Health,Other Agencies - Third Party P,90333988,TENTERDEN HOUSE,"3,646.00",25/02/2021
Delivery Units,Adults and Health,Other Agencies - Third Party P,90333997,KARUNA MANOR,"3,800.00",25/02/2021
Delivery Units,Adults and Health,Other Agencies - Third Party P,90334414,ELM PARK LODGE,"2,928.72",26/02/2021
Delivery Units,Adults and Health,Other Agencies - Third Party P,90334417,ELM PARK LODGE,"3,557.56",26/02/2021
Delivery Units,Adults and Health,Other Agencies - Third Party P,90334418,ELM PARK LODGE,"7,242.18",26/02/2021
Delivery Units,Adults and Health,Other Agencies - Third Party P,90334419,ELM PARK LODGE,"3,938.74",26/02/2021
Delivery Units,Adults and Health,Other Agencies - Third Party P,90327399,PRACTICAL CARE,397.64,01/02/2021
Delivery Units,Adults and Health,Other Agencies - Third Party P,90327400,PRACTICAL CARE,"2,628.45",01/02/2021
Delivery Units,Adults and Health,Other Agencies - Third Party P,90327401,PRACTICAL CARE,"1,514.70",01/02/2021
Delivery Units,Adults and Health,Other Agencies - Third Party P,90327402,PRACTICAL CARE,"1,782.00",01/02/2021
Delivery Units,Adults and Health,Other Agencies - Third Party P,90327403,PRACTICAL CARE,"1,841.40",01/02/2021
Delivery Units,Adults and Health,Other Agencies - Third Party P,90327404,PRACTICAL CARE,"1,841.40",01/02/2021
Delivery Units,Adults and Health,Other Agencies - Third Party P,90327405,PRACTICAL CARE,"1,841.40",01/02/2021
Delivery Units,Adults and Health,Other Agencies - Third Party P,90327408,PRACTICAL CARE,259.88,01/02/2021
Delivery Units,Adults and Health,Other Agencies - Third Party P,90327410,PRACTICAL CARE,579.15,01/02/2021
Delivery Units,Adults and Health,Other Agencies - Third Party P,90327411,PRACTICAL CARE,475.2,01/02/2021
Delivery Units,Adults and Health,Other Agencies - Third Party P,90327412,PRACTICAL CARE,727.65,01/02/2021
Delivery Units,Adults and Health,Other Agencies - Third Party P,90327413,PRACTICAL CARE,"1,455.30",01/02/2021
Delivery Units,Adults and Health,Other Agencies - Third Party P,90327414,PRACTICAL CARE,935.55,01/02/2021
Delivery Units,Adults and Health,Other Agencies - Third Party P,90327415,PRACTICAL CARE,423.23,01/02/2021
Delivery Units,Adults and Health,Other Agencies - Third Party P,90327416,PRACTICAL CARE,935.55,01/02/2021
Delivery Units,Adults and Health,Other Agencies - Third Party P,90327418,PRACTICAL CARE,"1,514.70",01/02/2021
Delivery Units,Adults and Health,Other Agencies - Third Party P,90327420,PRACTICAL CARE,519.75,01/02/2021
Delivery Units,Adults and Health,Other Agencies - Third Party P,90327421,PRACTICAL CARE,"2,450.25",01/02/2021
Delivery Units,Adults and Health,Other Agencies - Third Party P,90328530,MERCURY CARE SERVICES,221,03/02/2021
Delivery Units,Adults and Health,Other Agencies - Third Party P,90328531,MERCURY CARE SERVICES,221,03/02/2021
Delivery Units,Adults and Health,Other Agencies - Third Party P,90328532,MERCURY CARE SERVICES,221,03/02/2021
Delivery Units,Adults and Health,Other Agencies - Third Party P,90328533,MERCURY CARE SERVICES,221,03/02/2021
Delivery Units,Adults and Health,Other Agencies - Third Party P,90328534,MERCURY CARE SERVICES,221,03/02/2021
Delivery Units,Adults and Health,Other Agencies - Third Party P,90328535,MERCURY CARE SERVICES,"2,880.08",03/02/2021
Delivery Units,Adults and Health,Other Agencies - Third Party P,90328536,MERCURY CARE SERVICES,41.25,03/02/2021
Delivery Units,Adults and Health,Other Agencies - Third Party P,90328537,MERCURY CARE SERVICES,115.5,03/02/2021
Delivery Units,Adults and Health,Other Agencies - Third Party P,90328721,GREEK & GREEK CYPRIOT COMMUNITY OF EN,135.96,03/02/2021
Delivery Units,Adults and Health,Other Agencies - Third Party P,90328765,BLISS CARE AND TRAINING LTD,416.89,03/02/2021
Delivery Units,Adults and Health,Other Agencies - Third Party P,90328766,BLISS CARE AND TRAINING LTD,"1,473.08",03/02/2021
Delivery Units,Adults and Health,Other Agencies - Third Party P,90328768,BLISS CARE AND TRAINING LTD,"3,173.24",03/02/2021
Delivery Units,Adults and Health,Other Agencies - Third Party P,90328769,BLISS CARE AND TRAINING LTD,"2,040.64",03/02/2021
Delivery Units,Adults and Health,Other Agencies - Third Party P,90328770,BLISS CARE AND TRAINING LTD,56.7,03/02/2021
Delivery Units,Adults and Health,Other Agencies - Third Party P,90328771,BLISS CARE AND TRAINING LTD,412.87,03/02/2021
Delivery Units,Adults and Health,Other Agencies - Third Party P,90328772,BLISS CARE AND TRAINING LTD,566.72,03/02/2021
Delivery Units,Adults and Health,Other Agencies - Third Party P,90328776,BLISS CARE AND TRAINING LTD,"3,804.65",03/02/2021
Delivery Units,Adults and Health,Other Agencies - Third Party P,90328777,BLISS CARE AND TRAINING LTD,437.08,03/02/2021
Delivery Units,Adults and Health,Other Agencies - Third Party P,90328778,BLISS CARE AND TRAINING LTD,145.7,03/02/2021
Delivery Units,Adults and Health,Other Agencies - Third Party P,90328779,BLISS CARE AND TRAINING LTD,"1,359.96",03/02/2021
Delivery Units,Adults and Health,Other Agencies - Third Party P,90328780,BLISS CARE AND TRAINING LTD,339.99,03/02/2021
Delivery Units,Adults and Health,Other Agencies - Third Party P,90328781,BLISS CARE AND TRAINING LTD,874.32,03/02/2021
Delivery Units,Adults and Health,Other Agencies - Third Party P,90328782,BLISS CARE AND TRAINING LTD,113.33,03/02/2021
Delivery Units,Adults and Health,Other Agencies - Third Party P,90328538,CAPITAL HOMECARE (UK) LIMITED,"1,055.04",03/02/2021
Delivery Units,Adults and Health,Other Agencies - Third Party P,90328539,CAPITAL HOMECARE (UK) LIMITED,"5,130.00",03/02/2021
Delivery Units,Adults and Health,Other Agencies - Third Party P,90328540,CAPITAL HOMECARE (UK) LIMITED,380,03/02/2021
Delivery Units,Adults and Health,Other Agencies - Third Party P,90328541,CAPITAL HOMECARE (UK) LIMITED,741,03/02/2021
Delivery Units,Adults and Health,Other Agencies - Third Party P,90328544,CAPITAL HOMECARE (UK) LIMITED,864.5,03/02/2021
Delivery Units,Adults and Health,Other Agencies - Third Party P,90328545,CAPITAL HOMECARE (UK) LIMITED,931,03/02/2021
Delivery Units,Adults and Health,Other Agencies - Third Party P,90328546,CAPITAL HOMECARE (UK) LIMITED,"1,306.52",03/02/2021
Delivery Units,Adults and Health,Other Agencies - Third Party P,90328547,CAPITAL HOMECARE (UK) LIMITED,"1,004.72",03/02/2021
Delivery Units,Adults and Health,Other Agencies - Third Party P,90328548,CAPITAL HOMECARE (UK) LIMITED,"1,004.72",03/02/2021
Delivery Units,Adults and Health,Other Agencies - Third Party P,90328549,CAPITAL HOMECARE (UK) LIMITED,"1,004.72",03/02/2021
Delivery Units,Adults and Health,Other Agencies - Third Party P,90328550,CAPITAL HOMECARE (UK) LIMITED,"1,004.72",03/02/2021
Delivery Units,Adults and Health,Other Agencies - Third Party P,90328551,CAPITAL HOMECARE (UK) LIMITED,"1,474.00",03/02/2021
Delivery Units,Adults and Health,Other Agencies - Third Party P,90328552,CAPITAL HOMECARE (UK) LIMITED,"1,474.00",03/02/2021
Delivery Units,Adults and Health,Other Agencies - Third Party P,90328553,CAPITAL HOMECARE (UK) LIMITED,"1,474.00",03/02/2021
Delivery Units,Adults and Health,Other Agencies - Third Party P,90328554,CAPITAL HOMECARE (UK) LIMITED,"1,474.00",03/02/2021
Delivery Units,Adults and Health,Other Agencies - Third Party P,90328555,CAPITAL HOMECARE (UK) LIMITED,"1,474.00",03/02/2021
Delivery Units,Adults and Health,Other Agencies - Third Party P,90328556,CAPITAL HOMECARE (UK) LIMITED,"1,570.30",03/02/2021
Delivery Units,Adults and Health,Other Agencies - Third Party P,90328558,CAPITAL HOMECARE (UK) LIMITED,-58.59,03/02/2021
Delivery Units,Adults and Health,Other Agencies - Third Party P,90328559,CAPITAL HOMECARE (UK) LIMITED,"1,055.04",03/02/2021
Delivery Units,Adults and Health,Other Agencies - Third Party P,1005924402,ENARA COMMUNITY CARE,"4,911.30",04/02/2021
Delivery Units,Adults and Health,Other Agencies - Third Party P,1005925502,ENARA COMMUNITY CARE,"4,911.30",04/02/2021
Delivery Units,Adults and Health,Other Agencies - Third Party P,1006741202,ENARA COMMUNITY CARE,"5,093.20",04/02/2021
Delivery Units,Adults and Health,Other Agencies - Third Party P,90328870,ARTHUR MORRISON LTD,283.5,05/02/2021
Delivery Units,Adults and Health,Other Agencies - Third Party P,90328872,ARTHUR MORRISON LTD,463.5,05/02/2021
Delivery Units,Adults and Health,Other Agencies - Third Party P,90328873,ARTHUR MORRISON LTD,364.5,05/02/2021
Delivery Units,Adults and Health,Other Agencies - Third Party P,90328874,ARTHUR MORRISON LTD,220.5,05/02/2021
Delivery Units,Adults and Health,Other Agencies - Third Party P,90328875,ARTHUR MORRISON LTD,220.5,05/02/2021
Delivery Units,Adults and Health,Other Agencies - Third Party P,90328876,ARTHUR MORRISON LTD,252,05/02/2021
Delivery Units,Adults and Health,Other Agencies - Third Party P,90328877,ARTHUR MORRISON LTD,157.5,05/02/2021
Delivery Units,Adults and Health,Other Agencies - Third Party P,90328878,ARTHUR MORRISON LTD,126,05/02/2021
Delivery Units,Adults and Health,Other Agencies - Third Party P,90328879,ARTHUR MORRISON LTD,36,05/02/2021
Delivery Units,Adults and Health,Other Agencies - Third Party P,90328883,ARTHUR MORRISON LTD,283.5,05/02/2021
Delivery Units,Adults and Health,Other Agencies - Third Party P,90328885,ARTHUR MORRISON LTD,463.5,05/02/2021
Delivery Units,Adults and Health,Other Agencies - Third Party P,90328886,ARTHUR MORRISON LTD,364.5,05/02/2021
Delivery Units,Adults and Health,Other Agencies - Third Party P,90328887,ARTHUR MORRISON LTD,220.5,05/02/2021
Delivery Units,Adults and Health,Other Agencies - Third Party P,90328888,ARTHUR MORRISON LTD,220.5,05/02/2021
Delivery Units,Adults and Health,Other Agencies - Third Party P,90328889,ARTHUR MORRISON LTD,252,05/02/2021
Delivery Units,Adults and Health,Other Agencies - Third Party P,90328890,ARTHUR MORRISON LTD,126,05/02/2021
Delivery Units,Adults and Health,Other Agencies - Third Party P,90328891,ARTHUR MORRISON LTD,220.5,05/02/2021
Delivery Units,Adults and Health,Other Agencies - Third Party P,90328892,ARTHUR MORRISON LTD,36,05/02/2021
Delivery Units,Adults and Health,Other Agencies - Third Party P,90328896,ARTHUR MORRISON LTD,234,05/02/2021
Delivery Units,Adults and Health,Other Agencies - Third Party P,90328898,ARTHUR MORRISON LTD,283.5,05/02/2021
Delivery Units,Adults and Health,Other Agencies - Third Party P,90328900,ARTHUR MORRISON LTD,463.5,05/02/2021
Delivery Units,Adults and Health,Other Agencies - Third Party P,90328901,ARTHUR MORRISON LTD,364.5,05/02/2021
Delivery Units,Adults and Health,Other Agencies - Third Party P,90328902,ARTHUR MORRISON LTD,220.5,05/02/2021
Delivery Units,Adults and Health,Other Agencies - Third Party P,90328903,ARTHUR MORRISON LTD,220.5,05/02/2021
Delivery Units,Adults and Health,Other Agencies - Third Party P,90328904,ARTHUR MORRISON LTD,252,05/02/2021
Delivery Units,Adults and Health,Other Agencies - Third Party P,90328905,ARTHUR MORRISON LTD,126,05/02/2021
Delivery Units,Adults and Health,Other Agencies - Third Party P,90328906,ARTHUR MORRISON LTD,220.5,05/02/2021
Delivery Units,Adults and Health,Other Agencies - Third Party P,90328907,ARTHUR MORRISON LTD,567,05/02/2021
Delivery Units,Adults and Health,Other Agencies - Third Party P,90328910,ARTHUR MORRISON LTD,18,05/02/2021
Delivery Units,Adults and Health,Other Agencies - Third Party P,90328911,ARTHUR MORRISON LTD,283.5,05/02/2021
Delivery Units,Adults and Health,Other Agencies - Third Party P,90328913,ARTHUR MORRISON LTD,463.5,05/02/2021
Delivery Units,Adults and Health,Other Agencies - Third Party P,90328914,ARTHUR MORRISON LTD,364.5,05/02/2021
Delivery Units,Adults and Health,Other Agencies - Third Party P,90328915,ARTHUR MORRISON LTD,220.5,05/02/2021
Delivery Units,Adults and Health,Other Agencies - Third Party P,90328916,ARTHUR MORRISON LTD,220.5,05/02/2021
Delivery Units,Adults and Health,Other Agencies - Third Party P,90328917,ARTHUR MORRISON LTD,252,05/02/2021
Delivery Units,Adults and Health,Other Agencies - Third Party P,90328918,ARTHUR MORRISON LTD,126,05/02/2021
Delivery Units,Adults and Health,Other Agencies - Third Party P,90328919,ARTHUR MORRISON LTD,220.5,05/02/2021
Delivery Units,Adults and Health,Other Agencies - Third Party P,90328920,ARTHUR MORRISON LTD,567,05/02/2021
Delivery Units,Adults and Health,Other Agencies - Third Party P,90328922,ARTHUR MORRISON LTD,18,05/02/2021
Delivery Units,Adults and Health,Other Agencies - Third Party P,90328996,MI HOMECARE LIMITED,54.57,05/02/2021
Delivery Units,Adults and Health,Other Agencies - Third Party P,90328997,MI HOMECARE LIMITED,131.88,05/02/2021
Delivery Units,Adults and Health,Other Agencies - Third Party P,90328998,MI HOMECARE LIMITED,227.38,05/02/2021
Delivery Units,Adults and Health,Other Agencies - Third Party P,90328999,MI HOMECARE LIMITED,54.57,05/02/2021
Delivery Units,Adults and Health,Other Agencies - Third Party P,90329000,MI HOMECARE LIMITED,54.57,05/02/2021
Delivery Units,Adults and Health,Other Agencies - Third Party P,90329001,MI HOMECARE LIMITED,241.02,05/02/2021
Delivery Units,Adults and Health,Other Agencies - Third Party P,90329002,MI HOMECARE LIMITED,127.33,05/02/2021
Delivery Units,Adults and Health,Other Agencies - Third Party P,90329003,MI HOMECARE LIMITED,568.44,05/02/2021
Delivery Units,Adults and Health,Other Agencies - Third Party P,90329004,MI HOMECARE LIMITED,163.71,05/02/2021
Delivery Units,Adults and Health,Other Agencies - Third Party P,90329005,MI HOMECARE LIMITED,281.94,05/02/2021
Delivery Units,Adults and Health,Other Agencies - Third Party P,90329006,MI HOMECARE LIMITED,218.28,05/02/2021
Delivery Units,Adults and Health,Other Agencies - Third Party P,90329007,MI HOMECARE LIMITED,263.76,05/02/2021
Delivery Units,Adults and Health,Other Agencies - Third Party P,90329008,MI HOMECARE LIMITED,68.21,05/02/2021
Delivery Units,Adults and Health,Other Agencies - Third Party P,90329009,MI HOMECARE LIMITED,191,05/02/2021
Delivery Units,Adults and Health,Other Agencies - Third Party P,90329012,MI HOMECARE LIMITED,172.8,05/02/2021
Delivery Units,Adults and Health,Other Agencies - Third Party P,90329013,MI HOMECARE LIMITED,281.94,05/02/2021
Delivery Units,Adults and Health,Other Agencies - Third Party P,90329014,MI HOMECARE LIMITED,40.93,05/02/2021
Delivery Units,Adults and Health,Other Agencies - Third Party P,90329016,MI HOMECARE LIMITED,222.83,05/02/2021
Delivery Units,Adults and Health,Other Agencies - Third Party P,90329017,MI HOMECARE LIMITED,81.86,05/02/2021
Delivery Units,Adults and Health,Other Agencies - Third Party P,90329020,MI HOMECARE LIMITED,309.23,05/02/2021
Delivery Units,Adults and Health,Other Agencies - Third Party P,90329022,MI HOMECARE LIMITED,109.15,05/02/2021
Delivery Units,Adults and Health,Other Agencies - Third Party P,90329023,MI HOMECARE LIMITED,109.14,05/02/2021
Delivery Units,Adults and Health,Other Agencies - Third Party P,90329024,MI HOMECARE LIMITED,181.9,05/02/2021
Delivery Units,Adults and Health,Other Agencies - Third Party P,90329025,MI HOMECARE LIMITED,982.26,05/02/2021
Delivery Units,Adults and Health,Other Agencies - Third Party P,90329026,MI HOMECARE LIMITED,18.19,05/02/2021
Delivery Units,Adults and Health,Other Agencies - Third Party P,90329027,MI HOMECARE LIMITED,254.66,05/02/2021
Delivery Units,Adults and Health,Other Agencies - Third Party P,90329029,MI HOMECARE LIMITED,275.58,05/02/2021
Delivery Units,Adults and Health,Other Agencies - Third Party P,90329030,MI HOMECARE LIMITED,227.38,05/02/2021
Delivery Units,Adults and Health,Other Agencies - Third Party P,90329031,MI HOMECARE LIMITED,127.33,05/02/2021
Delivery Units,Adults and Health,Other Agencies - Third Party P,90329032,MI HOMECARE LIMITED,127.33,05/02/2021
Delivery Units,Adults and Health,Other Agencies - Third Party P,90329033,MI HOMECARE LIMITED,50.02,05/02/2021
Delivery Units,Adults and Health,Other Agencies - Third Party P,90329034,MI HOMECARE LIMITED,154.62,05/02/2021
Delivery Units,Adults and Health,Other Agencies - Third Party P,90329035,MI HOMECARE LIMITED,127.33,05/02/2021
Delivery Units,Adults and Health,Other Agencies - Third Party P,90329038,MI HOMECARE LIMITED,191,05/02/2021
Delivery Units,Adults and Health,Other Agencies - Third Party P,90329039,MI HOMECARE LIMITED,122.78,05/02/2021
Delivery Units,Adults and Health,Other Agencies - Third Party P,90329040,MI HOMECARE LIMITED,127.33,05/02/2021
Delivery Units,Adults and Health,Other Agencies - Third Party P,90329042,MI HOMECARE LIMITED,209.18,05/02/2021
Delivery Units,Adults and Health,Other Agencies - Third Party P,90329043,MI HOMECARE LIMITED,281.94,05/02/2021
Delivery Units,Adults and Health,Other Agencies - Third Party P,90329044,MI HOMECARE LIMITED,81.86,05/02/2021
Delivery Units,Adults and Health,Other Agencies - Third Party P,90329045,MI HOMECARE LIMITED,572.98,05/02/2021
Delivery Units,Adults and Health,Other Agencies - Third Party P,90329047,MI HOMECARE LIMITED,286.49,05/02/2021
Delivery Units,Adults and Health,Other Agencies - Third Party P,90329048,MI HOMECARE LIMITED,95.5,05/02/2021
Delivery Units,Adults and Health,Other Agencies - Third Party P,90329049,MI HOMECARE LIMITED,95.5,05/02/2021
Delivery Units,Adults and Health,Other Agencies - Third Party P,90329050,MI HOMECARE LIMITED,236.47,05/02/2021
Delivery Units,Adults and Health,Other Agencies - Third Party P,90329051,MI HOMECARE LIMITED,241.02,05/02/2021
Delivery Units,Adults and Health,Other Agencies - Third Party P,90329052,MI HOMECARE LIMITED,122.78,05/02/2021
Delivery Units,Adults and Health,Other Agencies - Third Party P,90329053,MI HOMECARE LIMITED,18.19,05/02/2021
Delivery Units,Adults and Health,Other Agencies - Third Party P,90329055,MI HOMECARE LIMITED,641.2,05/02/2021
Delivery Units,Adults and Health,Other Agencies - Third Party P,90329056,MI HOMECARE LIMITED,272.85,05/02/2021
Delivery Units,Adults and Health,Other Agencies - Third Party P,90329058,MI HOMECARE LIMITED,227.38,05/02/2021
Delivery Units,Adults and Health,Other Agencies - Third Party P,90329059,MI HOMECARE LIMITED,277.4,05/02/2021
Delivery Units,Adults and Health,Other Agencies - Third Party P,90329060,MI HOMECARE LIMITED,63.67,05/02/2021
Delivery Units,Adults and Health,Other Agencies - Third Party P,90329062,MI HOMECARE LIMITED,327.42,05/02/2021
Delivery Units,Adults and Health,Other Agencies - Third Party P,90329063,MI HOMECARE LIMITED,518.42,05/02/2021
Delivery Units,Adults and Health,Other Agencies - Third Party P,90329064,MI HOMECARE LIMITED,81.86,05/02/2021
Delivery Units,Adults and Health,Other Agencies - Third Party P,90329065,MI HOMECARE LIMITED,200.09,05/02/2021
Delivery Units,Adults and Health,Other Agencies - Third Party P,90329066,MI HOMECARE LIMITED,95.5,05/02/2021
Delivery Units,Adults and Health,Other Agencies - Third Party P,90329067,MI HOMECARE LIMITED,254.66,05/02/2021
Delivery Units,Adults and Health,Other Agencies - Third Party P,90329068,MI HOMECARE LIMITED,127.33,05/02/2021
Delivery Units,Adults and Health,Other Agencies - Third Party P,90329069,MI HOMECARE LIMITED,286.49,05/02/2021
Delivery Units,Adults and Health,Other Agencies - Third Party P,90329070,MI HOMECARE LIMITED,181.9,05/02/2021
Delivery Units,Adults and Health,Other Agencies - Third Party P,90329071,MI HOMECARE LIMITED,13.64,05/02/2021
Delivery Units,Adults and Health,Other Agencies - Third Party P,90329073,MI HOMECARE LIMITED,277.4,05/02/2021
Delivery Units,Adults and Health,Other Agencies - Third Party P,90329074,MI HOMECARE LIMITED,90.95,05/02/2021
Delivery Units,Adults and Health,Other Agencies - Third Party P,90329075,MI HOMECARE LIMITED,159.16,05/02/2021
Delivery Units,Adults and Health,Other Agencies - Third Party P,90329076,MI HOMECARE LIMITED,54.57,05/02/2021
Delivery Units,Adults and Health,Other Agencies - Third Party P,90329077,MI HOMECARE LIMITED,63.67,05/02/2021
Delivery Units,Adults and Health,Other Agencies - Third Party P,90329078,MI HOMECARE LIMITED,263.76,05/02/2021
Delivery Units,Adults and Health,Other Agencies - Third Party P,90329080,MI HOMECARE LIMITED,286.49,05/02/2021
Delivery Units,Adults and Health,Other Agencies - Third Party P,90329081,MI HOMECARE LIMITED,313.78,05/02/2021
Delivery Units,Adults and Health,Other Agencies - Third Party P,90329082,MI HOMECARE LIMITED,127.33,05/02/2021
Delivery Units,Adults and Health,Other Agencies - Third Party P,90329084,MI HOMECARE LIMITED,336.52,05/02/2021
Delivery Units,Adults and Health,Other Agencies - Third Party P,90329085,MI HOMECARE LIMITED,118.24,05/02/2021
Delivery Units,Adults and Health,Other Agencies - Third Party P,90329087,MI HOMECARE LIMITED,213.73,05/02/2021
Delivery Units,Adults and Health,Other Agencies - Third Party P,90329088,MI HOMECARE LIMITED,136.43,05/02/2021
Delivery Units,Adults and Health,Other Agencies - Third Party P,90329090,MI HOMECARE LIMITED,318.33,05/02/2021
Delivery Units,Adults and Health,Other Agencies - Third Party P,90329091,MI HOMECARE LIMITED,90.95,05/02/2021
Delivery Units,Adults and Health,Other Agencies - Third Party P,90329092,MI HOMECARE LIMITED,222.83,05/02/2021
Delivery Units,Adults and Health,Other Agencies - Third Party P,90329093,MI HOMECARE LIMITED,81.86,05/02/2021
Delivery Units,Adults and Health,Other Agencies - Third Party P,90329096,MI HOMECARE LIMITED,159.16,05/02/2021
Delivery Units,Adults and Health,Other Agencies - Third Party P,90329097,MI HOMECARE LIMITED,577.57,05/02/2021
Delivery Units,Adults and Health,Other Agencies - Third Party P,90329098,MI HOMECARE LIMITED,272.85,05/02/2021
Delivery Units,Adults and Health,Other Agencies - Third Party P,90329100,MI HOMECARE LIMITED,122.78,05/02/2021
Delivery Units,Adults and Health,Other Agencies - Third Party P,90329101,MI HOMECARE LIMITED,445.66,05/02/2021
Delivery Units,Adults and Health,Other Agencies - Third Party P,90329102,MI HOMECARE LIMITED,222.83,05/02/2021
Delivery Units,Adults and Health,Other Agencies - Third Party P,90329103,MI HOMECARE LIMITED,131.88,05/02/2021
Delivery Units,Adults and Health,Other Agencies - Third Party P,90329104,MI HOMECARE LIMITED,127.33,05/02/2021
Delivery Units,Adults and Health,Other Agencies - Third Party P,90329105,MI HOMECARE LIMITED,254.66,05/02/2021
Delivery Units,Adults and Health,Other Agencies - Third Party P,90329106,MI HOMECARE LIMITED,286.49,05/02/2021
Delivery Units,Adults and Health,Other Agencies - Third Party P,90329107,MI HOMECARE LIMITED,695.77,05/02/2021
Delivery Units,Adults and Health,Other Agencies - Third Party P,90329109,MI HOMECARE LIMITED,95.5,05/02/2021
Delivery Units,Adults and Health,Other Agencies - Third Party P,90329110,MI HOMECARE LIMITED,286.49,05/02/2021
Delivery Units,Adults and Health,Other Agencies - Third Party P,90329111,MI HOMECARE LIMITED,445.66,05/02/2021
Delivery Units,Adults and Health,Other Agencies - Third Party P,90329112,MI HOMECARE LIMITED,127.33,05/02/2021
Delivery Units,Adults and Health,Other Agencies - Third Party P,90329113,MI HOMECARE LIMITED,286.49,05/02/2021
Delivery Units,Adults and Health,Other Agencies - Third Party P,90329114,MI HOMECARE LIMITED,327.42,05/02/2021
Delivery Units,Adults and Health,Other Agencies - Third Party P,90329116,MI HOMECARE LIMITED,127.33,05/02/2021
Delivery Units,Adults and Health,Other Agencies - Third Party P,90329118,MI HOMECARE LIMITED,186.45,05/02/2021
Delivery Units,Adults and Health,Other Agencies - Third Party P,90329122,MI HOMECARE LIMITED,13.64,05/02/2021
Delivery Units,Adults and Health,Other Agencies - Third Party P,90329123,MI HOMECARE LIMITED,127.33,05/02/2021
Delivery Units,Adults and Health,Other Agencies - Third Party P,90329124,MI HOMECARE LIMITED,95.5,05/02/2021
Delivery Units,Adults and Health,Other Agencies - Third Party P,90329125,MI HOMECARE LIMITED,222.83,05/02/2021
Delivery Units,Adults and Health,Other Agencies - Third Party P,90329126,MI HOMECARE LIMITED,127.33,05/02/2021
Delivery Units,Adults and Health,Other Agencies - Third Party P,90329127,MI HOMECARE LIMITED,45.48,05/02/2021
Delivery Units,Adults and Health,Other Agencies - Third Party P,90329128,MI HOMECARE LIMITED,113.69,05/02/2021
Delivery Units,Adults and Health,Other Agencies - Third Party P,90329129,MI HOMECARE LIMITED,209.18,05/02/2021
Delivery Units,Adults and Health,Other Agencies - Third Party P,90329130,MI HOMECARE LIMITED,291.04,05/02/2021
Delivery Units,Adults and Health,Other Agencies - Third Party P,90329132,MI HOMECARE LIMITED,40.93,05/02/2021
Delivery Units,Adults and Health,Other Agencies - Third Party P,90329133,MI HOMECARE LIMITED,336.52,05/02/2021
Delivery Units,Adults and Health,Other Agencies - Third Party P,90329134,MI HOMECARE LIMITED,218.28,05/02/2021
Delivery Units,Adults and Health,Other Agencies - Third Party P,90329135,MI HOMECARE LIMITED,54.57,05/02/2021
Delivery Units,Adults and Health,Other Agencies - Third Party P,90329137,MI HOMECARE LIMITED,209.18,05/02/2021
Delivery Units,Adults and Health,Other Agencies - Third Party P,90329138,MI HOMECARE LIMITED,191,05/02/2021
Delivery Units,Adults and Health,Other Agencies - Third Party P,90329141,MI HOMECARE LIMITED,318.33,05/02/2021
Delivery Units,Adults and Health,Other Agencies - Third Party P,90329143,MI HOMECARE LIMITED,27.29,05/02/2021
Delivery Units,Adults and Health,Other Agencies - Third Party P,90329144,MI HOMECARE LIMITED,341.06,05/02/2021
Delivery Units,Adults and Health,Other Agencies - Third Party P,90329145,MI HOMECARE LIMITED,259.2,05/02/2021
Delivery Units,Adults and Health,Other Agencies - Third Party P,90329147,MI HOMECARE LIMITED,59.12,05/02/2021
Delivery Units,Adults and Health,Other Agencies - Third Party P,90329148,MI HOMECARE LIMITED,254.66,05/02/2021
Delivery Units,Adults and Health,Other Agencies - Third Party P,90329149,MI HOMECARE LIMITED,286.49,05/02/2021
Delivery Units,Adults and Health,Other Agencies - Third Party P,90329151,MI HOMECARE LIMITED,691.22,05/02/2021
Delivery Units,Adults and Health,Other Agencies - Third Party P,90329152,MI HOMECARE LIMITED,350.16,05/02/2021
Delivery Units,Adults and Health,Other Agencies - Third Party P,90329153,MI HOMECARE LIMITED,272.85,05/02/2021
Delivery Units,Adults and Health,Other Agencies - Third Party P,90329154,MI HOMECARE LIMITED,13.64,05/02/2021
Delivery Units,Adults and Health,Other Agencies - Third Party P,90329155,MI HOMECARE LIMITED,159.16,05/02/2021
Delivery Units,Adults and Health,Other Agencies - Third Party P,90329157,MI HOMECARE LIMITED,54.57,05/02/2021
Delivery Units,Adults and Health,Other Agencies - Third Party P,90329158,MI HOMECARE LIMITED,318.33,05/02/2021
Delivery Units,Adults and Health,Other Agencies - Third Party P,90329160,MI HOMECARE LIMITED,241.02,05/02/2021
Delivery Units,Adults and Health,Other Agencies - Third Party P,90329164,MI HOMECARE LIMITED,95.5,05/02/2021
Delivery Units,Adults and Health,Other Agencies - Third Party P,90329165,MI HOMECARE LIMITED,723.05,05/02/2021
Delivery Units,Adults and Health,Other Agencies - Third Party P,90329166,MI HOMECARE LIMITED,45.48,05/02/2021
Delivery Units,Adults and Health,Other Agencies - Third Party P,90329168,MI HOMECARE LIMITED,63.67,05/02/2021
Delivery Units,Adults and Health,Other Agencies - Third Party P,90329169,MI HOMECARE LIMITED,318.33,05/02/2021
Delivery Units,Adults and Health,Other Agencies - Third Party P,90329170,MI HOMECARE LIMITED,159.16,05/02/2021
Delivery Units,Adults and Health,Other Agencies - Third Party P,90329179,MI HOMECARE LIMITED,113.69,05/02/2021
Delivery Units,Adults and Health,Other Agencies - Third Party P,90329181,MI HOMECARE LIMITED,54.57,05/02/2021
Delivery Units,Adults and Health,Other Agencies - Third Party P,90329182,THAMES HOMECARE SERVICES LTD,528.57,05/02/2021
Delivery Units,Adults and Health,Other Agencies - Third Party P,90329183,THAMES HOMECARE SERVICES LTD,587.44,05/02/2021
Delivery Units,Adults and Health,Other Agencies - Third Party P,90329185,THAMES HOMECARE SERVICES LTD,352.45,05/02/2021
Delivery Units,Adults and Health,Other Agencies - Third Party P,90329186,THAMES HOMECARE SERVICES LTD,151.02,05/02/2021
Delivery Units,Adults and Health,Other Agencies - Third Party P,90329188,THAMES HOMECARE SERVICES LTD,176.19,05/02/2021
Delivery Units,Adults and Health,Other Agencies - Third Party P,90329189,THAMES HOMECARE SERVICES LTD,587.3,05/02/2021
Delivery Units,Adults and Health,Other Agencies - Third Party P,90329190,THAMES HOMECARE SERVICES LTD,142.63,05/02/2021
Delivery Units,Adults and Health,Other Agencies - Third Party P,90329192,THAMES HOMECARE SERVICES LTD,704.76,05/02/2021
Delivery Units,Adults and Health,Other Agencies - Third Party P,90329194,THAMES HOMECARE SERVICES LTD,352.52,05/02/2021
Delivery Units,Adults and Health,Other Agencies - Third Party P,90329195,THAMES HOMECARE SERVICES LTD,264.32,05/02/2021
Delivery Units,Adults and Health,Other Agencies - Third Party P,90329196,THAMES HOMECARE SERVICES LTD,264.32,05/02/2021
Delivery Units,Adults and Health,Other Agencies - Third Party P,90329197,THAMES HOMECARE SERVICES LTD,763.7,05/02/2021
Delivery Units,Adults and Health,Other Agencies - Third Party P,90329198,THAMES HOMECARE SERVICES LTD,679.8,05/02/2021
Delivery Units,Adults and Health,Other Agencies - Third Party P,90329200,THAMES HOMECARE SERVICES LTD,281.1,05/02/2021
Delivery Units,Adults and Health,Other Agencies - Third Party P,90329201,THAMES HOMECARE SERVICES LTD,285.26,05/02/2021
Delivery Units,Adults and Health,Other Agencies - Third Party P,90329203,THAMES HOMECARE SERVICES LTD,360.77,05/02/2021
Delivery Units,Adults and Health,Other Agencies - Third Party P,90329204,THAMES HOMECARE SERVICES LTD,205.59,05/02/2021
Delivery Units,Adults and Health,Other Agencies - Third Party P,90329205,THAMES HOMECARE SERVICES LTD,117.46,05/02/2021
Delivery Units,Adults and Health,Other Agencies - Third Party P,90329206,THAMES HOMECARE SERVICES LTD,142.63,05/02/2021
Delivery Units,Adults and Health,Other Agencies - Third Party P,90329207,THAMES HOMECARE SERVICES LTD,234.92,05/02/2021
Delivery Units,Adults and Health,Other Agencies - Third Party P,90329208,THAMES HOMECARE SERVICES LTD,264.32,05/02/2021
Delivery Units,Adults and Health,Other Agencies - Third Party P,90329209,THAMES HOMECARE SERVICES LTD,155.22,05/02/2021
Delivery Units,Adults and Health,Other Agencies - Third Party P,90329210,THAMES HOMECARE SERVICES LTD,54.55,05/02/2021
Delivery Units,Adults and Health,Other Agencies - Third Party P,90329211,THAMES HOMECARE SERVICES LTD,792.86,05/02/2021
Delivery Units,Adults and Health,Other Agencies - Third Party P,90329212,THAMES HOMECARE SERVICES LTD,381.85,05/02/2021
Delivery Units,Adults and Health,Other Agencies - Third Party P,90329213,THAMES HOMECARE SERVICES LTD,381.78,05/02/2021
Delivery Units,Adults and Health,Other Agencies - Third Party P,90329214,THAMES HOMECARE SERVICES LTD,323.05,05/02/2021
Delivery Units,Adults and Health,Other Agencies - Third Party P,90329215,THAMES HOMECARE SERVICES LTD,335.67,05/02/2021
Delivery Units,Adults and Health,Other Agencies - Third Party P,90329216,THAMES HOMECARE SERVICES LTD,117.46,05/02/2021
Delivery Units,Adults and Health,Other Agencies - Third Party P,90329217,THAMES HOMECARE SERVICES LTD,117.46,05/02/2021
Delivery Units,Adults and Health,Other Agencies - Third Party P,90329218,THAMES HOMECARE SERVICES LTD,146.86,05/02/2021
Delivery Units,Adults and Health,Other Agencies - Third Party P,90329219,THAMES HOMECARE SERVICES LTD,704.83,05/02/2021
Delivery Units,Adults and Health,Other Agencies - Third Party P,90329220,THAMES HOMECARE SERVICES LTD,146.86,05/02/2021
Delivery Units,Adults and Health,Other Agencies - Third Party P,90329221,THAMES HOMECARE SERVICES LTD,587.44,05/02/2021
Delivery Units,Adults and Health,Other Agencies - Third Party P,90329222,THAMES HOMECARE SERVICES LTD,88.13,05/02/2021
Delivery Units,Adults and Health,Other Agencies - Third Party P,90329223,THAMES HOMECARE SERVICES LTD,293.65,05/02/2021
Delivery Units,Adults and Health,Other Agencies - Third Party P,90329224,THAMES HOMECARE SERVICES LTD,763.7,05/02/2021
Delivery Units,Adults and Health,Other Agencies - Third Party P,90329225,THAMES HOMECARE SERVICES LTD,293.72,05/02/2021
Delivery Units,Adults and Health,Other Agencies - Third Party P,90329226,THAMES HOMECARE SERVICES LTD,264.32,05/02/2021
Delivery Units,Adults and Health,Other Agencies - Third Party P,90329227,THAMES HOMECARE SERVICES LTD,276.91,05/02/2021
Delivery Units,Adults and Health,Other Agencies - Third Party P,90329228,THAMES HOMECARE SERVICES LTD,469.84,05/02/2021
Delivery Units,Adults and Health,Other Agencies - Third Party P,90329229,THAMES HOMECARE SERVICES LTD,704.9,05/02/2021
Delivery Units,Adults and Health,Other Agencies - Third Party P,90329231,THAMES HOMECARE SERVICES LTD,587.3,05/02/2021
Delivery Units,Adults and Health,Other Agencies - Third Party P,90329232,THAMES HOMECARE SERVICES LTD,469.98,05/02/2021
Delivery Units,Adults and Health,Other Agencies - Third Party P,90329234,THAMES HOMECARE SERVICES LTD,675.5,05/02/2021
Delivery Units,Adults and Health,Other Agencies - Third Party P,90329235,THAMES HOMECARE SERVICES LTD,293.65,05/02/2021
Delivery Units,Adults and Health,Other Agencies - Third Party P,90329237,THAMES HOMECARE SERVICES LTD,88.13,05/02/2021
Delivery Units,Adults and Health,Other Agencies - Third Party P,90329239,THAMES HOMECARE SERVICES LTD,117.46,05/02/2021
Delivery Units,Adults and Health,Other Agencies - Third Party P,90329240,THAMES HOMECARE SERVICES LTD,146.86,05/02/2021
Delivery Units,Adults and Health,Other Agencies - Third Party P,90329242,THAMES HOMECARE SERVICES LTD,146.86,05/02/2021
Delivery Units,Adults and Health,Other Agencies - Third Party P,90329243,THAMES HOMECARE SERVICES LTD,620.93,05/02/2021
Delivery Units,Adults and Health,Other Agencies - Third Party P,90329246,THAMES HOMECARE SERVICES LTD,763.56,05/02/2021
Delivery Units,Adults and Health,Other Agencies - Third Party P,90329248,THAMES HOMECARE SERVICES LTD,251.7,05/02/2021
Delivery Units,Adults and Health,Other Agencies - Third Party P,90329249,THAMES HOMECARE SERVICES LTD,213.98,05/02/2021
Delivery Units,Adults and Health,Other Agencies - Third Party P,90329250,THAMES HOMECARE SERVICES LTD,704.76,05/02/2021
Delivery Units,Adults and Health,Other Agencies - Third Party P,90329251,THAMES HOMECARE SERVICES LTD,88.13,05/02/2021
Delivery Units,Adults and Health,Other Agencies - Third Party P,90329252,THAMES HOMECARE SERVICES LTD,146.86,05/02/2021
Delivery Units,Adults and Health,Other Agencies - Third Party P,90329253,THAMES HOMECARE SERVICES LTD,327.21,05/02/2021
Delivery Units,Adults and Health,Other Agencies - Third Party P,90329254,THAMES HOMECARE SERVICES LTD,205.59,05/02/2021
Delivery Units,Adults and Health,Other Agencies - Third Party P,90329255,THAMES HOMECARE SERVICES LTD,763.7,05/02/2021
Delivery Units,Adults and Health,Other Agencies - Third Party P,90329256,THAMES HOMECARE SERVICES LTD,"3,179.81",05/02/2021
Delivery Units,Adults and Health,Other Agencies - Third Party P,90329257,THAMES HOMECARE SERVICES LTD,910.49,05/02/2021
Delivery Units,Adults and Health,Other Agencies - Third Party P,90329258,THAMES HOMECARE SERVICES LTD,264.32,05/02/2021
Delivery Units,Adults and Health,Other Agencies - Third Party P,90329259,THAMES HOMECARE SERVICES LTD,293.65,05/02/2021
Delivery Units,Adults and Health,Other Agencies - Third Party P,90329260,THAMES HOMECARE SERVICES LTD,58.73,05/02/2021
Delivery Units,Adults and Health,Other Agencies - Third Party P,90329262,THAMES HOMECARE SERVICES LTD,16.78,05/02/2021
Delivery Units,Adults and Health,Other Agencies - Third Party P,90329263,THAMES HOMECARE SERVICES LTD,117.46,05/02/2021
Delivery Units,Adults and Health,Other Agencies - Third Party P,90329264,THAMES HOMECARE SERVICES LTD,587.44,05/02/2021
Delivery Units,Adults and Health,Other Agencies - Third Party P,90329267,THAMES HOMECARE SERVICES LTD,134.24,05/02/2021
Delivery Units,Adults and Health,Other Agencies - Third Party P,90329268,THAMES HOMECARE SERVICES LTD,704.9,05/02/2021
Delivery Units,Adults and Health,Other Agencies - Third Party P,90329269,THAMES HOMECARE SERVICES LTD,205.59,05/02/2021
Delivery Units,Adults and Health,Other Agencies - Third Party P,90329270,THAMES HOMECARE SERVICES LTD,213.99,05/02/2021
Delivery Units,Adults and Health,Other Agencies - Third Party P,90329271,THAMES HOMECARE SERVICES LTD,121.68,05/02/2021
Delivery Units,Adults and Health,Other Agencies - Third Party P,90329272,THAMES HOMECARE SERVICES LTD,415.34,05/02/2021
Delivery Units,Adults and Health,Other Agencies - Third Party P,90329273,THAMES HOMECARE SERVICES LTD,218.14,05/02/2021
Delivery Units,Adults and Health,Other Agencies - Third Party P,90329275,THAMES HOMECARE SERVICES LTD,205.59,05/02/2021
Delivery Units,Adults and Health,Other Agencies - Third Party P,90329276,THAMES HOMECARE SERVICES LTD,205.59,05/02/2021
Delivery Units,Adults and Health,Other Agencies - Third Party P,90329279,THAMES HOMECARE SERVICES LTD,75.51,05/02/2021
Delivery Units,Adults and Health,Other Agencies - Third Party P,90329280,THAMES HOMECARE SERVICES LTD,205.55,05/02/2021
Delivery Units,Adults and Health,Other Agencies - Third Party P,90329284,THAMES HOMECARE SERVICES LTD,134.24,05/02/2021
Delivery Units,Adults and Health,Other Agencies - Third Party P,90329292,THAMES HOMECARE SERVICES LTD,461.5,05/02/2021
Delivery Units,Adults and Health,Other Agencies - Third Party P,90329296,THAMES HOMECARE SERVICES LTD,167.8,05/02/2021
Delivery Units,Adults and Health,Other Agencies - Third Party P,90329297,THAMES HOMECARE SERVICES LTD,96.49,05/02/2021
Delivery Units,Adults and Health,Other Agencies - Third Party P,90329298,THAMES HOMECARE SERVICES LTD,822.36,05/02/2021
Delivery Units,Adults and Health,Other Agencies - Third Party P,90329300,THAMES HOMECARE SERVICES LTD,763.7,05/02/2021
Delivery Units,Adults and Health,Other Agencies - Third Party P,90329301,THAMES HOMECARE SERVICES LTD,176.26,05/02/2021
Delivery Units,Adults and Health,Other Agencies - Third Party P,90329302,THAMES HOMECARE SERVICES LTD,411.18,05/02/2021
Delivery Units,Adults and Health,Other Agencies - Third Party P,90329303,THAMES HOMECARE SERVICES LTD,587.3,05/02/2021
Delivery Units,Adults and Health,Other Agencies - Third Party P,90329727,BLISS CARE AND TRAINING LTD,"3,198.05",08/02/2021
Delivery Units,Adults and Health,Other Agencies - Third Party P,90329735,BLISS CARE AND TRAINING LTD,238.76,08/02/2021
Delivery Units,Adults and Health,Other Agencies - Third Party P,90329739,BLISS CARE AND TRAINING LTD,607.44,08/02/2021
Delivery Units,Adults and Health,Other Agencies - Third Party P,90329740,BLISS CARE AND TRAINING LTD,"2,720.34",08/02/2021
Delivery Units,Adults and Health,Other Agencies - Third Party P,90329747,BLISS CARE AND TRAINING LTD,141.68,08/02/2021
Delivery Units,Adults and Health,Other Agencies - Third Party P,90329748,BLISS CARE AND TRAINING LTD,141.66,08/02/2021
Delivery Units,Adults and Health,Other Agencies - Third Party P,90329749,BLISS CARE AND TRAINING LTD,510.16,08/02/2021
Delivery Units,Adults and Health,Other Agencies - Third Party P,90329750,BLISS CARE AND TRAINING LTD,793.31,08/02/2021
Delivery Units,Adults and Health,Other Agencies - Third Party P,90329751,BLISS CARE AND TRAINING LTD,368.27,08/02/2021
Delivery Units,Adults and Health,Other Agencies - Third Party P,90329752,BLISS CARE AND TRAINING LTD,97.14,08/02/2021
Delivery Units,Adults and Health,Other Agencies - Third Party P,90329753,BLISS CARE AND TRAINING LTD,510.16,08/02/2021
Delivery Units,Adults and Health,Other Agencies - Third Party P,90329754,BLISS CARE AND TRAINING LTD,339.99,08/02/2021
Delivery Units,Adults and Health,Other Agencies - Third Party P,90329755,BLISS CARE AND TRAINING LTD,283.36,08/02/2021
Delivery Units,Adults and Health,Other Agencies - Third Party P,90329756,BLISS CARE AND TRAINING LTD,105.23,08/02/2021
Delivery Units,Adults and Health,Other Agencies - Third Party P,90329757,KAAMIL EDUCATION LTD,"1,164.50",08/02/2021
Delivery Units,Adults and Health,Other Agencies - Third Party P,90329758,ST GEORGES HOME CARE LTD,815.06,08/02/2021
Delivery Units,Adults and Health,Other Agencies - Third Party P,90329759,ST GEORGES HOME CARE LTD,846.56,08/02/2021
Delivery Units,Adults and Health,Other Agencies - Third Party P,90329821,BLISS CARE AND TRAINING LTD,"2,096.92",08/02/2021
Delivery Units,Adults and Health,Other Agencies - Third Party P,90329741,OASIS CARE & TRAINING AGENCY,545.02,08/02/2021
Delivery Units,Adults and Health,Other Agencies - Third Party P,90329742,OASIS CARE & TRAINING AGENCY,666.12,08/02/2021
Delivery Units,Adults and Health,Other Agencies - Third Party P,90329743,OASIS CARE & TRAINING AGENCY,302.82,08/02/2021
Delivery Units,Adults and Health,Other Agencies - Third Party P,90329745,OASIS CARE & TRAINING AGENCY,211.96,08/02/2021
Delivery Units,Adults and Health,Other Agencies - Third Party P,90329763,BLUEBIRD CARE (BARNET),848.4,08/02/2021
Delivery Units,Adults and Health,Other Agencies - Third Party P,90329764,BLUEBIRD CARE (BARNET),247.45,08/02/2021
Delivery Units,Adults and Health,Other Agencies - Third Party P,90329767,BLUEBIRD CARE (BARNET),247.45,08/02/2021
Delivery Units,Adults and Health,Other Agencies - Third Party P,90329770,BLUEBIRD CARE (BARNET),424.2,08/02/2021
Delivery Units,Adults and Health,Other Agencies - Third Party P,90329771,BLUEBIRD CARE (BARNET),106.05,08/02/2021
Delivery Units,Adults and Health,Other Agencies - Third Party P,90329772,BLUEBIRD CARE (BARNET),282.8,08/02/2021
Delivery Units,Adults and Health,Other Agencies - Third Party P,90329773,BLUEBIRD CARE (BARNET),"1,400.00",08/02/2021
Delivery Units,Adults and Health,Other Agencies - Third Party P,90329774,BLUEBIRD CARE (BARNET),75.75,08/02/2021
Delivery Units,Adults and Health,Other Agencies - Third Party P,90329776,BLUEBIRD CARE (BARNET),353.5,08/02/2021
Delivery Units,Adults and Health,Other Agencies - Third Party P,90329778,BLUEBIRD CARE (BARNET),212.1,08/02/2021
Delivery Units,Adults and Health,Other Agencies - Third Party P,90329779,BLUEBIRD CARE (BARNET),136.35,08/02/2021
Delivery Units,Adults and Health,Other Agencies - Third Party P,90329780,BLUEBIRD CARE (BARNET),323.2,08/02/2021
Delivery Units,Adults and Health,Other Agencies - Third Party P,90329781,BLUEBIRD CARE (BARNET),287.85,08/02/2021
Delivery Units,Adults and Health,Other Agencies - Third Party P,90329782,BLUEBIRD CARE (BARNET),409.05,08/02/2021
Delivery Units,Adults and Health,Other Agencies - Third Party P,90329783,BLUEBIRD CARE (BARNET),106.05,08/02/2021
Delivery Units,Adults and Health,Other Agencies - Third Party P,90329784,BLUEBIRD CARE (BARNET),282.8,08/02/2021
Delivery Units,Adults and Health,Other Agencies - Third Party P,90329785,BLUEBIRD CARE (BARNET),"1,066.80",08/02/2021
Delivery Units,Adults and Health,Other Agencies - Third Party P,90329786,BLUEBIRD CARE (BARNET),75.75,08/02/2021
Delivery Units,Adults and Health,Other Agencies - Third Party P,90329787,BLUEBIRD CARE (BARNET),353.5,08/02/2021
Delivery Units,Adults and Health,Other Agencies - Third Party P,90329788,BLUEBIRD CARE (BARNET),75.75,08/02/2021
Delivery Units,Adults and Health,Other Agencies - Third Party P,90329790,BLUEBIRD CARE (BARNET),823.15,08/02/2021
Delivery Units,Adults and Health,Other Agencies - Third Party P,90329791,BLUEBIRD CARE (BARNET),247.45,08/02/2021
Delivery Units,Adults and Health,Other Agencies - Third Party P,90329794,BLUEBIRD CARE (BARNET),247.45,08/02/2021
Delivery Units,Adults and Health,Other Agencies - Third Party P,90329797,BLUEBIRD CARE (BARNET),424.2,08/02/2021
Delivery Units,Adults and Health,Other Agencies - Third Party P,90329798,BLUEBIRD CARE (BARNET),106.05,08/02/2021
Delivery Units,Adults and Health,Other Agencies - Third Party P,90329799,BLUEBIRD CARE (BARNET),282.8,08/02/2021
Delivery Units,Adults and Health,Other Agencies - Third Party P,90329800,BLUEBIRD CARE (BARNET),"1,400.00",08/02/2021
Delivery Units,Adults and Health,Other Agencies - Third Party P,90329801,BLUEBIRD CARE (BARNET),75.75,08/02/2021
Delivery Units,Adults and Health,Other Agencies - Third Party P,90329803,BLUEBIRD CARE (BARNET),353.5,08/02/2021
Delivery Units,Adults and Health,Other Agencies - Third Party P,90329804,BLUEBIRD CARE (BARNET),784,08/02/2021
Delivery Units,Adults and Health,Other Agencies - Third Party P,90329805,BLUEBIRD CARE (BARNET),212.1,08/02/2021
Delivery Units,Adults and Health,Other Agencies - Third Party P,90329806,BLUEBIRD CARE (BARNET),353.5,08/02/2021
Delivery Units,Adults and Health,Other Agencies - Third Party P,90329807,BLUEBIRD CARE (BARNET),287.85,08/02/2021
Delivery Units,Adults and Health,Other Agencies - Third Party P,90329808,BLUEBIRD CARE (BARNET),277.75,08/02/2021
Delivery Units,Adults and Health,Other Agencies - Third Party P,90329809,BLUEBIRD CARE (BARNET),156.55,08/02/2021
Delivery Units,Adults and Health,Other Agencies - Third Party P,90329810,BLUEBIRD CARE (BARNET),282.8,08/02/2021
Delivery Units,Adults and Health,Other Agencies - Third Party P,90329811,BLUEBIRD CARE (BARNET),"1,066.80",08/02/2021
Delivery Units,Adults and Health,Other Agencies - Third Party P,90329812,BLUEBIRD CARE (BARNET),75.75,08/02/2021
Delivery Units,Adults and Health,Other Agencies - Third Party P,90329813,BLUEBIRD CARE (BARNET),353.5,08/02/2021
Delivery Units,Adults and Health,Other Agencies - Third Party P,90329814,BLUEBIRD CARE (BARNET),75.75,08/02/2021
Delivery Units,Adults and Health,Other Agencies - Third Party P,90329819,SOMA HEALTHCARE LTD,841.75,08/02/2021
Delivery Units,Adults and Health,Other Agencies - Third Party P,90329822,BARNET CARERS CENTRE,653.31,08/02/2021
Delivery Units,Adults and Health,Other Agencies - Third Party P,90329824,BARNET CARERS CENTRE,409.64,08/02/2021
Delivery Units,Adults and Health,Other Agencies - Third Party P,90329826,BARNET CARERS CENTRE,443.73,08/02/2021
Delivery Units,Adults and Health,Other Agencies - Third Party P,90329829,BARNET CARERS CENTRE,682.64,08/02/2021
Delivery Units,Adults and Health,Other Agencies - Third Party P,90329832,BARNET CARERS CENTRE,546.06,08/02/2021
Delivery Units,Adults and Health,Other Agencies - Third Party P,90329834,BARNET CARERS CENTRE,409.64,08/02/2021
Delivery Units,Adults and Health,Other Agencies - Third Party P,90329836,BARNET CARERS CENTRE,131.65,08/02/2021
Delivery Units,Adults and Health,Other Agencies - Third Party P,90329839,BARNET CARERS CENTRE,663.11,08/02/2021
Delivery Units,Adults and Health,Other Agencies - Third Party P,90329842,BARNET CARERS CENTRE,604.55,08/02/2021
Delivery Units,Adults and Health,Other Agencies - Third Party P,90329844,BARNET CARERS CENTRE,409.64,08/02/2021
Delivery Units,Adults and Health,Other Agencies - Third Party P,90329848,BARNET CARERS CENTRE,682.64,08/02/2021
Delivery Units,Adults and Health,Other Agencies - Third Party P,1006897202,THE BARNETGROUP LIMITED,951.89,09/02/2021
Delivery Units,Adults and Health,Other Agencies - Third Party P,1006898002,THE BARNETGROUP LIMITED,951.52,09/02/2021
Delivery Units,Adults and Health,Other Agencies - Third Party P,1006898402,THE BARNETGROUP LIMITED,375,09/02/2021
Delivery Units,Adults and Health,Other Agencies - Third Party P,1006899002,THE BARNETGROUP LIMITED,375,09/02/2021
Delivery Units,Adults and Health,Other Agencies - Third Party P,1006958702,HARTWIG CARE LIMITED,886.71,10/02/2021
Delivery Units,Adults and Health,Other Agencies - Third Party P,90330008,THE LINK CARE NURSING AGENCY LTD,"1,560.00",11/02/2021
Delivery Units,Adults and Health,Other Agencies - Third Party P,90330011,THE LINK CARE NURSING AGENCY LTD,"1,400.00",11/02/2021
Delivery Units,Adults and Health,Other Agencies - Third Party P,90330012,THE LINK CARE NURSING AGENCY LTD,"1,535.25",11/02/2021
Delivery Units,Adults and Health,Other Agencies - Third Party P,90330015,THE LINK CARE NURSING AGENCY LTD,"1,084.91",11/02/2021
Delivery Units,Adults and Health,Other Agencies - Third Party P,90330018,THE LINK CARE NURSING AGENCY LTD,"1,760.00",11/02/2021
Delivery Units,Adults and Health,Other Agencies - Third Party P,90330020,THE LINK CARE NURSING AGENCY LTD,"1,680.00",11/02/2021
Delivery Units,Adults and Health,Other Agencies - Third Party P,90330022,THE LINK CARE NURSING AGENCY LTD,"1,340.00",11/02/2021
Delivery Units,Adults and Health,Other Agencies - Third Party P,90330023,THE LINK CARE NURSING AGENCY LTD,"1,080.00",11/02/2021
Delivery Units,Adults and Health,Other Agencies - Third Party P,90330024,THE LINK CARE NURSING AGENCY LTD,275,11/02/2021
Delivery Units,Adults and Health,Other Agencies - Third Party P,90330025,THE LINK CARE NURSING AGENCY LTD,"2,520.00",11/02/2021
Delivery Units,Adults and Health,Other Agencies - Third Party P,90330028,THE LINK CARE NURSING AGENCY LTD,163.76,11/02/2021
Delivery Units,Adults and Health,Other Agencies - Third Party P,90330029,THE LINK CARE NURSING AGENCY LTD,"2,520.00",11/02/2021
Delivery Units,Adults and Health,Other Agencies - Third Party P,90330030,THE LINK CARE NURSING AGENCY LTD,"2,180.06",11/02/2021
Delivery Units,Adults and Health,Other Agencies - Third Party P,90330032,THE LINK CARE NURSING AGENCY LTD,"1,200.00",11/02/2021
Delivery Units,Adults and Health,Other Agencies - Third Party P,90330033,THE LINK CARE NURSING AGENCY LTD,"1,709.25",11/02/2021
Delivery Units,Adults and Health,Other Agencies - Third Party P,90330034,THE LINK CARE NURSING AGENCY LTD,"3,080.00",11/02/2021
Delivery Units,Adults and Health,Other Agencies - Third Party P,90330035,THE LINK CARE NURSING AGENCY LTD,573.16,11/02/2021
Delivery Units,Adults and Health,Other Agencies - Third Party P,90330036,THE LINK CARE NURSING AGENCY LTD,"1,400.00",11/02/2021
Delivery Units,Adults and Health,Other Agencies - Third Party P,90330037,THE LINK CARE NURSING AGENCY LTD,"1,146.32",11/02/2021
Delivery Units,Adults and Health,Other Agencies - Third Party P,90330038,THE LINK CARE NURSING AGENCY LTD,"1,820.00",11/02/2021
Delivery Units,Adults and Health,Other Agencies - Third Party P,90330039,THE LINK CARE NURSING AGENCY LTD,736.92,11/02/2021
Delivery Units,Adults and Health,Other Agencies - Third Party P,90330040,THE LINK CARE NURSING AGENCY LTD,"1,920.00",11/02/2021
Delivery Units,Adults and Health,Other Agencies - Third Party P,90330041,THE LINK CARE NURSING AGENCY LTD,840,11/02/2021
Delivery Units,Adults and Health,Other Agencies - Third Party P,90330189,HERTSMERE VALLEY CARE SERVICES LIMITED,425,11/02/2021
Delivery Units,Adults and Health,Other Agencies - Third Party P,90330190,HERTSMERE VALLEY CARE SERVICES LIMITED,261,11/02/2021
Delivery Units,Adults and Health,Other Agencies - Third Party P,90330191,PRINGLE'S CARE SERVICES LTD,189,11/02/2021
Delivery Units,Adults and Health,Other Agencies - Third Party P,90330193,PRINGLE'S CARE SERVICES LTD,189,11/02/2021
Delivery Units,Adults and Health,Other Agencies - Third Party P,90330194,PRINGLE'S CARE SERVICES LTD,189,11/02/2021
Delivery Units,Adults and Health,Other Agencies - Third Party P,90330195,PRINGLE'S CARE SERVICES LTD,189,11/02/2021
Delivery Units,Adults and Health,Other Agencies - Third Party P,90330197,DEAFBLIND UK,"1,485.04",11/02/2021
Delivery Units,Adults and Health,Other Agencies - Third Party P,90329895,WESTMINSTER HOMECARE LTD,151.79,11/02/2021
Delivery Units,Adults and Health,Other Agencies - Third Party P,90329896,WESTMINSTER HOMECARE LTD,71.67,11/02/2021
Delivery Units,Adults and Health,Other Agencies - Third Party P,90329897,WESTMINSTER HOMECARE LTD,278.03,11/02/2021
Delivery Units,Adults and Health,Other Agencies - Third Party P,90329899,WESTMINSTER HOMECARE LTD,33.74,11/02/2021
Delivery Units,Adults and Health,Other Agencies - Third Party P,90329900,WESTMINSTER HOMECARE LTD,350.91,11/02/2021
Delivery Units,Adults and Health,Other Agencies - Third Party P,90329903,WESTMINSTER HOMECARE LTD,189.76,11/02/2021
Delivery Units,Adults and Health,Other Agencies - Third Party P,90329905,WESTMINSTER HOMECARE LTD,157.45,11/02/2021
Delivery Units,Adults and Health,Other Agencies - Third Party P,90329906,WESTMINSTER HOMECARE LTD,84.32,11/02/2021
Delivery Units,Adults and Health,Other Agencies - Third Party P,90329907,WESTMINSTER HOMECARE LTD,185.5,11/02/2021
Delivery Units,Adults and Health,Other Agencies - Third Party P,90329908,WESTMINSTER HOMECARE LTD,276.14,11/02/2021
Delivery Units,Adults and Health,Other Agencies - Third Party P,90329909,WESTMINSTER HOMECARE LTD,85.61,11/02/2021
Delivery Units,Adults and Health,Other Agencies - Third Party P,90329910,WESTMINSTER HOMECARE LTD,44.28,11/02/2021
Delivery Units,Adults and Health,Other Agencies - Third Party P,90329911,WESTMINSTER HOMECARE LTD,67.48,11/02/2021
Delivery Units,Adults and Health,Other Agencies - Third Party P,90329912,WESTMINSTER HOMECARE LTD,276.14,11/02/2021
Delivery Units,Adults and Health,Other Agencies - Third Party P,90329913,WESTMINSTER HOMECARE LTD,284.57,11/02/2021
Delivery Units,Adults and Health,Other Agencies - Third Party P,90329915,WESTMINSTER HOMECARE LTD,16.86,11/02/2021
Delivery Units,Adults and Health,Other Agencies - Third Party P,90329916,WESTMINSTER HOMECARE LTD,396.38,11/02/2021
Delivery Units,Adults and Health,Other Agencies - Third Party P,90329917,WESTMINSTER HOMECARE LTD,94.88,11/02/2021
Delivery Units,Adults and Health,Other Agencies - Third Party P,90329918,WESTMINSTER HOMECARE LTD,260.29,11/02/2021
Delivery Units,Adults and Health,Other Agencies - Third Party P,90329919,WESTMINSTER HOMECARE LTD,262.97,11/02/2021
Delivery Units,Adults and Health,Other Agencies - Third Party P,90329920,WESTMINSTER HOMECARE LTD,309.94,11/02/2021
Delivery Units,Adults and Health,Other Agencies - Third Party P,90329921,WESTMINSTER HOMECARE LTD,25.3,11/02/2021
Delivery Units,Adults and Health,Other Agencies - Third Party P,90329923,WESTMINSTER HOMECARE LTD,162.33,11/02/2021
Delivery Units,Adults and Health,Other Agencies - Third Party P,90329924,WESTMINSTER HOMECARE LTD,177.09,11/02/2021
Delivery Units,Adults and Health,Other Agencies - Third Party P,90329925,WESTMINSTER HOMECARE LTD,367.59,11/02/2021
Delivery Units,Adults and Health,Other Agencies - Third Party P,90329927,WESTMINSTER HOMECARE LTD,134.9,11/02/2021
Delivery Units,Adults and Health,Other Agencies - Third Party P,90329928,WESTMINSTER HOMECARE LTD,98.28,11/02/2021
Delivery Units,Adults and Health,Other Agencies - Third Party P,90329929,WESTMINSTER HOMECARE LTD,192.34,11/02/2021
Delivery Units,Adults and Health,Other Agencies - Third Party P,90329932,WESTMINSTER HOMECARE LTD,156,11/02/2021
Delivery Units,Adults and Health,Other Agencies - Third Party P,90329934,WESTMINSTER HOMECARE LTD,149.05,11/02/2021
Delivery Units,Adults and Health,Other Agencies - Third Party P,90329935,WESTMINSTER HOMECARE LTD,137.03,11/02/2021
Delivery Units,Adults and Health,Other Agencies - Third Party P,90329936,WESTMINSTER HOMECARE LTD,231.89,11/02/2021
Delivery Units,Adults and Health,Other Agencies - Third Party P,90329937,WESTMINSTER HOMECARE LTD,303.56,11/02/2021
Delivery Units,Adults and Health,Other Agencies - Third Party P,90329938,WESTMINSTER HOMECARE LTD,103.33,11/02/2021
Delivery Units,Adults and Health,Other Agencies - Third Party P,90329939,WESTMINSTER HOMECARE LTD,37.97,11/02/2021
Delivery Units,Adults and Health,Other Agencies - Third Party P,90329940,WESTMINSTER HOMECARE LTD,100.95,11/02/2021
Delivery Units,Adults and Health,Other Agencies - Third Party P,90329941,WESTMINSTER HOMECARE LTD,303.56,11/02/2021
Delivery Units,Adults and Health,Other Agencies - Third Party P,90329942,WESTMINSTER HOMECARE LTD,303.56,11/02/2021
Delivery Units,Adults and Health,Other Agencies - Third Party P,90329944,WESTMINSTER HOMECARE LTD,33.73,11/02/2021
Delivery Units,Adults and Health,Other Agencies - Third Party P,90329945,WESTMINSTER HOMECARE LTD,421.7,11/02/2021
Delivery Units,Adults and Health,Other Agencies - Third Party P,90329946,WESTMINSTER HOMECARE LTD,101.21,11/02/2021
Delivery Units,Adults and Health,Other Agencies - Third Party P,90329947,WESTMINSTER HOMECARE LTD,315.4,11/02/2021
Delivery Units,Adults and Health,Other Agencies - Third Party P,90329948,WESTMINSTER HOMECARE LTD,231.91,11/02/2021
Delivery Units,Adults and Health,Other Agencies - Third Party P,90329949,WESTMINSTER HOMECARE LTD,316.28,11/02/2021
Delivery Units,Adults and Health,Other Agencies - Third Party P,90329951,WESTMINSTER HOMECARE LTD,147.56,11/02/2021
Delivery Units,Adults and Health,Other Agencies - Third Party P,90329952,WESTMINSTER HOMECARE LTD,147.55,11/02/2021
Delivery Units,Adults and Health,Other Agencies - Third Party P,90329953,WESTMINSTER HOMECARE LTD,315.67,11/02/2021
Delivery Units,Adults and Health,Other Agencies - Third Party P,90329955,WESTMINSTER HOMECARE LTD,113.81,11/02/2021
Delivery Units,Adults and Health,Other Agencies - Third Party P,90329956,WESTMINSTER HOMECARE LTD,81.26,11/02/2021
Delivery Units,Adults and Health,Other Agencies - Third Party P,90329957,WESTMINSTER HOMECARE LTD,243.2,11/02/2021
Delivery Units,Adults and Health,Other Agencies - Third Party P,90329960,WESTMINSTER HOMECARE LTD,177.1,11/02/2021
Delivery Units,Adults and Health,Other Agencies - Third Party P,90329962,WESTMINSTER HOMECARE LTD,126.55,11/02/2021
Delivery Units,Adults and Health,Other Agencies - Third Party P,90329963,WESTMINSTER HOMECARE LTD,147.56,11/02/2021
Delivery Units,Adults and Health,Other Agencies - Third Party P,90329964,WESTMINSTER HOMECARE LTD,206.57,11/02/2021
Delivery Units,Adults and Health,Other Agencies - Third Party P,90329965,WESTMINSTER HOMECARE LTD,261.37,11/02/2021
Delivery Units,Adults and Health,Other Agencies - Third Party P,90329966,WESTMINSTER HOMECARE LTD,98.39,11/02/2021
Delivery Units,Adults and Health,Other Agencies - Third Party P,90329967,WESTMINSTER HOMECARE LTD,50.59,11/02/2021
Delivery Units,Adults and Health,Other Agencies - Third Party P,90329968,WESTMINSTER HOMECARE LTD,83.79,11/02/2021
Delivery Units,Adults and Health,Other Agencies - Third Party P,90329969,WESTMINSTER HOMECARE LTD,261.37,11/02/2021
Delivery Units,Adults and Health,Other Agencies - Third Party P,90329970,WESTMINSTER HOMECARE LTD,248.72,11/02/2021
Delivery Units,Adults and Health,Other Agencies - Third Party P,90329972,WESTMINSTER HOMECARE LTD,371.05,11/02/2021
Delivery Units,Adults and Health,Other Agencies - Third Party P,90329973,WESTMINSTER HOMECARE LTD,88.55,11/02/2021
Delivery Units,Adults and Health,Other Agencies - Third Party P,90329974,WESTMINSTER HOMECARE LTD,273.2,11/02/2021
Delivery Units,Adults and Health,Other Agencies - Third Party P,90329975,WESTMINSTER HOMECARE LTD,215.59,11/02/2021
Delivery Units,Adults and Health,Other Agencies - Third Party P,90329976,WESTMINSTER HOMECARE LTD,278.3,11/02/2021
Delivery Units,Adults and Health,Other Agencies - Third Party P,90329977,WESTMINSTER HOMECARE LTD,59.03,11/02/2021
Delivery Units,Adults and Health,Other Agencies - Third Party P,90329979,WESTMINSTER HOMECARE LTD,147.56,11/02/2021
Delivery Units,Adults and Health,Other Agencies - Third Party P,90329980,WESTMINSTER HOMECARE LTD,143.33,11/02/2021
Delivery Units,Adults and Health,Other Agencies - Third Party P,90329981,WESTMINSTER HOMECARE LTD,339.57,11/02/2021
Delivery Units,Adults and Health,Other Agencies - Third Party P,90329983,WESTMINSTER HOMECARE LTD,118.02,11/02/2021
Delivery Units,Adults and Health,Other Agencies - Third Party P,90329984,WESTMINSTER HOMECARE LTD,82.11,11/02/2021
Delivery Units,Adults and Health,Other Agencies - Third Party P,90329985,WESTMINSTER HOMECARE LTD,299.96,11/02/2021
Delivery Units,Adults and Health,Other Agencies - Third Party P,90329988,WESTMINSTER HOMECARE LTD,177.1,11/02/2021
Delivery Units,Adults and Health,Other Agencies - Third Party P,90329990,WESTMINSTER HOMECARE LTD,98.7,11/02/2021
Delivery Units,Adults and Health,Other Agencies - Third Party P,90329991,WESTMINSTER HOMECARE LTD,147.56,11/02/2021
Delivery Units,Adults and Health,Other Agencies - Third Party P,90329992,WESTMINSTER HOMECARE LTD,206.57,11/02/2021
Delivery Units,Adults and Health,Other Agencies - Third Party P,90329993,WESTMINSTER HOMECARE LTD,261.36,11/02/2021
Delivery Units,Adults and Health,Other Agencies - Third Party P,90329994,WESTMINSTER HOMECARE LTD,59.01,11/02/2021
Delivery Units,Adults and Health,Other Agencies - Third Party P,90329995,WESTMINSTER HOMECARE LTD,84.35,11/02/2021
Delivery Units,Adults and Health,Other Agencies - Third Party P,90329996,WESTMINSTER HOMECARE LTD,265.58,11/02/2021
Delivery Units,Adults and Health,Other Agencies - Third Party P,90329997,WESTMINSTER HOMECARE LTD,75.88,11/02/2021
Delivery Units,Adults and Health,Other Agencies - Third Party P,90329999,WESTMINSTER HOMECARE LTD,396.34,11/02/2021
Delivery Units,Adults and Health,Other Agencies - Third Party P,90330000,WESTMINSTER HOMECARE LTD,88.55,11/02/2021
Delivery Units,Adults and Health,Other Agencies - Third Party P,90330001,WESTMINSTER HOMECARE LTD,74.48,11/02/2021
Delivery Units,Adults and Health,Other Agencies - Third Party P,90330002,WESTMINSTER HOMECARE LTD,236.11,11/02/2021
Delivery Units,Adults and Health,Other Agencies - Third Party P,90330003,WESTMINSTER HOMECARE LTD,63.25,11/02/2021
Delivery Units,Adults and Health,Other Agencies - Third Party P,90330005,WESTMINSTER HOMECARE LTD,113.81,11/02/2021
Delivery Units,Adults and Health,Other Agencies - Third Party P,90330043,HARTWIG CARE LIMITED,196.14,11/02/2021
Delivery Units,Adults and Health,Other Agencies - Third Party P,90330044,HARTWIG CARE LIMITED,200.81,11/02/2021
Delivery Units,Adults and Health,Other Agencies - Third Party P,90330045,HARTWIG CARE LIMITED,345.58,11/02/2021
Delivery Units,Adults and Health,Other Agencies - Third Party P,90330046,HARTWIG CARE LIMITED,102.74,11/02/2021
Delivery Units,Adults and Health,Other Agencies - Third Party P,90330047,HARTWIG CARE LIMITED,46.7,11/02/2021
Delivery Units,Adults and Health,Other Agencies - Third Party P,90330048,HARTWIG CARE LIMITED,56.04,11/02/2021
Delivery Units,Adults and Health,Other Agencies - Third Party P,90330049,HARTWIG CARE LIMITED,607.1,11/02/2021
Delivery Units,Adults and Health,Other Agencies - Third Party P,90330053,HARTWIG CARE LIMITED,252.18,11/02/2021
Delivery Units,Adults and Health,Other Agencies - Third Party P,90330054,HARTWIG CARE LIMITED,284.87,11/02/2021
Delivery Units,Adults and Health,Other Agencies - Third Party P,90330055,HARTWIG CARE LIMITED,644.46,11/02/2021
Delivery Units,Adults and Health,Other Agencies - Third Party P,90330056,HARTWIG CARE LIMITED,340.91,11/02/2021
Delivery Units,Adults and Health,Other Agencies - Third Party P,90330058,HARTWIG CARE LIMITED,392.28,11/02/2021
Delivery Units,Adults and Health,Other Agencies - Third Party P,90330059,HARTWIG CARE LIMITED,210.15,11/02/2021
Delivery Units,Adults and Health,Other Agencies - Third Party P,90330060,HARTWIG CARE LIMITED,158.78,11/02/2021
Delivery Units,Adults and Health,Other Agencies - Third Party P,90330061,HARTWIG CARE LIMITED,98.07,11/02/2021
Delivery Units,Adults and Health,Other Agencies - Third Party P,90330062,HARTWIG CARE LIMITED,102.74,11/02/2021
Delivery Units,Adults and Health,Other Agencies - Third Party P,90330063,HARTWIG CARE LIMITED,60.71,11/02/2021
Delivery Units,Adults and Health,Other Agencies - Third Party P,90330064,HARTWIG CARE LIMITED,256.85,11/02/2021
Delivery Units,Adults and Health,Other Agencies - Third Party P,90330066,HARTWIG CARE LIMITED,294.21,11/02/2021
Delivery Units,Adults and Health,Other Agencies - Third Party P,90330067,HARTWIG CARE LIMITED,98.07,11/02/2021
Delivery Units,Adults and Health,Other Agencies - Third Party P,90330068,HARTWIG CARE LIMITED,294.21,11/02/2021
Delivery Units,Adults and Health,Other Agencies - Third Party P,90330069,HARTWIG CARE LIMITED,56.04,11/02/2021
Delivery Units,Adults and Health,Other Agencies - Third Party P,90330070,HARTWIG CARE LIMITED,93.4,11/02/2021
Delivery Units,Adults and Health,Other Agencies - Third Party P,90330071,HARTWIG CARE LIMITED,74.72,11/02/2021
Delivery Units,Adults and Health,Other Agencies - Third Party P,90330072,HARTWIG CARE LIMITED,228.83,11/02/2021
Delivery Units,Adults and Health,Other Agencies - Third Party P,90330073,HARTWIG CARE LIMITED,359.59,11/02/2021
Delivery Units,Adults and Health,Other Agencies - Third Party P,90330075,HARTWIG CARE LIMITED,392.28,11/02/2021
Delivery Units,Adults and Health,Other Agencies - Third Party P,90330077,HARTWIG CARE LIMITED,322.23,11/02/2021
Delivery Units,Adults and Health,Other Agencies - Third Party P,90330078,HARTWIG CARE LIMITED,14.01,11/02/2021
Delivery Units,Adults and Health,Other Agencies - Third Party P,90330079,HARTWIG CARE LIMITED,32.69,11/02/2021
Delivery Units,Adults and Health,Other Agencies - Third Party P,90330080,HARTWIG CARE LIMITED,191.47,11/02/2021
Delivery Units,Adults and Health,Other Agencies - Third Party P,90330084,HARTWIG CARE LIMITED,126.09,11/02/2021
Delivery Units,Adults and Health,Other Agencies - Third Party P,90330085,HARTWIG CARE LIMITED,32.69,11/02/2021
Delivery Units,Adults and Health,Other Agencies - Third Party P,90330086,HARTWIG CARE LIMITED,154.11,11/02/2021
Delivery Units,Adults and Health,Other Agencies - Third Party P,90330089,HARTWIG CARE LIMITED,359.59,11/02/2021
Delivery Units,Adults and Health,Other Agencies - Third Party P,90330090,HARTWIG CARE LIMITED,46.7,11/02/2021
Delivery Units,Adults and Health,Other Agencies - Third Party P,90330091,HARTWIG CARE LIMITED,219.49,11/02/2021
Delivery Units,Adults and Health,Other Agencies - Third Party P,90330095,HARTWIG CARE LIMITED,191.47,11/02/2021
Delivery Units,Adults and Health,Other Agencies - Third Party P,90330096,HARTWIG CARE LIMITED,289.54,11/02/2021
Delivery Units,Adults and Health,Other Agencies - Third Party P,90330097,HARTWIG CARE LIMITED,60.71,11/02/2021
Delivery Units,Adults and Health,Other Agencies - Third Party P,90330098,HARTWIG CARE LIMITED,37.36,11/02/2021
Delivery Units,Adults and Health,Other Agencies - Third Party P,90330099,HARTWIG CARE LIMITED,186.8,11/02/2021
Delivery Units,Adults and Health,Other Agencies - Third Party P,90330101,HARTWIG CARE LIMITED,140.1,11/02/2021
Delivery Units,Adults and Health,Other Agencies - Third Party P,90330102,HARTWIG CARE LIMITED,607.1,11/02/2021
Delivery Units,Adults and Health,Other Agencies - Third Party P,90330104,HARTWIG CARE LIMITED,691.16,11/02/2021
Delivery Units,Adults and Health,Other Agencies - Third Party P,90330105,HARTWIG CARE LIMITED,247.51,11/02/2021
Delivery Units,Adults and Health,Other Agencies - Third Party P,90330107,HARTWIG CARE LIMITED,74.72,11/02/2021
Delivery Units,Adults and Health,Other Agencies - Third Party P,90330108,HARTWIG CARE LIMITED,37.36,11/02/2021
Delivery Units,Adults and Health,Other Agencies - Third Party P,90330109,HARTWIG CARE LIMITED,93.4,11/02/2021
Delivery Units,Adults and Health,Other Agencies - Third Party P,90330110,HARTWIG CARE LIMITED,144.77,11/02/2021
Delivery Units,Adults and Health,Other Agencies - Third Party P,90330111,HARTWIG CARE LIMITED,312.89,11/02/2021
Delivery Units,Adults and Health,Other Agencies - Third Party P,90330113,HARTWIG CARE LIMITED,121.42,11/02/2021
Delivery Units,Adults and Health,Other Agencies - Third Party P,90330114,HARTWIG CARE LIMITED,196.14,11/02/2021
Delivery Units,Adults and Health,Other Agencies - Third Party P,90330115,HARTWIG CARE LIMITED,182.13,11/02/2021
Delivery Units,Adults and Health,Other Agencies - Third Party P,90330116,HARTWIG CARE LIMITED,345.58,11/02/2021
Delivery Units,Adults and Health,Other Agencies - Third Party P,90330117,HARTWIG CARE LIMITED,144.77,11/02/2021
Delivery Units,Adults and Health,Other Agencies - Third Party P,90330118,HARTWIG CARE LIMITED,93.4,11/02/2021
Delivery Units,Adults and Health,Other Agencies - Third Party P,90330119,HARTWIG CARE LIMITED,130.76,11/02/2021
Delivery Units,Adults and Health,Other Agencies - Third Party P,90330120,HARTWIG CARE LIMITED,625.78,11/02/2021
Delivery Units,Adults and Health,Other Agencies - Third Party P,90330124,HARTWIG CARE LIMITED,74.72,11/02/2021
Delivery Units,Adults and Health,Other Agencies - Third Party P,90330125,HARTWIG CARE LIMITED,289.54,11/02/2021
Delivery Units,Adults and Health,Other Agencies - Third Party P,90330126,HARTWIG CARE LIMITED,312.89,11/02/2021
Delivery Units,Adults and Health,Other Agencies - Third Party P,90330127,HARTWIG CARE LIMITED,644.46,11/02/2021
Delivery Units,Adults and Health,Other Agencies - Third Party P,90330128,HARTWIG CARE LIMITED,424.97,11/02/2021
Delivery Units,Adults and Health,Other Agencies - Third Party P,90330130,HARTWIG CARE LIMITED,378.27,11/02/2021
Delivery Units,Adults and Health,Other Agencies - Third Party P,90330131,HARTWIG CARE LIMITED,228.83,11/02/2021
Delivery Units,Adults and Health,Other Agencies - Third Party P,90330133,HARTWIG CARE LIMITED,177.46,11/02/2021
Delivery Units,Adults and Health,Other Agencies - Third Party P,90330134,HARTWIG CARE LIMITED,98.07,11/02/2021
Delivery Units,Adults and Health,Other Agencies - Third Party P,90330135,HARTWIG CARE LIMITED,196.14,11/02/2021
Delivery Units,Adults and Health,Other Agencies - Third Party P,90330136,HARTWIG CARE LIMITED,158.78,11/02/2021
Delivery Units,Adults and Health,Other Agencies - Third Party P,90330137,HARTWIG CARE LIMITED,256.85,11/02/2021
Delivery Units,Adults and Health,Other Agencies - Third Party P,90330138,HARTWIG CARE LIMITED,102.74,11/02/2021
Delivery Units,Adults and Health,Other Agencies - Third Party P,90330140,HARTWIG CARE LIMITED,32.69,11/02/2021
Delivery Units,Adults and Health,Other Agencies - Third Party P,90330141,HARTWIG CARE LIMITED,98.07,11/02/2021
Delivery Units,Adults and Health,Other Agencies - Third Party P,90330142,HARTWIG CARE LIMITED,298.88,11/02/2021
Delivery Units,Adults and Health,Other Agencies - Third Party P,90330143,HARTWIG CARE LIMITED,56.04,11/02/2021
Delivery Units,Adults and Health,Other Agencies - Third Party P,90330144,HARTWIG CARE LIMITED,116.75,11/02/2021
Delivery Units,Adults and Health,Other Agencies - Third Party P,90330145,HARTWIG CARE LIMITED,93.4,11/02/2021
Delivery Units,Adults and Health,Other Agencies - Third Party P,90330146,HARTWIG CARE LIMITED,228.83,11/02/2021
Delivery Units,Adults and Health,Other Agencies - Third Party P,90330147,HARTWIG CARE LIMITED,364.26,11/02/2021
Delivery Units,Adults and Health,Other Agencies - Third Party P,90330149,HARTWIG CARE LIMITED,392.28,11/02/2021
Delivery Units,Adults and Health,Other Agencies - Third Party P,90330151,HARTWIG CARE LIMITED,312.89,11/02/2021
Delivery Units,Adults and Health,Other Agencies - Third Party P,90330152,HARTWIG CARE LIMITED,42.03,11/02/2021
Delivery Units,Adults and Health,Other Agencies - Third Party P,90330153,HARTWIG CARE LIMITED,74.72,11/02/2021
Delivery Units,Adults and Health,Other Agencies - Third Party P,90330154,HARTWIG CARE LIMITED,186.8,11/02/2021
Delivery Units,Adults and Health,Other Agencies - Third Party P,90330158,HARTWIG CARE LIMITED,130.76,11/02/2021
Delivery Units,Adults and Health,Other Agencies - Third Party P,90330159,HARTWIG CARE LIMITED,42.03,11/02/2021
Delivery Units,Adults and Health,Other Agencies - Third Party P,90330160,HARTWIG CARE LIMITED,200.81,11/02/2021
Delivery Units,Adults and Health,Other Agencies - Third Party P,90330163,HARTWIG CARE LIMITED,359.59,11/02/2021
Delivery Units,Adults and Health,Other Agencies - Third Party P,90330164,HARTWIG CARE LIMITED,98.07,11/02/2021
Delivery Units,Adults and Health,Other Agencies - Third Party P,90330165,HARTWIG CARE LIMITED,168.12,11/02/2021
Delivery Units,Adults and Health,Other Agencies - Third Party P,90330169,HARTWIG CARE LIMITED,191.47,11/02/2021
Delivery Units,Adults and Health,Other Agencies - Third Party P,90330170,HARTWIG CARE LIMITED,368.93,11/02/2021
Delivery Units,Adults and Health,Other Agencies - Third Party P,90330171,HARTWIG CARE LIMITED,70.05,11/02/2021
Delivery Units,Adults and Health,Other Agencies - Third Party P,90330172,HARTWIG CARE LIMITED,74.72,11/02/2021
Delivery Units,Adults and Health,Other Agencies - Third Party P,90330173,HARTWIG CARE LIMITED,186.8,11/02/2021
Delivery Units,Adults and Health,Other Agencies - Third Party P,90330175,HARTWIG CARE LIMITED,144.77,11/02/2021
Delivery Units,Adults and Health,Other Agencies - Third Party P,90330176,HARTWIG CARE LIMITED,607.1,11/02/2021
Delivery Units,Adults and Health,Other Agencies - Third Party P,90330178,HARTWIG CARE LIMITED,658.47,11/02/2021
Delivery Units,Adults and Health,Other Agencies - Third Party P,90330179,HARTWIG CARE LIMITED,261.52,11/02/2021
Delivery Units,Adults and Health,Other Agencies - Third Party P,90330181,HARTWIG CARE LIMITED,74.72,11/02/2021
Delivery Units,Adults and Health,Other Agencies - Third Party P,90330182,HARTWIG CARE LIMITED,130.76,11/02/2021
Delivery Units,Adults and Health,Other Agencies - Third Party P,90330183,HARTWIG CARE LIMITED,172.79,11/02/2021
Delivery Units,Adults and Health,Other Agencies - Third Party P,90330184,HARTWIG CARE LIMITED,182.13,11/02/2021
Delivery Units,Adults and Health,Other Agencies - Third Party P,90330185,HARTWIG CARE LIMITED,312.89,11/02/2021
Delivery Units,Adults and Health,Other Agencies - Third Party P,90330187,HARTWIG CARE LIMITED,126.09,11/02/2021
Delivery Units,Adults and Health,Other Agencies - Third Party P,90330202,WESTMINSTER HOMECARE LTD,265.58,11/02/2021
Delivery Units,Adults and Health,Other Agencies - Third Party P,90330203,WESTMINSTER HOMECARE LTD,88.55,11/02/2021
Delivery Units,Adults and Health,Other Agencies - Third Party P,90330204,WESTMINSTER HOMECARE LTD,67.44,11/02/2021
Delivery Units,Adults and Health,Other Agencies - Third Party P,90330205,WESTMINSTER HOMECARE LTD,84.35,11/02/2021
Delivery Units,Adults and Health,Other Agencies - Third Party P,90330207,WESTMINSTER HOMECARE LTD,177.1,11/02/2021
Delivery Units,Adults and Health,Other Agencies - Third Party P,90330208,WESTMINSTER HOMECARE LTD,206.57,11/02/2021
Delivery Units,Adults and Health,Other Agencies - Third Party P,90330209,WESTMINSTER HOMECARE LTD,21.08,11/02/2021
Delivery Units,Adults and Health,Other Agencies - Third Party P,90330210,WESTMINSTER HOMECARE LTD,278.3,11/02/2021
Delivery Units,Adults and Health,Other Agencies - Third Party P,90330211,WESTMINSTER HOMECARE LTD,139.13,11/02/2021
Delivery Units,Adults and Health,Other Agencies - Third Party P,90330214,WESTMINSTER HOMECARE LTD,343.57,11/02/2021
Delivery Units,Adults and Health,Other Agencies - Third Party P,90330215,WESTMINSTER HOMECARE LTD,335.36,11/02/2021
Delivery Units,Adults and Health,Other Agencies - Third Party P,90330216,WESTMINSTER HOMECARE LTD,63.25,11/02/2021
Delivery Units,Adults and Health,Other Agencies - Third Party P,90330217,WESTMINSTER HOMECARE LTD,82.38,11/02/2021
Delivery Units,Adults and Health,Other Agencies - Third Party P,90330218,WESTMINSTER HOMECARE LTD,206.57,11/02/2021
Delivery Units,Adults and Health,Other Agencies - Third Party P,90330219,WESTMINSTER HOMECARE LTD,113.81,11/02/2021
Delivery Units,Adults and Health,Other Agencies - Third Party P,90330220,WESTMINSTER HOMECARE LTD,116.69,11/02/2021
Delivery Units,Adults and Health,Other Agencies - Third Party P,90330221,WESTMINSTER HOMECARE LTD,151.8,11/02/2021
Delivery Units,Adults and Health,Other Agencies - Third Party P,90330223,WESTMINSTER HOMECARE LTD,408.93,11/02/2021
Delivery Units,Adults and Health,Other Agencies - Third Party P,90330224,WESTMINSTER HOMECARE LTD,147.56,11/02/2021
Delivery Units,Adults and Health,Other Agencies - Third Party P,90330225,WESTMINSTER HOMECARE LTD,134.92,11/02/2021
Delivery Units,Adults and Health,Other Agencies - Third Party P,90330226,WESTMINSTER HOMECARE LTD,33.72,11/02/2021
Delivery Units,Adults and Health,Other Agencies - Third Party P,90330227,WESTMINSTER HOMECARE LTD,289.22,11/02/2021
Delivery Units,Adults and Health,Other Agencies - Third Party P,90330229,WESTMINSTER HOMECARE LTD,109.65,11/02/2021
Delivery Units,Adults and Health,Other Agencies - Third Party P,90330230,WESTMINSTER HOMECARE LTD,231.05,11/02/2021
Delivery Units,Adults and Health,Other Agencies - Third Party P,90330231,WESTMINSTER HOMECARE LTD,33.74,11/02/2021
Delivery Units,Adults and Health,Other Agencies - Third Party P,90330234,WESTMINSTER HOMECARE LTD,257.15,11/02/2021
Delivery Units,Adults and Health,Other Agencies - Third Party P,90330235,WESTMINSTER HOMECARE LTD,413.21,11/02/2021
Delivery Units,Adults and Health,Other Agencies - Third Party P,90330237,WESTMINSTER HOMECARE LTD,147.55,11/02/2021
Delivery Units,Adults and Health,Other Agencies - Third Party P,90330238,WESTMINSTER HOMECARE LTD,265.58,11/02/2021
Delivery Units,Adults and Health,Other Agencies - Third Party P,90330239,WESTMINSTER HOMECARE LTD,257.15,11/02/2021
Delivery Units,Adults and Health,Other Agencies - Third Party P,90330240,WESTMINSTER HOMECARE LTD,88.55,11/02/2021
Delivery Units,Adults and Health,Other Agencies - Third Party P,90330241,WESTMINSTER HOMECARE LTD,67.44,11/02/2021
Delivery Units,Adults and Health,Other Agencies - Third Party P,90330242,WESTMINSTER HOMECARE LTD,84.35,11/02/2021
Delivery Units,Adults and Health,Other Agencies - Third Party P,90330243,WESTMINSTER HOMECARE LTD,176.26,11/02/2021
Delivery Units,Adults and Health,Other Agencies - Third Party P,90330244,WESTMINSTER HOMECARE LTD,206.57,11/02/2021
Delivery Units,Adults and Health,Other Agencies - Third Party P,90330245,WESTMINSTER HOMECARE LTD,25.29,11/02/2021
Delivery Units,Adults and Health,Other Agencies - Third Party P,90330246,WESTMINSTER HOMECARE LTD,164.45,11/02/2021
Delivery Units,Adults and Health,Other Agencies - Third Party P,90330247,WESTMINSTER HOMECARE LTD,147.56,11/02/2021
Delivery Units,Adults and Health,Other Agencies - Third Party P,90330250,WESTMINSTER HOMECARE LTD,352.86,11/02/2021
Delivery Units,Adults and Health,Other Agencies - Third Party P,90330251,WESTMINSTER HOMECARE LTD,339.58,11/02/2021
Delivery Units,Adults and Health,Other Agencies - Third Party P,90330252,WESTMINSTER HOMECARE LTD,63.25,11/02/2021
Delivery Units,Adults and Health,Other Agencies - Third Party P,90330253,WESTMINSTER HOMECARE LTD,84.35,11/02/2021
Delivery Units,Adults and Health,Other Agencies - Third Party P,90330254,WESTMINSTER HOMECARE LTD,257.16,11/02/2021
Delivery Units,Adults and Health,Other Agencies - Third Party P,90330255,WESTMINSTER HOMECARE LTD,118.02,11/02/2021
Delivery Units,Adults and Health,Other Agencies - Third Party P,90330256,WESTMINSTER HOMECARE LTD,101.22,11/02/2021
Delivery Units,Adults and Health,Other Agencies - Third Party P,90330257,WESTMINSTER HOMECARE LTD,292.37,11/02/2021
Delivery Units,Adults and Health,Other Agencies - Third Party P,90330259,WESTMINSTER HOMECARE LTD,413.14,11/02/2021
Delivery Units,Adults and Health,Other Agencies - Third Party P,90330260,WESTMINSTER HOMECARE LTD,143.34,11/02/2021
Delivery Units,Adults and Health,Other Agencies - Third Party P,90330261,WESTMINSTER HOMECARE LTD,147.57,11/02/2021
Delivery Units,Adults and Health,Other Agencies - Third Party P,90330262,WESTMINSTER HOMECARE LTD,33.72,11/02/2021
Delivery Units,Adults and Health,Other Agencies - Third Party P,90330263,WESTMINSTER HOMECARE LTD,289.21,11/02/2021
Delivery Units,Adults and Health,Other Agencies - Third Party P,90330265,WESTMINSTER HOMECARE LTD,115.84,11/02/2021
Delivery Units,Adults and Health,Other Agencies - Third Party P,90330266,WESTMINSTER HOMECARE LTD,234.43,11/02/2021
Delivery Units,Adults and Health,Other Agencies - Third Party P,90330267,WESTMINSTER HOMECARE LTD,33.74,11/02/2021
Delivery Units,Adults and Health,Other Agencies - Third Party P,90330269,WESTMINSTER HOMECARE LTD,265.58,11/02/2021
Delivery Units,Adults and Health,Other Agencies - Third Party P,90330270,WESTMINSTER HOMECARE LTD,413.21,11/02/2021
Delivery Units,Adults and Health,Other Agencies - Third Party P,90330272,WESTMINSTER HOMECARE LTD,143.34,11/02/2021
Delivery Units,Adults and Health,Other Agencies - Third Party P,90330273,WESTMINSTER HOMECARE LTD,265.58,11/02/2021
Delivery Units,Adults and Health,Other Agencies - Third Party P,90330274,WESTMINSTER HOMECARE LTD,261.36,11/02/2021
Delivery Units,Adults and Health,Other Agencies - Third Party P,90330275,WESTMINSTER HOMECARE LTD,88.55,11/02/2021
Delivery Units,Adults and Health,Other Agencies - Third Party P,90330276,WESTMINSTER HOMECARE LTD,67.44,11/02/2021
Delivery Units,Adults and Health,Other Agencies - Third Party P,90330277,WESTMINSTER HOMECARE LTD,84.35,11/02/2021
Delivery Units,Adults and Health,Other Agencies - Third Party P,90330279,WESTMINSTER HOMECARE LTD,177.1,11/02/2021
Delivery Units,Adults and Health,Other Agencies - Third Party P,90330280,WESTMINSTER HOMECARE LTD,147.55,11/02/2021
Delivery Units,Adults and Health,Other Agencies - Third Party P,90330281,WESTMINSTER HOMECARE LTD,25.29,11/02/2021
Delivery Units,Adults and Health,Other Agencies - Third Party P,90330282,WESTMINSTER HOMECARE LTD,278.3,11/02/2021
Delivery Units,Adults and Health,Other Agencies - Third Party P,90330283,WESTMINSTER HOMECARE LTD,143.34,11/02/2021
Delivery Units,Adults and Health,Other Agencies - Third Party P,90330286,WESTMINSTER HOMECARE LTD,350.59,11/02/2021
Delivery Units,Adults and Health,Other Agencies - Third Party P,90330287,WESTMINSTER HOMECARE LTD,339.29,11/02/2021
Delivery Units,Adults and Health,Other Agencies - Third Party P,90330288,WESTMINSTER HOMECARE LTD,63.25,11/02/2021
Delivery Units,Adults and Health,Other Agencies - Third Party P,90330289,WESTMINSTER HOMECARE LTD,84.35,11/02/2021
Delivery Units,Adults and Health,Other Agencies - Third Party P,90330290,WESTMINSTER HOMECARE LTD,202.35,11/02/2021
Delivery Units,Adults and Health,Other Agencies - Third Party P,90330291,WESTMINSTER HOMECARE LTD,118.02,11/02/2021
Delivery Units,Adults and Health,Other Agencies - Third Party P,90330292,WESTMINSTER HOMECARE LTD,98.4,11/02/2021
Delivery Units,Adults and Health,Other Agencies - Third Party P,90330293,WESTMINSTER HOMECARE LTD,226.26,11/02/2021
Delivery Units,Adults and Health,Other Agencies - Third Party P,90330295,WESTMINSTER HOMECARE LTD,408.92,11/02/2021
Delivery Units,Adults and Health,Other Agencies - Third Party P,90330296,WESTMINSTER HOMECARE LTD,143.34,11/02/2021
Delivery Units,Adults and Health,Other Agencies - Third Party P,90330297,WESTMINSTER HOMECARE LTD,16.87,11/02/2021
Delivery Units,Adults and Health,Other Agencies - Third Party P,90330298,WESTMINSTER HOMECARE LTD,33.72,11/02/2021
Delivery Units,Adults and Health,Other Agencies - Third Party P,90330299,WESTMINSTER HOMECARE LTD,269.26,11/02/2021
Delivery Units,Adults and Health,Other Agencies - Third Party P,90330301,WESTMINSTER HOMECARE LTD,118.09,11/02/2021
Delivery Units,Adults and Health,Other Agencies - Third Party P,90330302,WESTMINSTER HOMECARE LTD,215.86,11/02/2021
Delivery Units,Adults and Health,Other Agencies - Third Party P,90330303,WESTMINSTER HOMECARE LTD,33.46,11/02/2021
Delivery Units,Adults and Health,Other Agencies - Third Party P,90330306,WESTMINSTER HOMECARE LTD,257.15,11/02/2021
Delivery Units,Adults and Health,Other Agencies - Third Party P,90330307,WESTMINSTER HOMECARE LTD,413.21,11/02/2021
Delivery Units,Adults and Health,Other Agencies - Third Party P,90330309,WESTMINSTER HOMECARE LTD,147.55,11/02/2021
Delivery Units,Adults and Health,Other Agencies - Third Party P,90330310,WESTMINSTER HOMECARE LTD,265.58,11/02/2021
Delivery Units,Adults and Health,Other Agencies - Third Party P,90330311,WESTMINSTER HOMECARE LTD,257.14,11/02/2021
Delivery Units,Adults and Health,Other Agencies - Third Party P,90330312,WESTMINSTER HOMECARE LTD,88.55,11/02/2021
Delivery Units,Adults and Health,Other Agencies - Third Party P,90330313,WESTMINSTER HOMECARE LTD,67.44,11/02/2021
Delivery Units,Adults and Health,Other Agencies - Third Party P,90330314,WESTMINSTER HOMECARE LTD,82.94,11/02/2021
Delivery Units,Adults and Health,Other Agencies - Third Party P,90330316,WESTMINSTER HOMECARE LTD,172.89,11/02/2021
Delivery Units,Adults and Health,Other Agencies - Third Party P,90330317,WESTMINSTER HOMECARE LTD,206.57,11/02/2021
Delivery Units,Adults and Health,Other Agencies - Third Party P,90330318,WESTMINSTER HOMECARE LTD,25.29,11/02/2021
Delivery Units,Adults and Health,Other Agencies - Third Party P,90330319,WESTMINSTER HOMECARE LTD,185.53,11/02/2021
Delivery Units,Adults and Health,Other Agencies - Third Party P,90330320,WESTMINSTER HOMECARE LTD,147.56,11/02/2021
Delivery Units,Adults and Health,Other Agencies - Third Party P,90330323,WESTMINSTER HOMECARE LTD,351.43,11/02/2021
Delivery Units,Adults and Health,Other Agencies - Third Party P,90330324,WESTMINSTER HOMECARE LTD,335.07,11/02/2021
Delivery Units,Adults and Health,Other Agencies - Third Party P,90330325,WESTMINSTER HOMECARE LTD,63.25,11/02/2021
Delivery Units,Adults and Health,Other Agencies - Third Party P,90330326,WESTMINSTER HOMECARE LTD,84.07,11/02/2021
Delivery Units,Adults and Health,Other Agencies - Third Party P,90330327,WESTMINSTER HOMECARE LTD,257.16,11/02/2021
Delivery Units,Adults and Health,Other Agencies - Third Party P,90330328,WESTMINSTER HOMECARE LTD,118.02,11/02/2021
Delivery Units,Adults and Health,Other Agencies - Third Party P,90330329,WESTMINSTER HOMECARE LTD,101.22,11/02/2021
Delivery Units,Adults and Health,Other Agencies - Third Party P,90330330,WESTMINSTER HOMECARE LTD,292.37,11/02/2021
Delivery Units,Adults and Health,Other Agencies - Third Party P,90330332,WESTMINSTER HOMECARE LTD,392.06,11/02/2021
Delivery Units,Adults and Health,Other Agencies - Third Party P,90330333,WESTMINSTER HOMECARE LTD,143.34,11/02/2021
Delivery Units,Adults and Health,Other Agencies - Third Party P,90330334,WESTMINSTER HOMECARE LTD,116.36,11/02/2021
Delivery Units,Adults and Health,Other Agencies - Third Party P,90330335,WESTMINSTER HOMECARE LTD,16.86,11/02/2021
Delivery Units,Adults and Health,Other Agencies - Third Party P,90330336,WESTMINSTER HOMECARE LTD,286.69,11/02/2021
Delivery Units,Adults and Health,Other Agencies - Third Party P,90330338,WESTMINSTER HOMECARE LTD,118.09,11/02/2021
Delivery Units,Adults and Health,Other Agencies - Third Party P,90330339,WESTMINSTER HOMECARE LTD,243.14,11/02/2021
Delivery Units,Adults and Health,Other Agencies - Third Party P,90330340,WESTMINSTER HOMECARE LTD,33.74,11/02/2021
Delivery Units,Adults and Health,Other Agencies - Third Party P,90330342,WESTMINSTER HOMECARE LTD,261.37,11/02/2021
Delivery Units,Adults and Health,Other Agencies - Third Party P,90330343,WESTMINSTER HOMECARE LTD,413.21,11/02/2021
Delivery Units,Adults and Health,Other Agencies - Third Party P,90330345,WESTMINSTER HOMECARE LTD,143.34,11/02/2021
Delivery Units,Adults and Health,Other Agencies - Third Party P,90330346,WESTMINSTER HOMECARE LTD,265.58,11/02/2021
Delivery Units,Adults and Health,Other Agencies - Third Party P,90330613,MI HOMECARE LIMITED,54.57,12/02/2021
Delivery Units,Adults and Health,Other Agencies - Third Party P,90330614,MI HOMECARE LIMITED,177.35,12/02/2021
Delivery Units,Adults and Health,Other Agencies - Third Party P,90330615,MI HOMECARE LIMITED,227.38,12/02/2021
Delivery Units,Adults and Health,Other Agencies - Third Party P,90330616,MI HOMECARE LIMITED,54.57,12/02/2021
Delivery Units,Adults and Health,Other Agencies - Third Party P,90330617,MI HOMECARE LIMITED,54.57,12/02/2021
Delivery Units,Adults and Health,Other Agencies - Third Party P,90330618,MI HOMECARE LIMITED,227.38,12/02/2021
Delivery Units,Adults and Health,Other Agencies - Third Party P,90330619,MI HOMECARE LIMITED,127.33,12/02/2021
Delivery Units,Adults and Health,Other Agencies - Third Party P,90330620,MI HOMECARE LIMITED,572.98,12/02/2021
Delivery Units,Adults and Health,Other Agencies - Third Party P,90330621,MI HOMECARE LIMITED,163.71,12/02/2021
Delivery Units,Adults and Health,Other Agencies - Third Party P,90330622,MI HOMECARE LIMITED,281.94,12/02/2021
Delivery Units,Adults and Health,Other Agencies - Third Party P,90330623,MI HOMECARE LIMITED,222.83,12/02/2021
Delivery Units,Adults and Health,Other Agencies - Third Party P,90330624,MI HOMECARE LIMITED,272.85,12/02/2021
Delivery Units,Adults and Health,Other Agencies - Third Party P,90330625,MI HOMECARE LIMITED,68.21,12/02/2021
Delivery Units,Adults and Health,Other Agencies - Third Party P,90330626,MI HOMECARE LIMITED,191,12/02/2021
Delivery Units,Adults and Health,Other Agencies - Third Party P,90330629,MI HOMECARE LIMITED,90.95,12/02/2021
Delivery Units,Adults and Health,Other Agencies - Third Party P,90330631,MI HOMECARE LIMITED,281.94,12/02/2021
Delivery Units,Adults and Health,Other Agencies - Third Party P,90330632,MI HOMECARE LIMITED,40.93,12/02/2021
Delivery Units,Adults and Health,Other Agencies - Third Party P,90330634,MI HOMECARE LIMITED,236.47,12/02/2021
Delivery Units,Adults and Health,Other Agencies - Third Party P,90330635,MI HOMECARE LIMITED,77.31,12/02/2021
Delivery Units,Adults and Health,Other Agencies - Third Party P,90330638,MI HOMECARE LIMITED,313.78,12/02/2021
Delivery Units,Adults and Health,Other Agencies - Third Party P,90330640,MI HOMECARE LIMITED,109.15,12/02/2021
Delivery Units,Adults and Health,Other Agencies - Third Party P,90330641,MI HOMECARE LIMITED,68.21,12/02/2021
Delivery Units,Adults and Health,Other Agencies - Third Party P,90330642,MI HOMECARE LIMITED,191,12/02/2021
Delivery Units,Adults and Health,Other Agencies - Third Party P,90330643,MI HOMECARE LIMITED,977.71,12/02/2021
Delivery Units,Adults and Health,Other Agencies - Third Party P,90330644,MI HOMECARE LIMITED,18.19,12/02/2021
Delivery Units,Adults and Health,Other Agencies - Third Party P,90330645,MI HOMECARE LIMITED,236.47,12/02/2021
Delivery Units,Adults and Health,Other Agencies - Third Party P,90330647,MI HOMECARE LIMITED,277.4,12/02/2021
Delivery Units,Adults and Health,Other Agencies - Third Party P,90330648,MI HOMECARE LIMITED,227.38,12/02/2021
Delivery Units,Adults and Health,Other Agencies - Third Party P,90330649,MI HOMECARE LIMITED,127.33,12/02/2021
Delivery Units,Adults and Health,Other Agencies - Third Party P,90330650,MI HOMECARE LIMITED,127.33,12/02/2021
Delivery Units,Adults and Health,Other Agencies - Third Party P,90330652,MI HOMECARE LIMITED,159.16,12/02/2021
Delivery Units,Adults and Health,Other Agencies - Third Party P,90330653,MI HOMECARE LIMITED,127.33,12/02/2021
Delivery Units,Adults and Health,Other Agencies - Third Party P,90330656,MI HOMECARE LIMITED,191,12/02/2021
Delivery Units,Adults and Health,Other Agencies - Third Party P,90330657,MI HOMECARE LIMITED,159.16,12/02/2021
Delivery Units,Adults and Health,Other Agencies - Third Party P,90330658,MI HOMECARE LIMITED,127.33,12/02/2021
Delivery Units,Adults and Health,Other Agencies - Third Party P,90330660,MI HOMECARE LIMITED,200.09,12/02/2021
Delivery Units,Adults and Health,Other Agencies - Third Party P,90330661,MI HOMECARE LIMITED,281.94,12/02/2021
Delivery Units,Adults and Health,Other Agencies - Third Party P,90330662,MI HOMECARE LIMITED,81.86,12/02/2021
Delivery Units,Adults and Health,Other Agencies - Third Party P,90330663,MI HOMECARE LIMITED,572.98,12/02/2021
Delivery Units,Adults and Health,Other Agencies - Third Party P,90330665,MI HOMECARE LIMITED,277.4,12/02/2021
Delivery Units,Adults and Health,Other Agencies - Third Party P,90330666,MI HOMECARE LIMITED,95.5,12/02/2021
Delivery Units,Adults and Health,Other Agencies - Third Party P,90330667,MI HOMECARE LIMITED,95.5,12/02/2021
Delivery Units,Adults and Health,Other Agencies - Third Party P,90330668,MI HOMECARE LIMITED,231.92,12/02/2021
Delivery Units,Adults and Health,Other Agencies - Third Party P,90330669,MI HOMECARE LIMITED,241.02,12/02/2021
Delivery Units,Adults and Health,Other Agencies - Third Party P,90330670,MI HOMECARE LIMITED,127.33,12/02/2021
Delivery Units,Adults and Health,Other Agencies - Third Party P,90330671,MI HOMECARE LIMITED,36.38,12/02/2021
Delivery Units,Adults and Health,Other Agencies - Third Party P,90330673,MI HOMECARE LIMITED,654.84,12/02/2021
Delivery Units,Adults and Health,Other Agencies - Third Party P,90330674,MI HOMECARE LIMITED,272.85,12/02/2021
Delivery Units,Adults and Health,Other Agencies - Third Party P,90330676,MI HOMECARE LIMITED,227.38,12/02/2021
Delivery Units,Adults and Health,Other Agencies - Third Party P,90330677,MI HOMECARE LIMITED,277.4,12/02/2021
Delivery Units,Adults and Health,Other Agencies - Third Party P,90330678,MI HOMECARE LIMITED,54.57,12/02/2021
Delivery Units,Adults and Health,Other Agencies - Third Party P,90330680,MI HOMECARE LIMITED,327.42,12/02/2021
Delivery Units,Adults and Health,Other Agencies - Third Party P,90330681,MI HOMECARE LIMITED,27.29,12/02/2021
Delivery Units,Adults and Health,Other Agencies - Third Party P,90330682,MI HOMECARE LIMITED,81.86,12/02/2021
Delivery Units,Adults and Health,Other Agencies - Third Party P,90330683,MI HOMECARE LIMITED,204.64,12/02/2021
Delivery Units,Adults and Health,Other Agencies - Third Party P,90330684,MI HOMECARE LIMITED,95.5,12/02/2021
Delivery Units,Adults and Health,Other Agencies - Third Party P,90330685,MI HOMECARE LIMITED,250.11,12/02/2021
Delivery Units,Adults and Health,Other Agencies - Third Party P,90330686,MI HOMECARE LIMITED,127.33,12/02/2021
Delivery Units,Adults and Health,Other Agencies - Third Party P,90330687,MI HOMECARE LIMITED,277.4,12/02/2021
Delivery Units,Adults and Health,Other Agencies - Third Party P,90330688,MI HOMECARE LIMITED,181.9,12/02/2021
Delivery Units,Adults and Health,Other Agencies - Third Party P,90330689,MI HOMECARE LIMITED,27.29,12/02/2021
Delivery Units,Adults and Health,Other Agencies - Third Party P,90330691,MI HOMECARE LIMITED,359.25,12/02/2021
Delivery Units,Adults and Health,Other Agencies - Third Party P,90330692,MI HOMECARE LIMITED,322.87,12/02/2021
Delivery Units,Adults and Health,Other Agencies - Third Party P,90330693,MI HOMECARE LIMITED,90.95,12/02/2021
Delivery Units,Adults and Health,Other Agencies - Third Party P,90330694,MI HOMECARE LIMITED,154.62,12/02/2021
Delivery Units,Adults and Health,Other Agencies - Third Party P,90330695,MI HOMECARE LIMITED,63.67,12/02/2021
Delivery Units,Adults and Health,Other Agencies - Third Party P,90330696,MI HOMECARE LIMITED,181.9,12/02/2021
Delivery Units,Adults and Health,Other Agencies - Third Party P,90330698,MI HOMECARE LIMITED,286.49,12/02/2021
Delivery Units,Adults and Health,Other Agencies - Third Party P,90330699,MI HOMECARE LIMITED,313.78,12/02/2021
Delivery Units,Adults and Health,Other Agencies - Third Party P,90330700,MI HOMECARE LIMITED,127.33,12/02/2021
Delivery Units,Adults and Health,Other Agencies - Third Party P,90330702,MI HOMECARE LIMITED,336.52,12/02/2021
Delivery Units,Adults and Health,Other Agencies - Third Party P,90330703,MI HOMECARE LIMITED,109.14,12/02/2021
Delivery Units,Adults and Health,Other Agencies - Third Party P,90330705,MI HOMECARE LIMITED,222.83,12/02/2021
Delivery Units,Adults and Health,Other Agencies - Third Party P,90330706,MI HOMECARE LIMITED,272.85,12/02/2021
Delivery Units,Adults and Health,Other Agencies - Third Party P,90330708,MI HOMECARE LIMITED,318.33,12/02/2021
Delivery Units,Adults and Health,Other Agencies - Third Party P,90330709,MI HOMECARE LIMITED,90.95,12/02/2021
Delivery Units,Adults and Health,Other Agencies - Third Party P,90330710,MI HOMECARE LIMITED,222.83,12/02/2021
Delivery Units,Adults and Health,Other Agencies - Third Party P,90330711,MI HOMECARE LIMITED,68.21,12/02/2021
Delivery Units,Adults and Health,Other Agencies - Third Party P,90330714,MI HOMECARE LIMITED,159.16,12/02/2021
Delivery Units,Adults and Health,Other Agencies - Third Party P,90330715,MI HOMECARE LIMITED,572.04,12/02/2021
Delivery Units,Adults and Health,Other Agencies - Third Party P,90330716,MI HOMECARE LIMITED,281.94,12/02/2021
Delivery Units,Adults and Health,Other Agencies - Third Party P,90330718,MI HOMECARE LIMITED,127.33,12/02/2021
Delivery Units,Adults and Health,Other Agencies - Third Party P,90330719,MI HOMECARE LIMITED,441.11,12/02/2021
Delivery Units,Adults and Health,Other Agencies - Third Party P,90330720,MI HOMECARE LIMITED,222.83,12/02/2021
Delivery Units,Adults and Health,Other Agencies - Third Party P,90330721,MI HOMECARE LIMITED,131.88,12/02/2021
Delivery Units,Adults and Health,Other Agencies - Third Party P,90330722,MI HOMECARE LIMITED,163.71,12/02/2021
Delivery Units,Adults and Health,Other Agencies - Third Party P,90330723,MI HOMECARE LIMITED,254.66,12/02/2021
Delivery Units,Adults and Health,Other Agencies - Third Party P,90330724,MI HOMECARE LIMITED,286.49,12/02/2021
Delivery Units,Adults and Health,Other Agencies - Third Party P,90330725,MI HOMECARE LIMITED,682.12,12/02/2021
Delivery Units,Adults and Health,Other Agencies - Third Party P,90330727,MI HOMECARE LIMITED,95.5,12/02/2021
Delivery Units,Adults and Health,Other Agencies - Third Party P,90330728,MI HOMECARE LIMITED,286.49,12/02/2021
Delivery Units,Adults and Health,Other Agencies - Third Party P,90330729,MI HOMECARE LIMITED,445.66,12/02/2021
Delivery Units,Adults and Health,Other Agencies - Third Party P,90330730,MI HOMECARE LIMITED,127.33,12/02/2021
Delivery Units,Adults and Health,Other Agencies - Third Party P,90330731,MI HOMECARE LIMITED,277.4,12/02/2021
Delivery Units,Adults and Health,Other Agencies - Third Party P,90330732,MI HOMECARE LIMITED,322.87,12/02/2021
Delivery Units,Adults and Health,Other Agencies - Third Party P,90330734,MI HOMECARE LIMITED,127.33,12/02/2021
Delivery Units,Adults and Health,Other Agencies - Third Party P,90330736,MI HOMECARE LIMITED,186.45,12/02/2021
Delivery Units,Adults and Health,Other Agencies - Third Party P,90330740,MI HOMECARE LIMITED,127.33,12/02/2021
Delivery Units,Adults and Health,Other Agencies - Third Party P,90330741,MI HOMECARE LIMITED,95.5,12/02/2021
Delivery Units,Adults and Health,Other Agencies - Third Party P,90330743,MI HOMECARE LIMITED,127.33,12/02/2021
Delivery Units,Adults and Health,Other Agencies - Third Party P,90330744,MI HOMECARE LIMITED,45.48,12/02/2021
Delivery Units,Adults and Health,Other Agencies - Third Party P,90330745,MI HOMECARE LIMITED,127.33,12/02/2021
Delivery Units,Adults and Health,Other Agencies - Third Party P,90330746,MI HOMECARE LIMITED,218.28,12/02/2021
Delivery Units,Adults and Health,Other Agencies - Third Party P,90330747,MI HOMECARE LIMITED,291.04,12/02/2021
Delivery Units,Adults and Health,Other Agencies - Third Party P,90330749,MI HOMECARE LIMITED,40.93,12/02/2021
Delivery Units,Adults and Health,Other Agencies - Third Party P,90330750,MI HOMECARE LIMITED,345.61,12/02/2021
Delivery Units,Adults and Health,Other Agencies - Third Party P,90330751,MI HOMECARE LIMITED,227.38,12/02/2021
Delivery Units,Adults and Health,Other Agencies - Third Party P,90330752,MI HOMECARE LIMITED,54.57,12/02/2021
Delivery Units,Adults and Health,Other Agencies - Third Party P,90330754,MI HOMECARE LIMITED,218.28,12/02/2021
Delivery Units,Adults and Health,Other Agencies - Third Party P,90330755,MI HOMECARE LIMITED,191,12/02/2021
Delivery Units,Adults and Health,Other Agencies - Third Party P,90330758,MI HOMECARE LIMITED,291.04,12/02/2021
Delivery Units,Adults and Health,Other Agencies - Third Party P,90330760,MI HOMECARE LIMITED,54.57,12/02/2021
Delivery Units,Adults and Health,Other Agencies - Third Party P,90330762,MI HOMECARE LIMITED,254.66,12/02/2021
Delivery Units,Adults and Health,Other Agencies - Third Party P,90330763,MI HOMECARE LIMITED,318.33,12/02/2021
Delivery Units,Adults and Health,Other Agencies - Third Party P,90330765,MI HOMECARE LIMITED,700.32,12/02/2021
Delivery Units,Adults and Health,Other Agencies - Third Party P,90330766,MI HOMECARE LIMITED,350.16,12/02/2021
Delivery Units,Adults and Health,Other Agencies - Third Party P,90330767,MI HOMECARE LIMITED,272.85,12/02/2021
Delivery Units,Adults and Health,Other Agencies - Third Party P,90330768,MI HOMECARE LIMITED,86.4,12/02/2021
Delivery Units,Adults and Health,Other Agencies - Third Party P,90330770,MI HOMECARE LIMITED,54.57,12/02/2021
Delivery Units,Adults and Health,Other Agencies - Third Party P,90330771,MI HOMECARE LIMITED,318.33,12/02/2021
Delivery Units,Adults and Health,Other Agencies - Third Party P,90330773,MI HOMECARE LIMITED,241.02,12/02/2021
Delivery Units,Adults and Health,Other Agencies - Third Party P,90330776,MI HOMECARE LIMITED,90.95,12/02/2021
Delivery Units,Adults and Health,Other Agencies - Third Party P,90330777,MI HOMECARE LIMITED,814,12/02/2021
Delivery Units,Adults and Health,Other Agencies - Third Party P,90330778,MI HOMECARE LIMITED,45.48,12/02/2021
Delivery Units,Adults and Health,Other Agencies - Third Party P,90330779,MI HOMECARE LIMITED,636.65,12/02/2021
Delivery Units,Adults and Health,Other Agencies - Third Party P,90330782,MI HOMECARE LIMITED,363.8,12/02/2021
Delivery Units,Adults and Health,Other Agencies - Third Party P,90330783,MI HOMECARE LIMITED,45.48,12/02/2021
Delivery Units,Adults and Health,Other Agencies - Third Party P,90330784,MI HOMECARE LIMITED,63.67,12/02/2021
Delivery Units,Adults and Health,Other Agencies - Third Party P,90330785,MI HOMECARE LIMITED,304.68,12/02/2021
Delivery Units,Adults and Health,Other Agencies - Third Party P,90330786,MI HOMECARE LIMITED,159.16,12/02/2021
Delivery Units,Adults and Health,Other Agencies - Third Party P,90330795,MI HOMECARE LIMITED,131.88,12/02/2021
Delivery Units,Adults and Health,Other Agencies - Third Party P,90330797,MI HOMECARE LIMITED,63.67,12/02/2021
Delivery Units,Adults and Health,Other Agencies - Third Party P,90330828,ENABLE U SENSORY SUPPORT LTD,240,12/02/2021
Delivery Units,Adults and Health,Other Agencies - Third Party P,90330831,BLUEBIRD CARE CAMDEN & HAMPSTEAD,"2,753.00",12/02/2021
Delivery Units,Adults and Health,Other Agencies - Third Party P,90330838,SPRINGVILLA CARE LTD,"2,128.00",12/02/2021
Delivery Units,Adults and Health,Other Agencies - Third Party P,90330839,SPRINGVILLA CARE LTD,"1,008.00",12/02/2021
Delivery Units,Adults and Health,Other Agencies - Third Party P,90330840,SPRINGVILLA CARE LTD,"1,120.00",12/02/2021
Delivery Units,Adults and Health,Other Agencies - Third Party P,90330841,SPRINGVILLA CARE LTD,392,12/02/2021
Delivery Units,Adults and Health,Other Agencies - Third Party P,90330842,HOMECARE ALLIANCE LTD,313.88,12/02/2021
Delivery Units,Adults and Health,Other Agencies - Third Party P,90330895,HERTSMERE VALLEY CARE SERVICES LIMITED,51,12/02/2021
Delivery Units,Adults and Health,Other Agencies - Third Party P,90330896,HERTSMERE VALLEY CARE SERVICES LIMITED,433.5,12/02/2021
Delivery Units,Adults and Health,Other Agencies - Third Party P,90330897,HERTSMERE VALLEY CARE SERVICES LIMITED,274.04,12/02/2021
Delivery Units,Adults and Health,Other Agencies - Third Party P,90330898,SURECARE BARNET & BRENT,710.85,12/02/2021
Delivery Units,Adults and Health,Other Agencies - Third Party P,90330899,SURECARE BARNET & BRENT,498.11,12/02/2021
Delivery Units,Adults and Health,Other Agencies - Third Party P,90330901,SURECARE BARNET & BRENT,473.9,12/02/2021
Delivery Units,Adults and Health,Other Agencies - Third Party P,90330902,SURECARE BARNET & BRENT,357.82,12/02/2021
Delivery Units,Adults and Health,Other Agencies - Third Party P,90330903,SURECARE BARNET & BRENT,227.28,12/02/2021
Delivery Units,Adults and Health,Other Agencies - Third Party P,90330904,SURECARE BARNET & BRENT,169.26,12/02/2021
Delivery Units,Adults and Health,Other Agencies - Third Party P,90330905,SURECARE BARNET & BRENT,"1,270.78",12/02/2021
Delivery Units,Adults and Health,Other Agencies - Third Party P,90330906,SURECARE BARNET & BRENT,236.95,12/02/2021
Delivery Units,Adults and Health,Other Agencies - Third Party P,90330907,SURECARE BARNET & BRENT,236.95,12/02/2021
Delivery Units,Adults and Health,Other Agencies - Third Party P,90330908,SURECARE BARNET & BRENT,304.65,12/02/2021
Delivery Units,Adults and Health,Other Agencies - Third Party P,90330910,SURECARE BARNET & BRENT,207.94,12/02/2021
Delivery Units,Adults and Health,Other Agencies - Third Party P,90330912,SURECARE BARNET & BRENT,58.02,12/02/2021
Delivery Units,Adults and Health,Other Agencies - Third Party P,90330913,SURECARE BARNET & BRENT,676.9,12/02/2021
Delivery Units,Adults and Health,Other Agencies - Third Party P,90330915,SURECARE BARNET & BRENT,270.76,12/02/2021
Delivery Units,Adults and Health,Other Agencies - Third Party P,90330916,SURECARE BARNET & BRENT,169.26,12/02/2021
Delivery Units,Adults and Health,Other Agencies - Third Party P,90330918,SURECARE BARNET & BRENT,507.71,12/02/2021
Delivery Units,Adults and Health,Other Agencies - Third Party P,90330919,SURECARE BARNET & BRENT,135.38,12/02/2021
Delivery Units,Adults and Health,Other Agencies - Third Party P,90330920,SURECARE BARNET & BRENT,744.66,12/02/2021
Delivery Units,Adults and Health,Other Agencies - Third Party P,90330921,SURECARE BARNET & BRENT,406.14,12/02/2021
Delivery Units,Adults and Health,Other Agencies - Third Party P,90330922,SURECARE BARNET & BRENT,290.1,12/02/2021
Delivery Units,Adults and Health,Other Agencies - Third Party P,90330923,SURECARE BARNET & BRENT,478.77,12/02/2021
Delivery Units,Adults and Health,Other Agencies - Third Party P,90330924,SURECARE BARNET & BRENT,710.85,12/02/2021
Delivery Units,Adults and Health,Other Agencies - Third Party P,90330925,SURECARE BARNET & BRENT,498.11,12/02/2021
Delivery Units,Adults and Health,Other Agencies - Third Party P,90330927,SURECARE BARNET & BRENT,473.9,12/02/2021
Delivery Units,Adults and Health,Other Agencies - Third Party P,90330928,SURECARE BARNET & BRENT,357.82,12/02/2021
Delivery Units,Adults and Health,Other Agencies - Third Party P,90330929,SURECARE BARNET & BRENT,227.28,12/02/2021
Delivery Units,Adults and Health,Other Agencies - Third Party P,90330930,SURECARE BARNET & BRENT,169.26,12/02/2021
Delivery Units,Adults and Health,Other Agencies - Third Party P,90330931,SURECARE BARNET & BRENT,"1,270.78",12/02/2021
Delivery Units,Adults and Health,Other Agencies - Third Party P,90330932,SURECARE BARNET & BRENT,236.95,12/02/2021
Delivery Units,Adults and Health,Other Agencies - Third Party P,90330933,SURECARE BARNET & BRENT,236.95,12/02/2021
Delivery Units,Adults and Health,Other Agencies - Third Party P,90330935,SURECARE BARNET & BRENT,353.02,12/02/2021
Delivery Units,Adults and Health,Other Agencies - Third Party P,90330937,SURECARE BARNET & BRENT,58.02,12/02/2021
Delivery Units,Adults and Health,Other Agencies - Third Party P,90330938,SURECARE BARNET & BRENT,686.57,12/02/2021
Delivery Units,Adults and Health,Other Agencies - Third Party P,90330940,SURECARE BARNET & BRENT,270.76,12/02/2021
Delivery Units,Adults and Health,Other Agencies - Third Party P,90330941,SURECARE BARNET & BRENT,169.26,12/02/2021
Delivery Units,Adults and Health,Other Agencies - Third Party P,90330943,SURECARE BARNET & BRENT,507.71,12/02/2021
Delivery Units,Adults and Health,Other Agencies - Third Party P,90330944,SURECARE BARNET & BRENT,135.38,12/02/2021
Delivery Units,Adults and Health,Other Agencies - Third Party P,90330945,SURECARE BARNET & BRENT,744.66,12/02/2021
Delivery Units,Adults and Health,Other Agencies - Third Party P,90330946,SURECARE BARNET & BRENT,406.14,12/02/2021
Delivery Units,Adults and Health,Other Agencies - Third Party P,90330947,SURECARE BARNET & BRENT,290.1,12/02/2021
Delivery Units,Adults and Health,Other Agencies - Third Party P,90330948,SURECARE BARNET & BRENT,710.85,12/02/2021
Delivery Units,Adults and Health,Other Agencies - Third Party P,90330949,SURECARE BARNET & BRENT,498.11,12/02/2021
Delivery Units,Adults and Health,Other Agencies - Third Party P,90330951,SURECARE BARNET & BRENT,469.07,12/02/2021
Delivery Units,Adults and Health,Other Agencies - Third Party P,90330952,SURECARE BARNET & BRENT,319.14,12/02/2021
Delivery Units,Adults and Health,Other Agencies - Third Party P,90330953,SURECARE BARNET & BRENT,227.28,12/02/2021
Delivery Units,Adults and Health,Other Agencies - Third Party P,90330954,SURECARE BARNET & BRENT,169.26,12/02/2021
Delivery Units,Adults and Health,Other Agencies - Third Party P,90330955,SURECARE BARNET & BRENT,"1,270.78",12/02/2021
Delivery Units,Adults and Health,Other Agencies - Third Party P,90330956,SURECARE BARNET & BRENT,236.95,12/02/2021
Delivery Units,Adults and Health,Other Agencies - Third Party P,90330957,SURECARE BARNET & BRENT,236.95,12/02/2021
Delivery Units,Adults and Health,Other Agencies - Third Party P,90330959,SURECARE BARNET & BRENT,357.86,12/02/2021
Delivery Units,Adults and Health,Other Agencies - Third Party P,90330961,SURECARE BARNET & BRENT,58.02,12/02/2021
Delivery Units,Adults and Health,Other Agencies - Third Party P,90330962,SURECARE BARNET & BRENT,676.9,12/02/2021
Delivery Units,Adults and Health,Other Agencies - Third Party P,90330964,SURECARE BARNET & BRENT,270.76,12/02/2021
Delivery Units,Adults and Health,Other Agencies - Third Party P,90330965,SURECARE BARNET & BRENT,169.26,12/02/2021
Delivery Units,Adults and Health,Other Agencies - Third Party P,90330967,SURECARE BARNET & BRENT,507.71,12/02/2021
Delivery Units,Adults and Health,Other Agencies - Third Party P,90330968,SURECARE BARNET & BRENT,135.38,12/02/2021
Delivery Units,Adults and Health,Other Agencies - Third Party P,90330969,SURECARE BARNET & BRENT,744.66,12/02/2021
Delivery Units,Adults and Health,Other Agencies - Third Party P,90330970,SURECARE BARNET & BRENT,406.14,12/02/2021
Delivery Units,Adults and Health,Other Agencies - Third Party P,90330971,SURECARE BARNET & BRENT,290.1,12/02/2021
Delivery Units,Adults and Health,Other Agencies - Third Party P,90330972,SURECARE BARNET & BRENT,449.74,12/02/2021
Delivery Units,Adults and Health,Other Agencies - Third Party P,90330973,SURECARE BARNET & BRENT,710.85,12/02/2021
Delivery Units,Adults and Health,Other Agencies - Third Party P,90330974,SURECARE BARNET & BRENT,498.11,12/02/2021
Delivery Units,Adults and Health,Other Agencies - Third Party P,90330976,SURECARE BARNET & BRENT,473.9,12/02/2021
Delivery Units,Adults and Health,Other Agencies - Third Party P,90330977,SURECARE BARNET & BRENT,357.82,12/02/2021
Delivery Units,Adults and Health,Other Agencies - Third Party P,90330978,SURECARE BARNET & BRENT,227.28,12/02/2021
Delivery Units,Adults and Health,Other Agencies - Third Party P,90330979,SURECARE BARNET & BRENT,48.36,12/02/2021
Delivery Units,Adults and Health,Other Agencies - Third Party P,90330980,SURECARE BARNET & BRENT,"1,270.78",12/02/2021
Delivery Units,Adults and Health,Other Agencies - Third Party P,90330981,SURECARE BARNET & BRENT,236.95,12/02/2021
Delivery Units,Adults and Health,Other Agencies - Third Party P,90330982,SURECARE BARNET & BRENT,236.95,12/02/2021
Delivery Units,Adults and Health,Other Agencies - Third Party P,90330984,SURECARE BARNET & BRENT,353.02,12/02/2021
Delivery Units,Adults and Health,Other Agencies - Third Party P,90330986,SURECARE BARNET & BRENT,58.02,12/02/2021
Delivery Units,Adults and Health,Other Agencies - Third Party P,90330987,SURECARE BARNET & BRENT,676.9,12/02/2021
Delivery Units,Adults and Health,Other Agencies - Third Party P,90330988,SURECARE BARNET & BRENT,657.61,12/02/2021
Delivery Units,Adults and Health,Other Agencies - Third Party P,90330990,SURECARE BARNET & BRENT,270.76,12/02/2021
Delivery Units,Adults and Health,Other Agencies - Third Party P,90330991,SURECARE BARNET & BRENT,169.26,12/02/2021
Delivery Units,Adults and Health,Other Agencies - Third Party P,90330993,SURECARE BARNET & BRENT,507.71,12/02/2021
Delivery Units,Adults and Health,Other Agencies - Third Party P,90330994,SURECARE BARNET & BRENT,135.38,12/02/2021
Delivery Units,Adults and Health,Other Agencies - Third Party P,90330995,SURECARE BARNET & BRENT,744.66,12/02/2021
Delivery Units,Adults and Health,Other Agencies - Third Party P,90330996,SURECARE BARNET & BRENT,406.14,12/02/2021
Delivery Units,Adults and Health,Other Agencies - Third Party P,90330997,SURECARE BARNET & BRENT,290.1,12/02/2021
Delivery Units,Adults and Health,Other Agencies - Third Party P,90331170,CITY HOMECARE LTD,595,12/02/2021
Delivery Units,Adults and Health,Other Agencies - Third Party P,90331171,CITY HOMECARE LTD,595,12/02/2021
Delivery Units,Adults and Health,Other Agencies - Third Party P,90331172,CITY HOMECARE LTD,595,12/02/2021
Delivery Units,Adults and Health,Other Agencies - Third Party P,90331173,CITY HOMECARE LTD,595,12/02/2021
Delivery Units,Adults and Health,Other Agencies - Third Party P,90331222,DYNAMIC PEOPLE LTD,82.17,12/02/2021
Delivery Units,Adults and Health,Other Agencies - Third Party P,90331223,DYNAMIC PEOPLE LTD,68.48,12/02/2021
Delivery Units,Adults and Health,Other Agencies - Third Party P,90331224,DYNAMIC PEOPLE LTD,95.86,12/02/2021
Delivery Units,Adults and Health,Other Agencies - Third Party P,90331225,DYNAMIC PEOPLE LTD,146.08,12/02/2021
Delivery Units,Adults and Health,Other Agencies - Third Party P,90331226,DYNAMIC PEOPLE LTD,159.78,12/02/2021
Delivery Units,Adults and Health,Other Agencies - Third Party P,90331229,DYNAMIC PEOPLE LTD,287.6,12/02/2021
Delivery Units,Adults and Health,Other Agencies - Third Party P,90331230,DYNAMIC PEOPLE LTD,214.56,12/02/2021
Delivery Units,Adults and Health,Other Agencies - Third Party P,90331233,DYNAMIC PEOPLE LTD,59.35,12/02/2021
Delivery Units,Adults and Health,Other Agencies - Third Party P,90331234,DYNAMIC PEOPLE LTD,159.78,12/02/2021
Delivery Units,Adults and Health,Other Agencies - Third Party P,90331236,DYNAMIC PEOPLE LTD,54.78,12/02/2021
Delivery Units,Adults and Health,Other Agencies - Third Party P,90331237,DYNAMIC PEOPLE LTD,73.04,12/02/2021
Delivery Units,Adults and Health,Other Agencies - Third Party P,90331238,DYNAMIC PEOPLE LTD,141.52,12/02/2021
Delivery Units,Adults and Health,Other Agencies - Third Party P,90331239,DYNAMIC PEOPLE LTD,68.48,12/02/2021
Delivery Units,Adults and Health,Other Agencies - Third Party P,90331240,DYNAMIC PEOPLE LTD,109.56,12/02/2021
Delivery Units,Adults and Health,Other Agencies - Third Party P,90331241,DYNAMIC PEOPLE LTD,287.6,12/02/2021
Delivery Units,Adults and Health,Other Agencies - Third Party P,90331242,DYNAMIC PEOPLE LTD,419.98,12/02/2021
Delivery Units,Adults and Health,Other Agencies - Third Party P,90331244,DYNAMIC PEOPLE LTD,383.46,12/02/2021
Delivery Units,Adults and Health,Other Agencies - Third Party P,90331245,DYNAMIC PEOPLE LTD,91.3,12/02/2021
Delivery Units,Adults and Health,Other Agencies - Third Party P,90331247,DYNAMIC PEOPLE LTD,255.64,12/02/2021
Delivery Units,Adults and Health,Other Agencies - Third Party P,90331249,DYNAMIC PEOPLE LTD,342.38,12/02/2021
Delivery Units,Adults and Health,Other Agencies - Third Party P,90331250,DYNAMIC PEOPLE LTD,223.69,12/02/2021
Delivery Units,Adults and Health,Other Agencies - Third Party P,90331251,DYNAMIC PEOPLE LTD,63.91,12/02/2021
Delivery Units,Adults and Health,Other Agencies - Third Party P,90331256,DYNAMIC PEOPLE LTD,41.08,12/02/2021
Delivery Units,Adults and Health,Other Agencies - Third Party P,90331258,DYNAMIC PEOPLE LTD,95.86,12/02/2021
Delivery Units,Adults and Health,Other Agencies - Third Party P,90331260,DYNAMIC PEOPLE LTD,127.82,12/02/2021
Delivery Units,Adults and Health,Other Agencies - Third Party P,90331261,DYNAMIC PEOPLE LTD,95.86,12/02/2021
Delivery Units,Adults and Health,Other Agencies - Third Party P,90331264,DYNAMIC PEOPLE LTD,36.52,12/02/2021
Delivery Units,Adults and Health,Other Agencies - Third Party P,90331265,DYNAMIC PEOPLE LTD,351.51,12/02/2021
Delivery Units,Adults and Health,Other Agencies - Third Party P,90331266,DYNAMIC PEOPLE LTD,164.34,12/02/2021
Delivery Units,Adults and Health,Other Agencies - Third Party P,90331267,DYNAMIC PEOPLE LTD,159.78,12/02/2021
Delivery Units,Adults and Health,Other Agencies - Third Party P,90331268,DYNAMIC PEOPLE LTD,136.95,12/02/2021
Delivery Units,Adults and Health,Other Agencies - Third Party P,90331270,DYNAMIC PEOPLE LTD,671.06,12/02/2021
Delivery Units,Adults and Health,Other Agencies - Third Party P,90331271,DYNAMIC PEOPLE LTD,319.55,12/02/2021
Delivery Units,Adults and Health,Other Agencies - Third Party P,90331272,DYNAMIC PEOPLE LTD,214.56,12/02/2021
Delivery Units,Adults and Health,Other Agencies - Third Party P,90331273,DYNAMIC PEOPLE LTD,223.69,12/02/2021
Delivery Units,Adults and Health,Other Agencies - Third Party P,90331274,DYNAMIC PEOPLE LTD,141.52,12/02/2021
Delivery Units,Adults and Health,Other Agencies - Third Party P,90331275,DYNAMIC PEOPLE LTD,73.04,12/02/2021
Delivery Units,Adults and Health,Other Agencies - Third Party P,90331276,DYNAMIC PEOPLE LTD,223.69,12/02/2021
Delivery Units,Adults and Health,Other Agencies - Third Party P,90331277,DYNAMIC PEOPLE LTD,369.77,12/02/2021
Delivery Units,Adults and Health,Other Agencies - Third Party P,90331279,DYNAMIC PEOPLE LTD,95.86,12/02/2021
Delivery Units,Adults and Health,Other Agencies - Third Party P,90331281,DYNAMIC PEOPLE LTD,100.43,12/02/2021
Delivery Units,Adults and Health,Other Agencies - Third Party P,90331283,DYNAMIC PEOPLE LTD,223.69,12/02/2021
Delivery Units,Adults and Health,Other Agencies - Third Party P,90331284,DYNAMIC PEOPLE LTD,319.55,12/02/2021
Delivery Units,Adults and Health,Other Agencies - Third Party P,90331285,DYNAMIC PEOPLE LTD,95.86,12/02/2021
Delivery Units,Adults and Health,Other Agencies - Third Party P,90331286,DYNAMIC PEOPLE LTD,141.52,12/02/2021
Delivery Units,Adults and Health,Other Agencies - Third Party P,90331288,DYNAMIC PEOPLE LTD,447.37,12/02/2021
Delivery Units,Adults and Health,Other Agencies - Third Party P,90331289,DYNAMIC PEOPLE LTD,273.9,12/02/2021
Delivery Units,Adults and Health,Other Agencies - Third Party P,90331290,DYNAMIC PEOPLE LTD,511.28,12/02/2021
Delivery Units,Adults and Health,Other Agencies - Third Party P,90331291,DYNAMIC PEOPLE LTD,95.86,12/02/2021
Delivery Units,Adults and Health,Other Agencies - Third Party P,90331292,DYNAMIC PEOPLE LTD,159.78,12/02/2021
Delivery Units,Adults and Health,Other Agencies - Third Party P,90331294,DYNAMIC PEOPLE LTD,351.51,12/02/2021
Delivery Units,Adults and Health,Other Agencies - Third Party P,90331296,DYNAMIC PEOPLE LTD,337.81,12/02/2021
Delivery Units,Adults and Health,Other Agencies - Third Party P,90331297,DYNAMIC PEOPLE LTD,228.25,12/02/2021
Delivery Units,Adults and Health,Other Agencies - Third Party P,90331299,DYNAMIC PEOPLE LTD,191.73,12/02/2021
Delivery Units,Adults and Health,Other Agencies - Third Party P,90331301,DYNAMIC PEOPLE LTD,68.48,12/02/2021
Delivery Units,Adults and Health,Other Agencies - Third Party P,90331302,DYNAMIC PEOPLE LTD,82.17,12/02/2021
Delivery Units,Adults and Health,Other Agencies - Third Party P,90331303,DYNAMIC PEOPLE LTD,639.1,12/02/2021
Delivery Units,Adults and Health,Other Agencies - Third Party P,90331304,DYNAMIC PEOPLE LTD,54.78,12/02/2021
Delivery Units,Adults and Health,Other Agencies - Third Party P,90331306,DYNAMIC PEOPLE LTD,54.78,12/02/2021
Delivery Units,Adults and Health,Other Agencies - Third Party P,90331307,DYNAMIC PEOPLE LTD,68.48,12/02/2021
Delivery Units,Adults and Health,Other Agencies - Third Party P,90331308,DYNAMIC PEOPLE LTD,255.64,12/02/2021
Delivery Units,Adults and Health,Other Agencies - Third Party P,90331309,DYNAMIC PEOPLE LTD,223.69,12/02/2021
Delivery Units,Adults and Health,Other Agencies - Third Party P,90331310,DYNAMIC PEOPLE LTD,27.39,12/02/2021
Delivery Units,Adults and Health,Other Agencies - Third Party P,90331311,DYNAMIC PEOPLE LTD,95.86,12/02/2021
Delivery Units,Adults and Health,Other Agencies - Third Party P,90331312,DYNAMIC PEOPLE LTD,191.73,12/02/2021
Delivery Units,Adults and Health,Other Agencies - Third Party P,90331314,DYNAMIC PEOPLE LTD,109.56,12/02/2021
Delivery Units,Adults and Health,Other Agencies - Third Party P,90331316,DYNAMIC PEOPLE LTD,127.82,12/02/2021
Delivery Units,Adults and Health,Other Agencies - Third Party P,90331317,DYNAMIC PEOPLE LTD,191.73,12/02/2021
Delivery Units,Adults and Health,Other Agencies - Third Party P,90331318,DYNAMIC PEOPLE LTD,127.82,12/02/2021
Delivery Units,Adults and Health,Other Agencies - Third Party P,90331319,DYNAMIC PEOPLE LTD,319.55,12/02/2021
Delivery Units,Adults and Health,Other Agencies - Third Party P,90331320,DYNAMIC PEOPLE LTD,862.79,12/02/2021
Delivery Units,Adults and Health,Other Agencies - Third Party P,90331321,DYNAMIC PEOPLE LTD,127.82,12/02/2021
Delivery Units,Adults and Health,Other Agencies - Third Party P,90331322,DYNAMIC PEOPLE LTD,91.3,12/02/2021
Delivery Units,Adults and Health,Other Agencies - Third Party P,90331324,DYNAMIC PEOPLE LTD,118.69,12/02/2021
